Workbook

Sheet Meilleure_Offre
B2: Choisir le plan de financement présentant le moindre coût du crédit corrigé et/ou la valeur du patrimoine total le plus élevé au terme de la durée du prêt le plus long tous prêts confondus des deux projets
B4: Renseigner toutes les cellules matérialisées en mauve puis cliquer sur le bouton ''CALCULS'' | L4: Comparaisons détaillées - Coût Crédit Corrigé - Valeur patrimoine total - Contrôle cohérence | V4: Banque "A" | Z4: Apport | AA4: =I8 -> 20000 | AC4: Banque "B" | AF4: Apport | AG4: =J8 -> 0 | AI4: Pas d'investissement physique - Seulement investissement financier | AR4: Manques à gagner en intérêts Banque "A" | AZ4: Manques à gagner en intérêts Banque "B" | BH4: Epargne résiduelle Banque "A" | BP4: Epargne résiduelle Banque "B"
B5: Plans de financements | L5: Différentes hypothèses à comparer | P5: Pas d'investissement physique = Investissement financier seulement | Q5: Projet avec Banque "A" | R5: Projet avec Banque "B" | S5: Commentaires | V5: Rang | W5: Échéances | X5: Intérêts + Assurances | Y5: TAEG | Z5: Coût crédit simple | AA5: Coût crédit corrigé | AC5: Échéances | AD5: Intérêts + Assurances | AE5: TAEG | AF5: Coût crédit simple | AG5: Coût crédit corrigé | AI5: Placement capacité épargne/remboursement | AN5: Placement apport personnel maxi | AR5: Manque à gagner en intérêts sur échéances payées | AV5: Manque gagner en intérêts sur apport | AZ5: Manque à gagner en intérêts sur échéances payées | BD5: Manque gagner en intérêts sur apport | BH5: Placement disponible sur échéances | BL5: Placement disponible sur apport | BP5: Placement disponible sur échéances | BT5: Placement disponible sur apport
B6: Besoins = Emplois = Dépenses | E6: Banque "A" | F6: Banque "B" | G6: Ressources = Recettes | I6: Banque "A" | J6: Banque "B" | L6: Ce que vous avez réellement payé | M6: Intérêts plus assurances - obligatoires et facultatives - réellement payés | P6: 0 | Q6: =X6 -> 22528.78 | R6: =AD6 -> 30518.01 | S6: Critère non pertinent | W6: =W404 -> 214528.78 | X6: =W6-I22 -> 22528.78 | Y6: =((1+Y404)^(12))-1 -> 0.02427321245 | Z6: =X6+E12+E13+E14+E15+E16 -> 34528.78 | AA6: =Z6+AT404+AW404 -> 50528.25922 | AC6: =AC404 -> 245518.01 | AD6: =AC6-J22 -> 30518.01 | AE6: =((1+AE404)^(12))-1 -> 0.02138809091 | AF6: =AD6+F12+F13+F14+F15+F16 -> 45518.01 | AG6: =AF6+BB404+BE404 -> 58235.13342
M7: Frais payés | P7: 0 | Q7: =E12+E13+E14+E15+E16 -> 12000 | R7: =F12+F13+F14+F15+F16 -> 15000 | U7: 0 | V7: 0 | Y7: =I22-(E12+E13+E14+E15+E16) -> 180000 | AE7: =J22-(F12+F13+F14+F15+F16) -> 200000 | AI7: 0 | AN7: =$E$23 -> 20000 | AV7: =$I$8 -> 20000 | BD7: =$J$8 -> 0 | BL7: =$E$23-$I$8 -> 0 | BT7: =$E$23-$J$8 -> 20000
B8: Coût Achat Terrain ou Logement | F8: =E8 -> 0 | G8: Apport personnel | I8: 20000 | J8: 0 | M8: => Coût Crédit Simple | P8: =SUM(P6:P7) -> 0 | Q8: =SUM(Q6:Q7) -> 34528.78 | R8: =SUM(R6:R7) -> 45518.01 | U8: 1 | V8: 1 | W8: =C30 -> 1191.83 | Y8: =-W8 -> -1191.83 | AC8: =I30 -> 1023 | AE8: =-AC8 -> -1023 | AI8: 1 | AJ8: =IF(AI8>$K$21,0,IF(AC8>W8,AC8,W8)) -> 1191.83 | AK8: =IF(AI8>$K$21,0,AJ8) -> 1191.83 | AL8: =AK8*$E$20/12 -> 0.4965958333 | AN8: =IF(AI8>$K$21,0,AN7) -> 20000 | AO8: =IF(AI8>$K$21,0,AN7*$E$20/12) -> 8.333333333 | AR8: =W8 -> 1191.83 | AS8: =IF(AI8>$K$21,0,AR8) -> 1191.83 | AT8: =AS8*$E$20/12 -> 0.4965958333 | AV8: =IF(AI8>$K$21,0,AV7) -> 20000 | AW8: =IF(AI8>$K$21,0,AV7*$E$20/12) -> 8.333333333 | AZ8: =AC8 -> 1023 | BA8: =AZ8 -> 1023 | BB8: =BA8*$E$20/12 -> 0.42625 | BD8: =IF(AI8>$K$21,0,BD7) -> 0 | BE8: =IF(AI8>$K$21,0,BD7*$E$20/12) -> 0 | BH8: =AJ8-W8 -> 0 | BI8: =BH8 -> 0 | BJ8: =BI8*$E$20/12 -> 0 | BL8: =IF(AI8>$K$21,0,BL7) -> 0 | BM8: =IF(AI8>$K$21,0,BL7*$E$20/12) -> 0 | BP8: =AJ8-AC8 -> 168.83 | BQ8: =BP8 -> 168.83 | BR8: =BQ8*$E$20/12 -> 0.07034583333 | BT8: =IF(AI8>$K$21,0,BT7) -> 20000 | BU8: =IF(AI8>$K$21,0,BT7*$E$20/12) -> 8.333333333
B9: Coût Travaux ou Construction | E9: 200000 | F9: =E9 -> 200000 | G9: Prêt N° 1 | I9: 192000 | J9: 215000 | L9: C'est le coût réel dans chaque cas de figure | M9: Manque à gagner en intérêts sur apport investi sur durée la plus longue | P9: 0 | Q9: =AW404 -> 2097.911544 | R9: =BE404 -> 0 | S9: Critère à privilégier au même titre que la Valeur Patimoine | U9: 2 | V9: 2 | W9: 1191.83 | Y9: -1191.83 | AC9: 1023 | AE9: -1023 | AI9: 2 | AJ9: =IF(AI9>$K$21,0,IF(AC9>W9,AC9,W9)) -> 1191.83 | AK9: =IF(AI9>$K$21,0,AJ9+AK8) -> 2383.66 | AL9: 0.9931916667 | AN9: =IF(AI9>$K$21,0,AN8) -> 20000 | AO9: =IF(AI9>$K$21,0,AN8*$E$20/12) -> 8.333333333 | AR9: 1191.83 | AS9: =IF(AI9>$K$21,0,AS8+AR9) -> 2383.66 | AT9: 0.9931916667 | AV9: =IF(AI9>$K$21,0,AV8) -> 20000 | AW9: =IF(AI9>$K$21,0,AV8*$E$20/12) -> 8.333333333 | AZ9: 1023 | BA9: =IF(AI9>$K$21,0,BA8+AZ9) -> 2046 | BB9: 0.8525 | BD9: =IF(AI9>$K$21,0,BD8) -> 0 | BE9: =IF(AI9>$K$21,0,BD8*$E$20/12) -> 0 | BH9: 0 | BI9: =IF(V9>$K$21,0,BI8+BH9) -> 0 | BJ9: 0 | BL9: =IF(AI9>$K$21,0,BL8) -> 0 | BM9: =IF(AI9>$K$21,0,BL8*$E$20/12) -> 0 | BP9: 168.83 | BQ9: =IF(AI9>$K$21,0,BQ8+BP9) -> 337.66 | BR9: 0.1406916667 | BT9: =IF(AI9>$K$21,0,BT8) -> 20000 | BU9: =IF(AI9>$K$21,0,BT8*$E$20/12) -> 8.333333333
B10: Frais négociation (Agence ou notaire) | F10: =E10 -> 0 | G10: Prêt N° 2 | M10: Manque à gagner en intérêts sur échéances payées sur durée la plus longue | P10: 0 | Q10: =AT404 -> 13901.56768 | R10: =BB404 -> 12717.12342 | U10: 3 | V10: 3 | W10: 1191.83 | Y10: -1191.83 | AC10: 1023 | AE10: -1023 | AI10: 3 | AJ10: 1191.83 | AK10: =IF(AI10>$K$21,0,AJ10+AK9) -> 3575.49 | AL10: 1.4897875 | AN10: 20000 | AO10: 8.333333333 | AR10: 1191.83 | AS10: =IF(AI10>$K$21,0,AS9+AR10) -> 3575.49 | AT10: 1.4897875 | AV10: 20000 | AW10: 8.333333333 | AZ10: 1023 | BA10: =IF(AI10>$K$21,0,BA9+AZ10) -> 3069 | BB10: 1.27875 | BD10: 0 | BE10: 0 | BH10: 0 | BI10: =IF(V10>$K$21,0,BI9+BH10) -> 0 | BJ10: 0 | BL10: 0 | BM10: 0 | BP10: 168.83 | BQ10: =IF(AI10>$K$21,0,BQ9+BP10) -> 506.49 | BR10: 0.2110375 | BT10: 20000 | BU10: 8.333333333
B11: Frais acte acquisition notarié | F11: =E11 -> 0 | G11: Prêt N° 3 | M11: => Coût Crédit Corrigé | P11: =SUM(P9:P10) -> 0 | Q11: =Q8+Q9+Q10 -> 50528.25922 | R11: =R8+R9+R10 -> 58235.13342 | U11: 4 | V11: 4 | W11: 1191.83 | Y11: -1191.83 | AC11: 1023 | AE11: -1023 | AI11: 4 | AJ11: 1191.83 | AK11: 4767.32 | AL11: 1.986383333 | AN11: 20000 | AO11: 8.333333333 | AR11: 1191.83 | AS11: 4767.32 | AT11: 1.986383333 | AV11: 20000 | AW11: 8.333333333 | AZ11: 1023 | BA11: 4092 | BB11: 1.705 | BD11: 0 | BE11: 0 | BH11: 0 | BI11: 0 | BJ11: 0 | BL11: 0 | BM11: 0 | BP11: 168.83 | BQ11: 675.32 | BR11: 0.2813833333 | BT11: 20000 | BU11: 8.333333333
B12: Frais courtage | E12: 2000 | F12: 3000 | G12: Prêt N° 4 | L12: Valeur du parimoine total au terme de la durée du prêt initial le plus long | M12: Valeur acquise par épargne résuiduelle après apport au terme durée la plus longue | P12: =AN404 -> 22097.91154 | Q12: =BL404 -> 0 | R12: =BT404 -> 22097.91154 | S12: Critère à prévilégier au même titre que le Coût du Crédit Corrigé | U12: 5 | V12: 5 | W12: 1191.83 | Y12: -1191.83 | AC12: 1023 | AE12: -1023 | AI12: 5 | AJ12: 1191.83 | AK12: 5959.15 | AL12: 2.482979167 | AN12: 20000 | AO12: 8.333333333 | AR12: 1191.83 | AS12: 5959.15 | AT12: 2.482979167 | AV12: 20000 | AW12: 8.333333333 | AZ12: 1023 | BA12: 5115 | BB12: 2.13125 | BD12: 0 | BE12: 0 | BH12: 0 | BI12: 0 | BJ12: 0 | BL12: 0 | BM12: 0 | BP12: 168.83 | BQ12: 844.15 | BR12: 0.3517291667 | BT12: 20000 | BU12: 8.333333333
B13: Frais dossier | E13: 2000 | F13: 3000 | G13: Prêt N° 5 | M13: Valeur acquise par résiduel sur capacité endettement au terme durée la plus longue | P13: =AK404 -> 290593.1417 | Q13: =BI404 -> 62162.79406 | R13: =BQ404 -> 32358.00832 | U13: 6 | V13: 6 | W13: 1191.83 | Y13: -1191.83 | AC13: 1023 | AE13: -1023 | AI13: 6 | AJ13: 1191.83 | AK13: 7150.98 | AL13: 2.979575 | AN13: 20000 | AO13: 8.333333333 | AR13: 1191.83 | AS13: 7150.98 | AT13: 2.979575 | AV13: 20000 | AW13: 8.333333333 | AZ13: 1023 | BA13: 6138 | BB13: 2.5575 | BD13: 0 | BE13: 0 | BH13: 0 | BI13: 0 | BJ13: 0 | BL13: 0 | BM13: 0 | BP13: 168.83 | BQ13: 1012.98 | BR13: 0.422075 | BT13: 20000 | BU13: 8.333333333
B14: Frais garanties | E14: 5000 | F14: 6000 | G14: Prêt N° 6 | M14: Valeur patrimoine financier | P14: =SUM(P12:P13) -> 312691.0533 | Q14: =SUM(Q12:Q13) -> 62162.79406 | R14: 54455.91986 | U14: 7 | V14: 7 | W14: 1191.83 | Y14: -1191.83 | AC14: 1023 | AE14: -1023 | AI14: 7 | AJ14: 1191.83 | AK14: 8342.81 | AL14: 3.476170833 | AN14: 20000 | AO14: 8.333333333 | AR14: 1191.83 | AS14: 8342.81 | AT14: 3.476170833 | AV14: 20000 | AW14: 8.333333333 | AZ14: 1023 | BA14: 7161 | BB14: 2.98375 | BD14: 0 | BE14: 0 | BH14: 0 | BI14: 0 | BJ14: 0 | BL14: 0 | BM14: 0 | BP14: 168.83 | BQ14: 1181.81 | BR14: 0.4924208333 | BT14: 20000 | BU14: 8.333333333
B15: Parts sociales | E15: 3000 | F15: 3000 | G15: Prêt N° 7 | M15: Valeur patrimoine physique sans plus value ni moins value | P15: 0 | Q15: =F8+F9+F10+F11 -> 200000 | R15: =Q15 -> 200000 | U15: 8 | V15: 8 | W15: 1191.83 | Y15: -1191.83 | AC15: 1023 | AE15: -1023 | AI15: 8 | AJ15: 1191.83 | AK15: 9534.64 | AL15: 3.972766667 | AN15: 20000 | AO15: 8.333333333 | AR15: 1191.83 | AS15: 9534.64 | AT15: 3.972766667 | AV15: 20000 | AW15: 8.333333333 | AZ15: 1023 | BA15: 8184 | BB15: 3.41 | BD15: 0 | BE15: 0 | BH15: 0 | BI15: 0 | BJ15: 0 | BL15: 0 | BM15: 0 | BP15: 168.83 | BQ15: 1350.64 | BR15: 0.5627666667 | BT15: 20000 | BU15: 8.333333333
B16: Autres frais initiaux liés aux prêts | G16: Prêt N° 8 | M16: => Valeur patrimoine total | P16: =SUM(P14:P15) -> 312691.0533 | Q16: =SUM(Q14:Q15) -> 262162.7941 | R16: =SUM(R14:R15) -> 254455.9199 | U16: 9 | V16: 9 | W16: 1191.83 | Y16: -1191.83 | AC16: 1023 | AE16: -1023 | AI16: 9 | AJ16: 1191.83 | AK16: 10726.47 | AL16: 4.4693625 | AN16: 20000 | AO16: 8.333333333 | AR16: 1191.83 | AS16: 10726.47 | AT16: 4.4693625 | AV16: 20000 | AW16: 8.333333333 | AZ16: 1023 | BA16: 9207 | BB16: 3.83625 | BD16: 0 | BE16: 0 | BH16: 0 | BI16: 0 | BJ16: 0 | BL16: 0 | BM16: 0 | BP16: 168.83 | BQ16: 1519.47 | BR16: 0.6331125 | BT16: 20000 | BU16: 8.333333333
B17: =IF(AND($E$17<>$I$17,$F$17<>$J$17),"Plans de financements ''A'' et ''B'' non équilibrés",IF($F$17<>$J$17,"Plan de financement ''B'' non équilibré",IF($E$17<>$I$17,"Plan de financement ''A'' non équilibré","Total ''Besoins-Emplois-Dépenses''"))) -> Total ''Besoins-Emplois-Dépenses'' | E17: =SUM(E8:E16) -> 212000 | F17: =SUM(F8:F16) -> 215000 | G17: =IF(AND(E17<>I17,F17<>J17),"Plans de financements ''A'' et ''B'' non équilibrés",IF(E17<>I17,"Plan de financement ''A'' non équilibré",IF(F17<>J17,"Plan de financement ''B'' non équilibré","Total ''Ressources-Recettes''"))) -> Total ''Ressources-Recettes'' | I17: =SUM(I8:I16) -> 212000 | J17: =SUM(J8:J16) -> 215000 | L17: Coût Crédit Corrigé au terme de la durée du prêt le plus long | P17: =P11 -> 0 | Q17: =Q11 -> 50528.25922 | R17: =R11 -> 58235.13342 | S17: Contrôle de cohérence | U17: 10 | V17: 10 | W17: 1191.83 | Y17: -1191.83 | AC17: 1023 | AE17: -1023 | AI17: 10 | AJ17: 1191.83 | AK17: 11918.3 | AL17: 4.965958333 | AN17: 20000 | AO17: 8.333333333 | AR17: 1191.83 | AS17: 11918.3 | AT17: 4.965958333 | AV17: 20000 | AW17: 8.333333333 | AZ17: 1023 | BA17: 10230 | BB17: 4.2625 | BD17: 0 | BE17: 0 | BH17: 0 | BI17: 0 | BJ17: 0 | BL17: 0 | BM17: 0 | BP17: 168.83 | BQ17: 1688.3 | BR17: 0.7034583333 | BT17: 20000 | BU17: 8.333333333
B18: Différence | E18: =IF($E$17>$I$17,$E$17-$I$17,$E$17-$I$17) -> 0 | F18: =IF($F$17>$J$17,$F$17-$J$17,$F$17-$J$17) -> 0 | G18: Différence | I18: =IF($E$17>$I$17,$I$17-$E$17,$I$17-$E$17) -> 0 | J18: =IF($F$17>$J$17,$J$17-$F$17,$J$17-$F$17) -> 0 | L18: Valeur patrimoine total au terme de la durée du prêt le plus long | P18: =P16 -> 312691.0533 | Q18: =Q16 -> 262162.7941 | R18: =R16 -> 254455.9199 | U18: 11 | V18: 11 | W18: 1191.83 | Y18: -1191.83 | AC18: 1023 | AE18: -1023 | AI18: 11 | AJ18: 1191.83 | AK18: 13110.13 | AL18: 5.462554167 | AN18: 20000 | AO18: 8.333333333 | AR18: 1191.83 | AS18: 13110.13 | AT18: 5.462554167 | AV18: 20000 | AW18: 8.333333333 | AZ18: 1023 | BA18: 11253 | BB18: 4.68875 | BD18: 0 | BE18: 0 | BH18: 0 | BI18: 0 | BJ18: 0 | BL18: 0 | BM18: 0 | BP18: 168.83 | BQ18: 1857.13 | BR18: 0.7738041667 | BT18: 20000 | BU18: 8.333333333
L19: Contrôle de cohérence | P19: =SUM(P17:P18) -> 312691.0533 | Q19: =SUM(Q17:Q18) -> 312691.0533 | R19: =SUM(R17:R18) -> 312691.0533 | U19: 12 | V19: 12 | W19: 1191.83 | Y19: -1191.83 | AC19: 1023 | AE19: -1023 | AI19: 12 | AJ19: 1191.83 | AK19: =AK18+AJ19 -> 14301.96 | AL19: 5.95915 | AM19: =SUM(AL8:AL19) -> 38.734475 | AN19: =IF(AI19>$K$21,0,AN18+AP19) -> 20100 | AO19: 8.333333333 | AP19: =SUM(AO8:AO19) -> 100 | AR19: 1191.83 | AS19: =IF(AI19>$K$21,0,AS18+AR19) -> 14301.96 | AT19: 5.95915 | AU19: =SUM(AT8:AT19) -> 38.734475 | AV19: =IF(AI19>$K$21,0,AV18+AX19) -> 20100 | AW19: 8.333333333 | AX19: =SUM(AW8:AW19) -> 100 | AZ19: 1023 | BA19: 12276 | BB19: 5.115 | BC19: =SUM(BB8:BB19) -> 33.2475 | BD19: =IF(AI19>$K$21,0,BD18+BF19) -> 0 | BE19: 0 | BF19: =SUM(BE8:BE19) -> 0 | BH19: 0 | BI19: 0 | BJ19: 0 | BK19: =SUM(BJ8:BJ19) -> 0 | BL19: =IF(AI19>$K$21,0,BL18+BN19) -> 0 | BM19: 0 | BN19: =SUM(BM8:BM19) -> 0 | BP19: 168.83 | BQ19: 2025.96 | BR19: 0.84415 | BS19: =SUM(BR8:BR19) -> 5.486975 | BT19: =IF(AI19>$K$21,0,BT18+BV19) -> 20100 | BU19: 8.333333333 | BV19: =SUM(BU8:BU19) -> 100
B20: Taux de rémunération épargne | E20: 0.005 | F20: Durée du prêt le plus long - éventuel différé externe compris - en mois | I20: Banque "A" | J20: Banque "B" | L20: Meilleure offre de prêt | P20: 0 | Q20: =IF(AND(E20=P22,E20<>P21),"Banque ''A''",IF(AND(P20<>1,Q18=S20),"Banque ''A''","")) -> Banque ''A'' | R20: =IF(AND(E20=P22,E20<>P21),"Banque ''B''",IF(AND(P20<>1,R18=S20),"Banque ''B''","")) ->  | S20: =MAX(Q18,R18) -> 262162.7941 | U20: 13 | V20: 13 | W20: 1191.83 | Y20: -1191.83 | AC20: 1023 | AE20: -1023 | AI20: 13 | AJ20: 1191.83 | AK20: =AK19+AJ20+AM19 -> 15532.52447 | AL20: 6.471885198 | AN20: 20100 | AO20: 8.375 | AR20: 1191.83 | AS20: =IF(AI20>$K$21,0,AS19+AR20+AU19) -> 15532.52447 | AT20: 6.471885198 | AV20: 20100 | AW20: 8.375 | AZ20: 1023 | BA20: =IF(AI20>$K$21,0,BA19+AZ20+BC19) -> 13332.2475 | BB20: 5.555103125 | BD20: 0 | BE20: 0 | BH20: 0 | BI20: =IF(AI20>$K$21,0,BI19+BH20+BK19) -> 0 | BJ20: 0 | BL20: 0 | BM20: 0 | BP20: 168.83 | BQ20: =IF(AI20>$K$21,0,BQ19+BP20+BS19) -> 2200.276975 | BR20: 0.9167820729 | BT20: 20100 | BU20: 8.375
B21: Capacité de remboursement = Capacité d'épargne | E21: =MAX(C426,I426) -> 1191.83 | I21: 180 | J21: 240 | K21: =MAX(I21,J21) -> 240 | L21: Taux Effectif Global Financier (T.A.E.G.F.) | P21: 0.005 | Q21: =Y6 -> 0.02427321245 | R21: =AE6 -> 0.02138809091 | S21: =MIN(Q21,R21) -> 0.02138809091 | U21: 14 | V21: 14 | W21: 1191.83 | Y21: -1191.83 | AC21: 1023 | AE21: -1023 | AI21: 14 | AJ21: 1191.83 | AK21: 16724.35448 | AL21: 6.968481031 | AN21: 20100 | AO21: 8.375 | AR21: 1191.83 | AS21: =IF(AI21>$K$21,0,AS20+AR21) -> 16724.35448 | AT21: 6.968481031 | AV21: 20100 | AW21: 8.375 | AZ21: 1023 | BA21: 14355.2475 | BB21: 5.981353125 | BD21: 0 | BE21: 0 | BH21: 0 | BI21: 0 | BJ21: 0 | BL21: 0 | BM21: 0 | BP21: 168.83 | BQ21: 2369.106975 | BR21: 0.9871279062 | BT21: 20100 | BU21: 8.375
F22: Total des crédits solliicités | I22: =I17-I8 -> 192000 | J22: =J17-J8 -> 215000 | L22: Taux Pivot de Rémunération de l'Epargne | P22: 0.01514336185 | Q22: =Q17-R17 -> -7706.874199 | U22: 15 | V22: 15 | W22: 1191.83 | Y22: -1191.83 | AC22: 1023 | AE22: -1023 | AI22: 15 | AJ22: 1191.83 | AK22: 17916.18448 | AL22: 7.465076865 | AN22: 20100 | AO22: 8.375 | AR22: 1191.83 | AS22: 17916.18448 | AT22: 7.465076865 | AV22: 20100 | AW22: 8.375 | AZ22: 1023 | BA22: 15378.2475 | BB22: 6.407603125 | BD22: 0 | BE22: 0 | BH22: 0 | BI22: 0 | BJ22: 0 | BL22: 0 | BM22: 0 | BP22: 168.83 | BQ22: 2537.936975 | BR22: 1.05747374 | BT22: 20100 | BU22: 8.375
B23: Apport personnel maximum | E23: =MAX(I8,J8) -> 20000 | F23: Total frais inclus dans TAEG | I23: =E12+E13+E14+E15+E16 -> 12000 | J23: =F12+F13+F14+F15+F16 -> 15000 | L23: =IF(AND(E20=P22,E20<>P21),"Au taux pivôt de rémunération de l'épargne les deux offres sont financièrement équivalentes - Ignorez le T.A.E.G.F.",IF(P20=1,"Au taux pivôt de rémunération de l'épargne les ''Coûts du Crédit Corrigé'' et les ''Valeurs du patrimoine'' sont identiques",IF(OR(AND(Q18=S20,Q21>R21),AND(R18=S20,R21>Q21)),"Au taux de rémunération de l'épargne indiqué, le T.A.E.G.F. le plus faible est incohérent avec le Coût du Crédit Corrigé et la Valeur du Patrimoine et oriente vers un mauvais choix","Au taux de rémunération de l'épargne indiqué, le T.A.E.G.F. le plus faible est cohérent avec le Coût du Crédit Corrigé et la Valeur du Patrimoine et oriente vers le bon choix"))) -> Au taux de rémunération de l'épargne indiqué, le T.A.E.G.F. le plus faible est incohérent avec le Coût du Crédit Corrigé et la Valeur du Patrimoine et oriente vers un mauvais choix | U23: 16 | V23: 16 | W23: 1191.83 | Y23: -1191.83 | AC23: 1023 | AE23: -1023 | AI23: 16 | AJ23: 1191.83 | AK23: 19108.01448 | AL23: 7.961672698 | AN23: 20100 | AO23: 8.375 | AR23: 1191.83 | AS23: 19108.01448 | AT23: 7.961672698 | AV23: 20100 | AW23: 8.375 | AZ23: 1023 | BA23: 16401.2475 | BB23: 6.833853125 | BD23: 0 | BE23: 0 | BH23: 0 | BI23: 0 | BJ23: 0 | BL23: 0 | BM23: 0 | BP23: 168.83 | BQ23: 2706.766975 | BR23: 1.127819573 | BT23: 20100 | BU23: 8.375
U24: 17 | V24: 17 | W24: 1191.83 | Y24: -1191.83 | AC24: 1023 | AE24: -1023 | AI24: 17 | AJ24: 1191.83 | AK24: 20299.84448 | AL24: 8.458268531 | AN24: 20100 | AO24: 8.375 | AR24: 1191.83 | AS24: 20299.84448 | AT24: 8.458268531 | AV24: 20100 | AW24: 8.375 | AZ24: 1023 | BA24: 17424.2475 | BB24: 7.260103125 | BD24: 0 | BE24: 0 | BH24: 0 | BI24: 0 | BJ24: 0 | BL24: 0 | BM24: 0 | BP24: 168.83 | BQ24: 2875.596975 | BR24: 1.198165406 | BT24: 20100 | BU24: 8.375
B25: Pour chaque banque "A" et "B" et pour les paliers de durées qui conviennent, saisir les mensualités tous prêts confondus assurances obligatoires et facultatives comprises dans les cellules matérialisées en mauve | U25: 18 | V25: 18 | W25: 1191.83 | Y25: -1191.83 | AC25: 1023 | AE25: -1023 | AI25: 18 | AJ25: 1191.83 | AK25: 21491.67448 | AL25: 8.954864365 | AN25: 20100 | AO25: 8.375 | AR25: 1191.83 | AS25: 21491.67448 | AT25: 8.954864365 | AV25: 20100 | AW25: 8.375 | AZ25: 1023 | BA25: 18447.2475 | BB25: 7.686353125 | BD25: 0 | BE25: 0 | BH25: 0 | BI25: 0 | BJ25: 0 | BL25: 0 | BM25: 0 | BP25: 168.83 | BQ25: 3044.426975 | BR25: 1.26851124 | BT25: 20100 | BU25: 8.375
U26: 19 | V26: 19 | W26: 1191.83 | Y26: -1191.83 | AC26: 1023 | AE26: -1023 | AI26: 19 | AJ26: 1191.83 | AK26: 22683.50448 | AL26: 9.451460198 | AN26: 20100 | AO26: 8.375 | AR26: 1191.83 | AS26: 22683.50448 | AT26: 9.451460198 | AV26: 20100 | AW26: 8.375 | AZ26: 1023 | BA26: 19470.2475 | BB26: 8.112603125 | BD26: 0 | BE26: 0 | BH26: 0 | BI26: 0 | BJ26: 0 | BL26: 0 | BM26: 0 | BP26: 168.83 | BQ26: 3213.256975 | BR26: 1.338857073 | BT26: 20100 | BU26: 8.375
U27: 20 | V27: 20 | W27: 1191.83 | Y27: -1191.83 | AC27: 1023 | AE27: -1023 | AI27: 20 | AJ27: 1191.83 | AK27: 23875.33448 | AL27: 9.948056031 | AN27: 20100 | AO27: 8.375 | AR27: 1191.83 | AS27: 23875.33448 | AT27: 9.948056031 | AV27: 20100 | AW27: 8.375 | AZ27: 1023 | BA27: 20493.2475 | BB27: 8.538853125 | BD27: 0 | BE27: 0 | BH27: 0 | BI27: 0 | BJ27: 0 | BL27: 0 | BM27: 0 | BP27: 168.83 | BQ27: 3382.086975 | BR27: 1.409202906 | BT27: 20100 | BU27: 8.375
U28: 21 | V28: 21 | W28: 1191.83 | Y28: -1191.83 | AC28: 1023 | AE28: -1023 | AI28: 21 | AJ28: 1191.83 | AK28: 25067.16448 | AL28: 10.44465186 | AN28: 20100 | AO28: 8.375 | AR28: 1191.83 | AS28: 25067.16448 | AT28: 10.44465186 | AV28: 20100 | AW28: 8.375 | AZ28: 1023 | BA28: 21516.2475 | BB28: 8.965103125 | BD28: 0 | BE28: 0 | BH28: 0 | BI28: 0 | BJ28: 0 | BL28: 0 | BM28: 0 | BP28: 168.83 | BQ28: 3550.916975 | BR28: 1.47954874 | BT28: 20100 | BU28: 8.375
B29: Echéance totale Banque "A" | E29: =I21 -> 180 | F29: Durée en mois | G29: =J21 -> 240 | H29: Echéance totale Banque "B" | U29: 22 | V29: 22 | W29: 1191.83 | Y29: -1191.83 | AC29: 1023 | AE29: -1023 | AI29: 22 | AJ29: 1191.83 | AK29: 26258.99448 | AL29: 10.9412477 | AN29: 20100 | AO29: 8.375 | AR29: 1191.83 | AS29: 26258.99448 | AT29: 10.9412477 | AV29: 20100 | AW29: 8.375 | AZ29: 1023 | BA29: 22539.2475 | BB29: 9.391353125 | BD29: 0 | BE29: 0 | BH29: 0 | BI29: 0 | BJ29: 0 | BL29: 0 | BM29: 0 | BP29: 168.83 | BQ29: 3719.746975 | BR29: 1.549894573 | BT29: 20100 | BU29: 8.375
B30: 1 | C30: =D30 -> 1191.83 | D30: 1191.83 | E30: ATTENTION La durée maximale prévue est de 396 mois ce qui pourrait correspondre à un différé externe/anticipation de 36 mois et une phase d'amortissement maximale de 360 mois. Mais, dans cet applicatif, le raisonnement repose uniquement sur les ''échéances assurances comprises'' saisies et, de ce fait, aucun contrôle n'est possible. Ce sont donc les montants d'échéances saisis qui, quels qu'ils soient, seront pris en considération pour les calculs comparatifs. Il va donc sans dire que la pertinence des résultats obtenus repose tant sur l'exactitude des montants d'échéances renseignés que sur les durées de leurs éventuels paliers. | H30: 1 | I30: =J30 -> 1023 | J30: 1023 | U30: 23 | V30: 23 | W30: 1191.83 | Y30: -1191.83 | AC30: 1023 | AE30: -1023 | AI30: 23 | AJ30: 1191.83 | AK30: 27450.82448 | AL30: 11.43784353 | AN30: 20100 | AO30: 8.375 | AR30: 1191.83 | AS30: 27450.82448 | AT30: 11.43784353 | AV30: 20100 | AW30: 8.375 | AZ30: 1023 | BA30: 23562.2475 | BB30: 9.817603125 | BD30: 0 | BE30: 0 | BH30: 0 | BI30: 0 | BJ30: 0 | BL30: 0 | BM30: 0 | BP30: 168.83 | BQ30: 3888.576975 | BR30: 1.620240406 | BT30: 20100 | BU30: 8.375
B31: 2 | C31: =IF(B31>$I$21,0,IF(AND(D31<>C30,D31<>0),D31,C30)) -> 1191.83 | H31: 2 | I31: =IF(H31>$J$21,0,IF(AND(J31<>I30,J31<>0),J31,I30)) -> 1023 | U31: 24 | V31: 24 | W31: 1191.83 | Y31: -1191.83 | AC31: 1023 | AE31: -1023 | AI31: 24 | AJ31: 1191.83 | AK31: =IF(AI31>$K$21,0,AK30+AJ31) -> 28642.65448 | AL31: =AK31*$E$20/12 -> 11.93443936 | AM31: =SUM(AL20:AL31) -> 110.4379474 | AN31: =IF(AI31>$K$21,0,AN30+AP31) -> 20200.5 | AO31: 8.375 | AP31: =SUM(AO20:AO31) -> 100.5 | AR31: 1191.83 | AS31: =IF(AI31>$K$21,0,AS30+AR31) -> 28642.65448 | AT31: 11.93443936 | AU31: =SUM(AT20:AT31) -> 110.4379474 | AV31: =IF(AI31>$K$21,0,AV30+AX31) -> 20200.5 | AW31: =IF(AI31>$K$21,0,AV30*$E$20/12) -> 8.375 | AX31: =SUM(AW20:AW31) -> 100.5 | AZ31: 1023 | BA31: =IF(AI31>$K$21,0,BA30+AZ31) -> 24585.2475 | BB31: 10.24385312 | BC31: =SUM(BB20:BB31) -> 94.7937375 | BD31: =IF(AI31>$K$21,0,BD30+BF31) -> 0 | BE31: =IF(AI31>$K$21,0,BD30*$E$20/12) -> 0 | BF31: =SUM(BE20:BE31) -> 0 | BH31: 0 | BI31: =IF(V31>$K$21,0,BI30+BH31) -> 0 | BJ31: 0 | BK31: =SUM(BJ20:BJ31) -> 0 | BL31: =IF(AI31>$K$21,0,BL30+BN31) -> 0 | BM31: =IF(AI31>$K$21,0,BL30*$E$20/12) -> 0 | BN31: =SUM(BM20:BM31) -> 0 | BP31: 168.83 | BQ31: =IF(AI31>$K$21,0,BQ30+BP31) -> 4057.406975 | BR31: 1.69058624 | BS31: =SUM(BR20:BR31) -> 15.64420987 | BT31: =IF(AI31>$K$21,0,BT30+BV31) -> 20200.5 | BU31: 8.375 | BV31: =SUM(BU20:BU31) -> 100.5
B32: 3 | C32: =IF(B32>$I$21,0,IF(AND(D32<>C31,D32<>0),D32,C31)) -> 1191.83 | H32: 3 | I32: =IF(H32>$J$21,0,IF(AND(J32<>I31,J32<>0),J32,I31)) -> 1023 | U32: 25 | V32: 25 | W32: 1191.83 | Y32: -1191.83 | AC32: 1023 | AE32: -1023 | AI32: 25 | AJ32: 1191.83 | AK32: =IF(AI32>$K$21,0,AK31+AJ32+AM31) -> 29944.92242 | AL32: 12.47705101 | AN32: 20200.5 | AO32: 8.416875 | AR32: 1191.83 | AS32: =IF(AI32>$K$21,0,AS31+AR32+AU31) -> 29944.92242 | AT32: 12.47705101 | AV32: =IF(AI32>$K$21,0,AV31) -> 20200.5 | AW32: 8.416875 | AZ32: 1023 | BA32: =IF(AI32>$K$21,0,BA31+AZ32+BC31) -> 25703.04124 | BB32: 10.70960052 | BD32: =IF(AI32>$K$21,0,BD31) -> 0 | BE32: 0 | BH32: 0 | BI32: =IF(AI32>$K$21,0,BI31+BH32+BK31) -> 0 | BJ32: 0 | BL32: =IF(AI32>$K$21,0,BL31) -> 0 | BM32: 0 | BP32: 168.83 | BQ32: =IF(AI32>$K$21,0,BQ31+BP32+BS31) -> 4241.881185 | BR32: 1.767450494 | BT32: =IF(AI32>$K$21,0,BT31) -> 20200.5 | BU32: 8.416875
B33: 4 | C33: =IF(B33>$I$21,0,IF(AND(D33<>C32,D33<>0),D33,C32)) -> 1191.83 | H33: 4 | I33: 1023 | U33: 26 | V33: 26 | W33: 1191.83 | Y33: -1191.83 | AC33: 1023 | AE33: -1023 | AI33: 26 | AJ33: 1191.83 | AK33: 31136.75242 | AL33: 12.97364684 | AN33: 20200.5 | AO33: 8.416875 | AR33: 1191.83 | AS33: =IF(AI33>$K$21,0,AS32+AR33) -> 31136.75242 | AT33: 12.97364684 | AV33: 20200.5 | AW33: 8.416875 | AZ33: 1023 | BA33: 26726.04124 | BB33: 11.13585052 | BD33: 0 | BE33: 0 | BH33: 0 | BI33: 0 | BJ33: 0 | BL33: 0 | BM33: 0 | BP33: 168.83 | BQ33: 4410.711185 | BR33: 1.837796327 | BT33: 20200.5 | BU33: 8.416875
B34: 5 | C34: 1191.83 | H34: 5 | I34: 1023 | U34: 27 | V34: 27 | W34: 1191.83 | Y34: -1191.83 | AC34: 1023 | AE34: -1023 | AI34: 27 | AJ34: 1191.83 | AK34: 32328.58242 | AL34: 13.47024268 | AN34: 20200.5 | AO34: 8.416875 | AR34: 1191.83 | AS34: 32328.58242 | AT34: 13.47024268 | AV34: 20200.5 | AW34: 8.416875 | AZ34: 1023 | BA34: 27749.04124 | BB34: 11.56210052 | BD34: 0 | BE34: 0 | BH34: 0 | BI34: 0 | BJ34: 0 | BL34: 0 | BM34: 0 | BP34: 168.83 | BQ34: 4579.541185 | BR34: 1.90814216 | BT34: 20200.5 | BU34: 8.416875
B35: 6 | C35: 1191.83 | H35: 6 | I35: 1023 | U35: 28 | V35: 28 | W35: 1191.83 | Y35: -1191.83 | AC35: 1023 | AE35: -1023 | AI35: 28 | AJ35: 1191.83 | AK35: 33520.41242 | AL35: 13.96683851 | AN35: 20200.5 | AO35: 8.416875 | AR35: 1191.83 | AS35: 33520.41242 | AT35: 13.96683851 | AV35: 20200.5 | AW35: 8.416875 | AZ35: 1023 | BA35: 28772.04124 | BB35: 11.98835052 | BD35: 0 | BE35: 0 | BH35: 0 | BI35: 0 | BJ35: 0 | BL35: 0 | BM35: 0 | BP35: 168.83 | BQ35: 4748.371185 | BR35: 1.978487994 | BT35: 20200.5 | BU35: 8.416875
B36: 7 | C36: 1191.83 | H36: 7 | I36: 1023 | U36: 29 | V36: 29 | W36: 1191.83 | Y36: -1191.83 | AC36: 1023 | AE36: -1023 | AI36: 29 | AJ36: 1191.83 | AK36: 34712.24242 | AL36: 14.46343434 | AN36: 20200.5 | AO36: 8.416875 | AR36: 1191.83 | AS36: 34712.24242 | AT36: 14.46343434 | AV36: 20200.5 | AW36: 8.416875 | AZ36: 1023 | BA36: 29795.04124 | BB36: 12.41460052 | BD36: 0 | BE36: 0 | BH36: 0 | BI36: 0 | BJ36: 0 | BL36: 0 | BM36: 0 | BP36: 168.83 | BQ36: 4917.201185 | BR36: 2.048833827 | BT36: 20200.5 | BU36: 8.416875
B37: 8 | C37: 1191.83 | H37: 8 | I37: 1023 | U37: 30 | V37: 30 | W37: 1191.83 | Y37: -1191.83 | AC37: 1023 | AE37: -1023 | AI37: 30 | AJ37: 1191.83 | AK37: 35904.07242 | AL37: 14.96003018 | AN37: 20200.5 | AO37: 8.416875 | AR37: 1191.83 | AS37: 35904.07242 | AT37: 14.96003018 | AV37: 20200.5 | AW37: 8.416875 | AZ37: 1023 | BA37: 30818.04124 | BB37: 12.84085052 | BD37: 0 | BE37: 0 | BH37: 0 | BI37: 0 | BJ37: 0 | BL37: 0 | BM37: 0 | BP37: 168.83 | BQ37: 5086.031185 | BR37: 2.11917966 | BT37: 20200.5 | BU37: 8.416875
B38: 9 | C38: 1191.83 | H38: 9 | I38: 1023 | U38: 31 | V38: 31 | W38: 1191.83 | Y38: -1191.83 | AC38: 1023 | AE38: -1023 | AI38: 31 | AJ38: 1191.83 | AK38: 37095.90242 | AL38: 15.45662601 | AN38: 20200.5 | AO38: 8.416875 | AR38: 1191.83 | AS38: 37095.90242 | AT38: 15.45662601 | AV38: 20200.5 | AW38: 8.416875 | AZ38: 1023 | BA38: 31841.04124 | BB38: 13.26710052 | BD38: 0 | BE38: 0 | BH38: 0 | BI38: 0 | BJ38: 0 | BL38: 0 | BM38: 0 | BP38: 168.83 | BQ38: 5254.861185 | BR38: 2.189525494 | BT38: 20200.5 | BU38: 8.416875
B39: 10 | C39: 1191.83 | H39: 10 | I39: 1023 | U39: 32 | V39: 32 | W39: 1191.83 | Y39: -1191.83 | AC39: 1023 | AE39: -1023 | AI39: 32 | AJ39: 1191.83 | AK39: 38287.73242 | AL39: 15.95322184 | AN39: 20200.5 | AO39: 8.416875 | AR39: 1191.83 | AS39: 38287.73242 | AT39: 15.95322184 | AV39: 20200.5 | AW39: 8.416875 | AZ39: 1023 | BA39: 32864.04124 | BB39: 13.69335052 | BD39: 0 | BE39: 0 | BH39: 0 | BI39: 0 | BJ39: 0 | BL39: 0 | BM39: 0 | BP39: 168.83 | BQ39: 5423.691185 | BR39: 2.259871327 | BT39: 20200.5 | BU39: 8.416875
B40: 11 | C40: 1191.83 | H40: 11 | I40: 1023 | U40: 33 | V40: 33 | W40: 1191.83 | Y40: -1191.83 | AC40: 1023 | AE40: -1023 | AI40: 33 | AJ40: 1191.83 | AK40: 39479.56242 | AL40: 16.44981768 | AN40: 20200.5 | AO40: 8.416875 | AR40: 1191.83 | AS40: 39479.56242 | AT40: 16.44981768 | AV40: 20200.5 | AW40: 8.416875 | AZ40: 1023 | BA40: 33887.04124 | BB40: 14.11960052 | BD40: 0 | BE40: 0 | BH40: 0 | BI40: 0 | BJ40: 0 | BL40: 0 | BM40: 0 | BP40: 168.83 | BQ40: 5592.521185 | BR40: 2.33021716 | BT40: 20200.5 | BU40: 8.416875
B41: 12 | C41: 1191.83 | H41: 12 | I41: 1023 | U41: 34 | V41: 34 | W41: 1191.83 | Y41: -1191.83 | AC41: 1023 | AE41: -1023 | AI41: 34 | AJ41: 1191.83 | AK41: 40671.39242 | AL41: 16.94641351 | AN41: 20200.5 | AO41: 8.416875 | AR41: 1191.83 | AS41: 40671.39242 | AT41: 16.94641351 | AV41: 20200.5 | AW41: 8.416875 | AZ41: 1023 | BA41: 34910.04124 | BB41: 14.54585052 | BD41: 0 | BE41: 0 | BH41: 0 | BI41: 0 | BJ41: 0 | BL41: 0 | BM41: 0 | BP41: 168.83 | BQ41: 5761.351185 | BR41: 2.400562994 | BT41: 20200.5 | BU41: 8.416875
B42: 13 | C42: 1191.83 | H42: 13 | I42: 1023 | U42: 35 | V42: 35 | W42: 1191.83 | Y42: -1191.83 | AC42: 1023 | AE42: -1023 | AI42: 35 | AJ42: 1191.83 | AK42: 41863.22242 | AL42: 17.44300934 | AN42: 20200.5 | AO42: 8.416875 | AR42: 1191.83 | AS42: 41863.22242 | AT42: 17.44300934 | AV42: 20200.5 | AW42: 8.416875 | AZ42: 1023 | BA42: 35933.04124 | BB42: 14.97210052 | BD42: 0 | BE42: 0 | BH42: 0 | BI42: 0 | BJ42: 0 | BL42: 0 | BM42: 0 | BP42: 168.83 | BQ42: 5930.181185 | BR42: 2.470908827 | BT42: 20200.5 | BU42: 8.416875
B43: 14 | C43: 1191.83 | H43: 14 | I43: 1023 | U43: 36 | V43: 36 | W43: 1191.83 | Y43: -1191.83 | AC43: 1023 | AE43: -1023 | AI43: 36 | AJ43: 1191.83 | AK43: =IF(AI43>$K$21,0,AK42+AJ43) -> 43055.05242 | AL43: =AK43*$E$20/12 -> 17.93960518 | AM43: =SUM(AL32:AL43) -> 182.4999371 | AN43: =IF(AI43>$K$21,0,AN42+AP43) -> 20301.5025 | AO43: 8.416875 | AP43: =SUM(AO32:AO43) -> 101.0025 | AR43: 1191.83 | AS43: =IF(AI43>$K$21,0,AS42+AR43) -> 43055.05242 | AT43: 17.93960518 | AU43: =SUM(AT32:AT43) -> 182.4999371 | AV43: =IF(AI43>$K$21,0,AV42+AX43) -> 20301.5025 | AW43: 8.416875 | AX43: =SUM(AW32:AW43) -> 101.0025 | AZ43: 1023 | BA43: 36956.04124 | BB43: 15.39835052 | BC43: =SUM(BB32:BB43) -> 156.6477062 | BD43: =IF(AI43>$K$21,0,BD42+BF43) -> 0 | BE43: 0 | BF43: =SUM(BE32:BE43) -> 0 | BH43: 0 | BI43: 0 | BJ43: 0 | BK43: =SUM(BJ32:BJ43) -> 0 | BL43: =IF(AI43>$K$21,0,BL42+BN43) -> 0 | BM43: 0 | BN43: =SUM(BM32:BM43) -> 0 | BP43: 168.83 | BQ43: 6099.011185 | BR43: 2.54125466 | BS43: =SUM(BR32:BR43) -> 25.85223092 | BT43: =IF(AI43>$K$21,0,BT42+BV43) -> 20301.5025 | BU43: 8.416875 | BV43: =SUM(BU32:BU43) -> 101.0025
B44: 15 | C44: 1191.83 | H44: 15 | I44: 1023 | U44: 37 | V44: 37 | W44: 1191.83 | Y44: -1191.83 | AC44: 1023 | AE44: -1023 | AI44: 37 | AJ44: 1191.83 | AK44: =IF(AI44>$K$21,0,AK43+AJ44+AM43) -> 44429.38236 | AL44: 18.51224265 | AN44: 20301.5025 | AO44: 8.458959375 | AR44: 1191.83 | AS44: =IF(AI44>$K$21,0,AS43+AR44+AU43) -> 44429.38236 | AT44: 18.51224265 | AV44: =IF(AI44>$K$21,0,AV43) -> 20301.5025 | AW44: 8.458959375 | AZ44: 1023 | BA44: =IF(AI44>$K$21,0,BA43+AZ44+BC43) -> 38135.68894 | BB44: 15.88987039 | BD44: =IF(AI44>$K$21,0,BD43) -> 0 | BE44: 0 | BH44: 0 | BI44: =IF(AI44>$K$21,0,BI43+BH44+BK43) -> 0 | BJ44: 0 | BL44: =IF(AI44>$K$21,0,BL43) -> 0 | BM44: 0 | BP44: 168.83 | BQ44: =IF(AI44>$K$21,0,BQ43+BP44+BS43) -> 6293.693416 | BR44: 2.622372257 | BT44: =IF(AI44>$K$21,0,BT43) -> 20301.5025 | BU44: 8.458959375
B45: 16 | C45: 1191.83 | H45: 16 | I45: 1023 | U45: 38 | V45: 38 | W45: 1191.83 | Y45: -1191.83 | AC45: 1023 | AE45: -1023 | AI45: 38 | AJ45: 1191.83 | AK45: =AK44+AJ45 -> 45621.21236 | AL45: 19.00883848 | AN45: 20301.5025 | AO45: 8.458959375 | AR45: 1191.83 | AS45: =IF(AI45>$K$21,0,AS44+AR45) -> 45621.21236 | AT45: 19.00883848 | AV45: 20301.5025 | AW45: 8.458959375 | AZ45: 1023 | BA45: 39158.68894 | BB45: 16.31612039 | BD45: 0 | BE45: 0 | BH45: 0 | BI45: 0 | BJ45: 0 | BL45: 0 | BM45: 0 | BP45: 168.83 | BQ45: 6462.523416 | BR45: 2.69271809 | BT45: 20301.5025 | BU45: 8.458959375
B46: 17 | C46: 1191.83 | H46: 17 | I46: 1023 | U46: 39 | V46: 39 | W46: 1191.83 | Y46: -1191.83 | AC46: 1023 | AE46: -1023 | AI46: 39 | AJ46: 1191.83 | AK46: 46813.04236 | AL46: 19.50543432 | AN46: 20301.5025 | AO46: 8.458959375 | AR46: 1191.83 | AS46: 46813.04236 | AT46: 19.50543432 | AV46: 20301.5025 | AW46: 8.458959375 | AZ46: 1023 | BA46: 40181.68894 | BB46: 16.74237039 | BD46: 0 | BE46: 0 | BH46: 0 | BI46: 0 | BJ46: 0 | BL46: 0 | BM46: 0 | BP46: 168.83 | BQ46: 6631.353416 | BR46: 2.763063923 | BT46: 20301.5025 | BU46: 8.458959375
B47: 18 | C47: 1191.83 | H47: 18 | I47: 1023 | U47: 40 | V47: 40 | W47: 1191.83 | Y47: -1191.83 | AC47: 1023 | AE47: -1023 | AI47: 40 | AJ47: 1191.83 | AK47: 48004.87236 | AL47: 20.00203015 | AN47: 20301.5025 | AO47: 8.458959375 | AR47: 1191.83 | AS47: 48004.87236 | AT47: 20.00203015 | AV47: 20301.5025 | AW47: 8.458959375 | AZ47: 1023 | BA47: 41204.68894 | BB47: 17.16862039 | BD47: 0 | BE47: 0 | BH47: 0 | BI47: 0 | BJ47: 0 | BL47: 0 | BM47: 0 | BP47: 168.83 | BQ47: 6800.183416 | BR47: 2.833409757 | BT47: 20301.5025 | BU47: 8.458959375
B48: 19 | C48: 1191.83 | H48: 19 | I48: 1023 | U48: 41 | V48: 41 | W48: 1191.83 | Y48: -1191.83 | AC48: 1023 | AE48: -1023 | AI48: 41 | AJ48: 1191.83 | AK48: 49196.70236 | AL48: 20.49862598 | AN48: 20301.5025 | AO48: 8.458959375 | AR48: 1191.83 | AS48: 49196.70236 | AT48: 20.49862598 | AV48: 20301.5025 | AW48: 8.458959375 | AZ48: 1023 | BA48: 42227.68894 | BB48: 17.59487039 | BD48: 0 | BE48: 0 | BH48: 0 | BI48: 0 | BJ48: 0 | BL48: 0 | BM48: 0 | BP48: 168.83 | BQ48: 6969.013416 | BR48: 2.90375559 | BT48: 20301.5025 | BU48: 8.458959375
B49: 20 | C49: 1191.83 | H49: 20 | I49: 1023 | U49: 42 | V49: 42 | W49: 1191.83 | Y49: -1191.83 | AC49: 1023 | AE49: -1023 | AI49: 42 | AJ49: 1191.83 | AK49: 50388.53236 | AL49: 20.99522182 | AN49: 20301.5025 | AO49: 8.458959375 | AR49: 1191.83 | AS49: 50388.53236 | AT49: 20.99522182 | AV49: 20301.5025 | AW49: 8.458959375 | AZ49: 1023 | BA49: 43250.68894 | BB49: 18.02112039 | BD49: 0 | BE49: 0 | BH49: 0 | BI49: 0 | BJ49: 0 | BL49: 0 | BM49: 0 | BP49: 168.83 | BQ49: 7137.843416 | BR49: 2.974101423 | BT49: 20301.5025 | BU49: 8.458959375
B50: 21 | C50: 1191.83 | E50: ATTENTION Les TAEGF indiqués dans les cellules ''Q21'' et ''R21'' ci-contre ne sont pas les ''TAEG légaux'' qui sont calculés ''prêt par prêt" et ne prennent en considération que les seules charges rendues obligatoires ce qui exclut donc les primes d'assurances facultatives. De ce fait, entre autres éléments (apport personnel et/ou durées différents) dans sa prétendue fonction de critère de choix/comparaisons d'offres concurrentes, ce critère est très souvent dénué de toute fiablité et pertinence: => C'EST TRES SOUVENT DE LA FOUTAISE Les TAEGF indiqués dans ces cellules sont les ''TAEG Financiers'' qui - au contraire - sont calculés sur l'ensemble de tous les prêts composant le plan de financement et en intégrant toutes les charges qu'elles soient obligatoires ou facultatives. Ainsi trois des inconvénients du ''TAEG légal'' sont supprimés: + Un seul TAEG pour l'ensemble des crédits composant le plan de financement . + Toutes les charges/dépenses obligatoires et facultatives supportées par l'emrunteur intégrées + Mauvaise répartition éventuelle des frais de dossier, parts sociales et frais de garanties (puisque ''tous prêts confondus'') Cependant subsistent toujours: + L'éventuelle différence d'apport personel qui est un crédit que l'emprunteur se consent à lui même au taux de son épargne + L'éventuelle différence de la durée maximale des prêts inclus dans les plans de financement à comparer. => POUR REMEDIER A CES INCONVENIENTS IL CONVIENT DE COMPARER LES COÛTS DU CREDIT CORRIGES ET/OU LA VALEUR TOTALE DU PATRIMOINE ACQUIS AU TERME DE LA DUREE LA PLUS LONGUE. | H50: 21 | I50: 1023 | U50: 43 | V50: 43 | W50: 1191.83 | Y50: -1191.83 | AC50: 1023 | AE50: -1023 | AI50: 43 | AJ50: 1191.83 | AK50: 51580.36236 | AL50: 21.49181765 | AN50: 20301.5025 | AO50: 8.458959375 | AR50: 1191.83 | AS50: 51580.36236 | AT50: 21.49181765 | AV50: 20301.5025 | AW50: 8.458959375 | AZ50: 1023 | BA50: 44273.68894 | BB50: 18.44737039 | BD50: 0 | BE50: 0 | BH50: 0 | BI50: 0 | BJ50: 0 | BL50: 0 | BM50: 0 | BP50: 168.83 | BQ50: 7306.673416 | BR50: 3.044447257 | BT50: 20301.5025 | BU50: 8.458959375
B51: 22 | C51: 1191.83 | H51: 22 | I51: 1023 | U51: 44 | V51: 44 | W51: 1191.83 | Y51: -1191.83 | AC51: 1023 | AE51: -1023 | AI51: 44 | AJ51: 1191.83 | AK51: 52772.19236 | AL51: 21.98841348 | AN51: 20301.5025 | AO51: 8.458959375 | AR51: 1191.83 | AS51: 52772.19236 | AT51: 21.98841348 | AV51: 20301.5025 | AW51: 8.458959375 | AZ51: 1023 | BA51: 45296.68894 | BB51: 18.87362039 | BD51: 0 | BE51: 0 | BH51: 0 | BI51: 0 | BJ51: 0 | BL51: 0 | BM51: 0 | BP51: 168.83 | BQ51: 7475.503416 | BR51: 3.11479309 | BT51: 20301.5025 | BU51: 8.458959375
B52: 23 | C52: 1191.83 | H52: 23 | I52: 1023 | U52: 45 | V52: 45 | W52: 1191.83 | Y52: -1191.83 | AC52: 1023 | AE52: -1023 | AI52: 45 | AJ52: 1191.83 | AK52: 53964.02236 | AL52: 22.48500932 | AN52: 20301.5025 | AO52: 8.458959375 | AR52: 1191.83 | AS52: 53964.02236 | AT52: 22.48500932 | AV52: 20301.5025 | AW52: 8.458959375 | AZ52: 1023 | BA52: 46319.68894 | BB52: 19.29987039 | BD52: 0 | BE52: 0 | BH52: 0 | BI52: 0 | BJ52: 0 | BL52: 0 | BM52: 0 | BP52: 168.83 | BQ52: 7644.333416 | BR52: 3.185138923 | BT52: 20301.5025 | BU52: 8.458959375
B53: 24 | C53: 1191.83 | H53: 24 | I53: 1023 | U53: 46 | V53: 46 | W53: 1191.83 | Y53: -1191.83 | AC53: 1023 | AE53: -1023 | AI53: 46 | AJ53: 1191.83 | AK53: 55155.85236 | AL53: 22.98160515 | AN53: 20301.5025 | AO53: 8.458959375 | AR53: 1191.83 | AS53: 55155.85236 | AT53: 22.98160515 | AV53: 20301.5025 | AW53: 8.458959375 | AZ53: 1023 | BA53: 47342.68894 | BB53: 19.72612039 | BD53: 0 | BE53: 0 | BH53: 0 | BI53: 0 | BJ53: 0 | BL53: 0 | BM53: 0 | BP53: 168.83 | BQ53: 7813.163416 | BR53: 3.255484757 | BT53: 20301.5025 | BU53: 8.458959375
B54: 25 | C54: 1191.83 | H54: 25 | I54: 1023 | U54: 47 | V54: 47 | W54: 1191.83 | Y54: -1191.83 | AC54: 1023 | AE54: -1023 | AI54: 47 | AJ54: 1191.83 | AK54: 56347.68236 | AL54: 23.47820098 | AN54: 20301.5025 | AO54: 8.458959375 | AR54: 1191.83 | AS54: 56347.68236 | AT54: 23.47820098 | AV54: 20301.5025 | AW54: 8.458959375 | AZ54: 1023 | BA54: 48365.68894 | BB54: 20.15237039 | BD54: 0 | BE54: 0 | BH54: 0 | BI54: 0 | BJ54: 0 | BL54: 0 | BM54: 0 | BP54: 168.83 | BQ54: 7981.993416 | BR54: 3.32583059 | BT54: 20301.5025 | BU54: 8.458959375
B55: 26 | C55: 1191.83 | H55: 26 | I55: 1023 | U55: 48 | V55: 48 | W55: 1191.83 | Y55: -1191.83 | AC55: 1023 | AE55: -1023 | AI55: 48 | AJ55: 1191.83 | AK55: =IF(AI55>$K$21,0,AK54+AJ55) -> 57539.51236 | AL55: =AK55*$E$20/12 -> 23.97479682 | AM55: =SUM(AL44:AL55) -> 254.9222368 | AN55: =IF(AI55>$K$21,0,AN54+AP55) -> 20403.01001 | AO55: 8.458959375 | AP55: =SUM(AO44:AO55) -> 101.5075125 | AR55: 1191.83 | AS55: =IF(AI55>$K$21,0,AS54+AR55) -> 57539.51236 | AT55: 23.97479682 | AU55: =SUM(AT44:AT55) -> 254.9222368 | AV55: =IF(AI55>$K$21,0,AV54+AX55) -> 20403.01001 | AW55: 8.458959375 | AX55: =SUM(AW44:AW55) -> 101.5075125 | AZ55: 1023 | BA55: 49388.68894 | BB55: 20.57862039 | BC55: =SUM(BB44:BB55) -> 218.8109447 | BD55: =IF(AI55>$K$21,0,BD54+BF55) -> 0 | BE55: 0 | BF55: =SUM(BE44:BE55) -> 0 | BH55: 0 | BI55: 0 | BJ55: 0 | BK55: =SUM(BJ44:BJ55) -> 0 | BL55: =IF(AI55>$K$21,0,BL54+BN55) -> 0 | BM55: 0 | BN55: =SUM(BM44:BM55) -> 0 | BP55: 168.83 | BQ55: 8150.823416 | BR55: 3.396176423 | BS55: =SUM(BR44:BR55) -> 36.11129208 | BT55: =IF(AI55>$K$21,0,BT54+BV55) -> 20403.01001 | BU55: 8.458959375 | BV55: =SUM(BU44:BU55) -> 101.5075125
B56: 27 | C56: 1191.83 | H56: 27 | I56: 1023 | U56: 49 | V56: 49 | W56: 1191.83 | Y56: -1191.83 | AC56: 1023 | AE56: -1023 | AI56: 49 | AJ56: 1191.83 | AK56: =IF(AI56>$K$21,0,AK55+AJ56+AM55) -> 58986.2646 | AL56: 24.57761025 | AN56: 20403.01001 | AO56: 8.501254172 | AR56: 1191.83 | AS56: =IF(AI56>$K$21,0,AS55+AR56+AU55) -> 58986.2646 | AT56: 24.57761025 | AV56: =IF(AI56>$K$21,0,AV55) -> 20403.01001 | AW56: 8.501254172 | AZ56: 1023 | BA56: =IF(AI56>$K$21,0,BA55+AZ56+BC55) -> 50630.49989 | BB56: 21.09604162 | BD56: =IF(AI56>$K$21,0,BD55) -> 0 | BE56: 0 | BH56: 0 | BI56: =IF(AI56>$K$21,0,BI55+BH56+BK55) -> 0 | BJ56: 0 | BL56: =IF(AI56>$K$21,0,BL55) -> 0 | BM56: 0 | BP56: 168.83 | BQ56: =IF(AI56>$K$21,0,BQ55+BP56+BS55) -> 8355.764708 | BR56: 3.481568628 | BT56: =IF(AI56>$K$21,0,BT55) -> 20403.01001 | BU56: 8.501254172
B57: 28 | C57: 1191.83 | H57: 28 | I57: 1023 | U57: 50 | V57: 50 | W57: 1191.83 | Y57: -1191.83 | AC57: 1023 | AE57: -1023 | AI57: 50 | AJ57: 1191.83 | AK57: =AK56+AJ57 -> 60178.0946 | AL57: 25.07420608 | AN57: 20403.01001 | AO57: 8.501254172 | AR57: 1191.83 | AS57: =IF(AI57>$K$21,0,AS56+AR57) -> 60178.0946 | AT57: 25.07420608 | AV57: 20403.01001 | AW57: 8.501254172 | AZ57: 1023 | BA57: 51653.49989 | BB57: 21.52229162 | BD57: 0 | BE57: 0 | BH57: 0 | BI57: 0 | BJ57: 0 | BL57: 0 | BM57: 0 | BP57: 168.83 | BQ57: 8524.594708 | BR57: 3.551914462 | BT57: 20403.01001 | BU57: 8.501254172
B58: 29 | C58: 1191.83 | H58: 29 | I58: 1023 | U58: 51 | V58: 51 | W58: 1191.83 | Y58: -1191.83 | AC58: 1023 | AE58: -1023 | AI58: 51 | AJ58: 1191.83 | AK58: 61369.9246 | AL58: 25.57080192 | AN58: 20403.01001 | AO58: 8.501254172 | AR58: 1191.83 | AS58: 61369.9246 | AT58: 25.57080192 | AV58: 20403.01001 | AW58: 8.501254172 | AZ58: 1023 | BA58: 52676.49989 | BB58: 21.94854162 | BD58: 0 | BE58: 0 | BH58: 0 | BI58: 0 | BJ58: 0 | BL58: 0 | BM58: 0 | BP58: 168.83 | BQ58: 8693.424708 | BR58: 3.622260295 | BT58: 20403.01001 | BU58: 8.501254172
B59: 30 | C59: 1191.83 | H59: 30 | I59: 1023 | U59: 52 | V59: 52 | W59: 1191.83 | Y59: -1191.83 | AC59: 1023 | AE59: -1023 | AI59: 52 | AJ59: 1191.83 | AK59: 62561.7546 | AL59: 26.06739775 | AN59: 20403.01001 | AO59: 8.501254172 | AR59: 1191.83 | AS59: 62561.7546 | AT59: 26.06739775 | AV59: 20403.01001 | AW59: 8.501254172 | AZ59: 1023 | BA59: 53699.49989 | BB59: 22.37479162 | BD59: 0 | BE59: 0 | BH59: 0 | BI59: 0 | BJ59: 0 | BL59: 0 | BM59: 0 | BP59: 168.83 | BQ59: 8862.254708 | BR59: 3.692606128 | BT59: 20403.01001 | BU59: 8.501254172
B60: 31 | C60: 1191.83 | H60: 31 | I60: 1023 | U60: 53 | V60: 53 | W60: 1191.83 | Y60: -1191.83 | AC60: 1023 | AE60: -1023 | AI60: 53 | AJ60: 1191.83 | AK60: 63753.5846 | AL60: 26.56399358 | AN60: 20403.01001 | AO60: 8.501254172 | AR60: 1191.83 | AS60: 63753.5846 | AT60: 26.56399358 | AV60: 20403.01001 | AW60: 8.501254172 | AZ60: 1023 | BA60: 54722.49989 | BB60: 22.80104162 | BD60: 0 | BE60: 0 | BH60: 0 | BI60: 0 | BJ60: 0 | BL60: 0 | BM60: 0 | BP60: 168.83 | BQ60: 9031.084708 | BR60: 3.762951962 | BT60: 20403.01001 | BU60: 8.501254172
B61: 32 | C61: 1191.83 | H61: 32 | I61: 1023 | U61: 54 | V61: 54 | W61: 1191.83 | Y61: -1191.83 | AC61: 1023 | AE61: -1023 | AI61: 54 | AJ61: 1191.83 | AK61: 64945.4146 | AL61: 27.06058942 | AN61: 20403.01001 | AO61: 8.501254172 | AR61: 1191.83 | AS61: 64945.4146 | AT61: 27.06058942 | AV61: 20403.01001 | AW61: 8.501254172 | AZ61: 1023 | BA61: 55745.49989 | BB61: 23.22729162 | BD61: 0 | BE61: 0 | BH61: 0 | BI61: 0 | BJ61: 0 | BL61: 0 | BM61: 0 | BP61: 168.83 | BQ61: 9199.914708 | BR61: 3.833297795 | BT61: 20403.01001 | BU61: 8.501254172
B62: 33 | C62: 1191.83 | H62: 33 | I62: 1023 | U62: 55 | V62: 55 | W62: 1191.83 | Y62: -1191.83 | AC62: 1023 | AE62: -1023 | AI62: 55 | AJ62: 1191.83 | AK62: 66137.2446 | AL62: 27.55718525 | AN62: 20403.01001 | AO62: 8.501254172 | AR62: 1191.83 | AS62: 66137.2446 | AT62: 27.55718525 | AV62: 20403.01001 | AW62: 8.501254172 | AZ62: 1023 | BA62: 56768.49989 | BB62: 23.65354162 | BD62: 0 | BE62: 0 | BH62: 0 | BI62: 0 | BJ62: 0 | BL62: 0 | BM62: 0 | BP62: 168.83 | BQ62: 9368.744708 | BR62: 3.903643628 | BT62: 20403.01001 | BU62: 8.501254172
B63: 34 | C63: 1191.83 | H63: 34 | I63: 1023 | U63: 56 | V63: 56 | W63: 1191.83 | Y63: -1191.83 | AC63: 1023 | AE63: -1023 | AI63: 56 | AJ63: 1191.83 | AK63: 67329.0746 | AL63: 28.05378108 | AN63: 20403.01001 | AO63: 8.501254172 | AR63: 1191.83 | AS63: 67329.0746 | AT63: 28.05378108 | AV63: 20403.01001 | AW63: 8.501254172 | AZ63: 1023 | BA63: 57791.49989 | BB63: 24.07979162 | BD63: 0 | BE63: 0 | BH63: 0 | BI63: 0 | BJ63: 0 | BL63: 0 | BM63: 0 | BP63: 168.83 | BQ63: 9537.574708 | BR63: 3.973989462 | BT63: 20403.01001 | BU63: 8.501254172
B64: 35 | C64: 1191.83 | H64: 35 | I64: 1023 | U64: 57 | V64: 57 | W64: 1191.83 | Y64: -1191.83 | AC64: 1023 | AE64: -1023 | AI64: 57 | AJ64: 1191.83 | AK64: 68520.9046 | AL64: 28.55037692 | AN64: 20403.01001 | AO64: 8.501254172 | AR64: 1191.83 | AS64: 68520.9046 | AT64: 28.55037692 | AV64: 20403.01001 | AW64: 8.501254172 | AZ64: 1023 | BA64: 58814.49989 | BB64: 24.50604162 | BD64: 0 | BE64: 0 | BH64: 0 | BI64: 0 | BJ64: 0 | BL64: 0 | BM64: 0 | BP64: 168.83 | BQ64: 9706.404708 | BR64: 4.044335295 | BT64: 20403.01001 | BU64: 8.501254172
B65: 36 | C65: 1191.83 | H65: 36 | I65: 1023 | U65: 58 | V65: 58 | W65: 1191.83 | Y65: -1191.83 | AC65: 1023 | AE65: -1023 | AI65: 58 | AJ65: 1191.83 | AK65: 69712.7346 | AL65: 29.04697275 | AN65: 20403.01001 | AO65: 8.501254172 | AR65: 1191.83 | AS65: 69712.7346 | AT65: 29.04697275 | AV65: 20403.01001 | AW65: 8.501254172 | AZ65: 1023 | BA65: 59837.49989 | BB65: 24.93229162 | BD65: 0 | BE65: 0 | BH65: 0 | BI65: 0 | BJ65: 0 | BL65: 0 | BM65: 0 | BP65: 168.83 | BQ65: 9875.234708 | BR65: 4.114681128 | BT65: 20403.01001 | BU65: 8.501254172
B66: 37 | C66: 1191.83 | H66: 37 | I66: 1023 | U66: 59 | V66: 59 | W66: 1191.83 | Y66: -1191.83 | AC66: 1023 | AE66: -1023 | AI66: 59 | AJ66: 1191.83 | AK66: 70904.5646 | AL66: 29.54356858 | AN66: 20403.01001 | AO66: 8.501254172 | AR66: 1191.83 | AS66: 70904.5646 | AT66: 29.54356858 | AV66: 20403.01001 | AW66: 8.501254172 | AZ66: 1023 | BA66: 60860.49989 | BB66: 25.35854162 | BD66: 0 | BE66: 0 | BH66: 0 | BI66: 0 | BJ66: 0 | BL66: 0 | BM66: 0 | BP66: 168.83 | BQ66: 10044.06471 | BR66: 4.185026962 | BT66: 20403.01001 | BU66: 8.501254172
B67: 38 | C67: 1191.83 | H67: 38 | I67: 1023 | U67: 60 | V67: 60 | W67: 1191.83 | Y67: -1191.83 | AC67: 1023 | AE67: -1023 | AI67: 60 | AJ67: 1191.83 | AK67: =IF(AI67>$K$21,0,AK66+AJ67) -> 72096.3946 | AL67: =AK67*$E$20/12 -> 30.04016442 | AM67: =SUM(AL56:AL67) -> 327.706648 | AN67: =IF(AI67>$K$21,0,AN66+AP67) -> 20505.02506 | AO67: =IF(AI67>$K$21,0,AN66*$E$20/12) -> 8.501254172 | AP67: =SUM(AO56:AO67) -> 102.0150501 | AR67: 1191.83 | AS67: =IF(AI67>$K$21,0,AS66+AR67) -> 72096.3946 | AT67: 30.04016442 | AU67: =SUM(AT56:AT67) -> 327.706648 | AV67: =IF(AI67>$K$21,0,AV66+AX67) -> 20505.02506 | AW67: 8.501254172 | AX67: =SUM(AW56:AW67) -> 102.0150501 | AZ67: 1023 | BA67: 61883.49989 | BB67: 25.78479162 | BC67: =SUM(BB56:BB67) -> 281.2849994 | BD67: =IF(AI67>$K$21,0,BD66+BF67) -> 0 | BE67: 0 | BF67: =SUM(BE56:BE67) -> 0 | BH67: 0 | BI67: 0 | BJ67: 0 | BK67: =SUM(BJ56:BJ67) -> 0 | BL67: =IF(AI67>$K$21,0,BL66+BN67) -> 0 | BM67: 0 | BN67: =SUM(BM56:BM67) -> 0 | BP67: 168.83 | BQ67: 10212.89471 | BR67: 4.255372795 | BS67: =SUM(BR56:BR67) -> 46.42164854 | BT67: =IF(AI67>$K$21,0,BT66+BV67) -> 20505.02506 | BU67: 8.501254172 | BV67: =SUM(BU56:BU67) -> 102.0150501
B68: 39 | C68: 1191.83 | H68: 39 | I68: 1023 | U68: 61 | V68: 61 | W68: 1191.83 | Y68: -1191.83 | AC68: 1023 | AE68: -1023 | AI68: 61 | AJ68: 1191.83 | AK68: =IF(AI68>$K$21,0,AK67+AJ68+AM67) -> 73615.93124 | AL68: 30.67330469 | AN68: 20505.02506 | AO68: 8.543760443 | AR68: 1191.83 | AS68: =IF(AI68>$K$21,0,AS67+AR68+AU67) -> 73615.93124 | AT68: 30.67330469 | AV68: =IF(AI68>$K$21,0,AV67) -> 20505.02506 | AW68: 8.543760443 | AZ68: 1023 | BA68: =IF(AI68>$K$21,0,BA67+AZ68+BC67) -> 63187.78489 | BB68: 26.3282437 | BD68: =IF(AI68>$K$21,0,BD67) -> 0 | BE68: 0 | BH68: 0 | BI68: =IF(AI68>$K$21,0,BI67+BH68+BK67) -> 0 | BJ68: 0 | BL68: =IF(AI68>$K$21,0,BL67) -> 0 | BM68: 0 | BP68: 168.83 | BQ68: =IF(AI68>$K$21,0,BQ67+BP68+BS67) -> 10428.14636 | BR68: 4.345060982 | BT68: =IF(AI68>$K$21,0,BT67) -> 20505.02506 | BU68: 8.543760443
B69: 40 | C69: 1191.83 | H69: 40 | I69: 1023 | U69: 62 | V69: 62 | W69: 1191.83 | Y69: -1191.83 | AC69: 1023 | AE69: -1023 | AI69: 62 | AJ69: 1191.83 | AK69: =AK68+AJ69 -> 74807.76124 | AL69: 31.16990052 | AN69: 20505.02506 | AO69: 8.543760443 | AR69: 1191.83 | AS69: =IF(AI69>$K$21,0,AS68+AR69) -> 74807.76124 | AT69: 31.16990052 | AV69: 20505.02506 | AW69: 8.543760443 | AZ69: 1023 | BA69: 64210.78489 | BB69: 26.7544937 | BD69: 0 | BE69: 0 | BH69: 0 | BI69: 0 | BJ69: 0 | BL69: 0 | BM69: 0 | BP69: 168.83 | BQ69: 10596.97636 | BR69: 4.415406815 | BT69: 20505.02506 | BU69: 8.543760443
B70: 41 | C70: 1191.83 | H70: 41 | I70: 1023 | U70: 63 | V70: 63 | W70: 1191.83 | Y70: -1191.83 | AC70: 1023 | AE70: -1023 | AI70: 63 | AJ70: 1191.83 | AK70: 75999.59124 | AL70: 31.66649635 | AN70: 20505.02506 | AO70: 8.543760443 | AR70: 1191.83 | AS70: 75999.59124 | AT70: 31.66649635 | AV70: 20505.02506 | AW70: 8.543760443 | AZ70: 1023 | BA70: 65233.78489 | BB70: 27.1807437 | BD70: 0 | BE70: 0 | BH70: 0 | BI70: 0 | BJ70: 0 | BL70: 0 | BM70: 0 | BP70: 168.83 | BQ70: 10765.80636 | BR70: 4.485752649 | BT70: 20505.02506 | BU70: 8.543760443
B71: 42 | C71: 1191.83 | H71: 42 | I71: 1023 | U71: 64 | V71: 64 | W71: 1191.83 | Y71: -1191.83 | AC71: 1023 | AE71: -1023 | AI71: 64 | AJ71: 1191.83 | AK71: 77191.42124 | AL71: 32.16309219 | AN71: 20505.02506 | AO71: 8.543760443 | AR71: 1191.83 | AS71: 77191.42124 | AT71: 32.16309219 | AV71: 20505.02506 | AW71: 8.543760443 | AZ71: 1023 | BA71: 66256.78489 | BB71: 27.6069937 | BD71: 0 | BE71: 0 | BH71: 0 | BI71: 0 | BJ71: 0 | BL71: 0 | BM71: 0 | BP71: 168.83 | BQ71: 10934.63636 | BR71: 4.556098482 | BT71: 20505.02506 | BU71: 8.543760443
B72: 43 | C72: 1191.83 | H72: 43 | I72: 1023 | U72: 65 | V72: 65 | W72: =C94 -> 1191.83 | Y72: =-W72 -> -1191.83 | AC72: =I94 -> 1023 | AE72: =-AC72 -> -1023 | AI72: 65 | AJ72: 1191.83 | AK72: 78383.25124 | AL72: =AK72*$E$20/12 -> 32.65968802 | AN72: 20505.02506 | AO72: 8.543760443 | AR72: =W72 -> 1191.83 | AS72: 78383.25124 | AT72: =AS72*$E$20/12 -> 32.65968802 | AV72: 20505.02506 | AW72: 8.543760443 | AZ72: =AC72 -> 1023 | BA72: 67279.78489 | BB72: =BA72*$E$20/12 -> 28.0332437 | BD72: 0 | BE72: 0 | BH72: =AJ72-W72 -> 0 | BI72: 0 | BJ72: =BI72*$E$20/12 -> 0 | BL72: 0 | BM72: 0 | BP72: =AJ72-AC72 -> 168.83 | BQ72: 11103.46636 | BR72: =BQ72*$E$20/12 -> 4.626444315 | BT72: 20505.02506 | BU72: 8.543760443
B73: 44 | C73: 1191.83 | H73: 44 | I73: 1023 | U73: 66 | V73: 66 | W73: 1191.83 | Y73: -1191.83 | AC73: 1023 | AE73: -1023 | AI73: 66 | AJ73: =IF(AI73>$K$21,0,IF(AC73>W73,AC73,W73)) -> 1191.83 | AK73: 79575.08124 | AL73: 33.15628385 | AN73: =IF(AI73>$K$21,0,AN72) -> 20505.02506 | AO73: 8.543760443 | AR73: 1191.83 | AS73: 79575.08124 | AT73: 33.15628385 | AV73: 20505.02506 | AW73: 8.543760443 | AZ73: 1023 | BA73: 68302.78489 | BB73: 28.4594937 | BD73: 0 | BE73: 0 | BH73: 0 | BI73: 0 | BJ73: 0 | BL73: 0 | BM73: 0 | BP73: 168.83 | BQ73: 11272.29636 | BR73: 4.696790149 | BT73: 20505.02506 | BU73: =IF(AI73>$K$21,0,BT72*$E$20/12) -> 8.543760443
B74: 45 | C74: 1191.83 | H74: 45 | I74: 1023 | U74: 67 | V74: 67 | W74: 1191.83 | Y74: -1191.83 | AC74: 1023 | AE74: -1023 | AI74: 67 | AJ74: 1191.83 | AK74: 80766.91124 | AL74: 33.65287969 | AN74: 20505.02506 | AO74: 8.543760443 | AR74: 1191.83 | AS74: 80766.91124 | AT74: 33.65287969 | AV74: 20505.02506 | AW74: 8.543760443 | AZ74: 1023 | BA74: 69325.78489 | BB74: 28.8857437 | BD74: 0 | BE74: 0 | BH74: 0 | BI74: 0 | BJ74: 0 | BL74: 0 | BM74: 0 | BP74: 168.83 | BQ74: 11441.12636 | BR74: 4.767135982 | BT74: 20505.02506 | BU74: 8.543760443
B75: 46 | C75: 1191.83 | H75: 46 | I75: 1023 | U75: 68 | V75: 68 | W75: 1191.83 | Y75: -1191.83 | AC75: 1023 | AE75: -1023 | AI75: 68 | AJ75: 1191.83 | AK75: 81958.74124 | AL75: 34.14947552 | AN75: 20505.02506 | AO75: 8.543760443 | AR75: 1191.83 | AS75: 81958.74124 | AT75: 34.14947552 | AV75: 20505.02506 | AW75: 8.543760443 | AZ75: 1023 | BA75: 70348.78489 | BB75: 29.3119937 | BD75: 0 | BE75: 0 | BH75: 0 | BI75: 0 | BJ75: 0 | BL75: 0 | BM75: 0 | BP75: 168.83 | BQ75: 11609.95636 | BR75: 4.837481815 | BT75: 20505.02506 | BU75: 8.543760443
B76: 47 | C76: 1191.83 | H76: 47 | I76: 1023 | U76: 69 | V76: 69 | W76: 1191.83 | Y76: -1191.83 | AC76: 1023 | AE76: -1023 | AI76: 69 | AJ76: 1191.83 | AK76: 83150.57124 | AL76: 34.64607135 | AN76: 20505.02506 | AO76: 8.543760443 | AR76: 1191.83 | AS76: 83150.57124 | AT76: 34.64607135 | AV76: 20505.02506 | AW76: 8.543760443 | AZ76: 1023 | BA76: 71371.78489 | BB76: 29.7382437 | BD76: 0 | BE76: 0 | BH76: 0 | BI76: 0 | BJ76: 0 | BL76: 0 | BM76: 0 | BP76: 168.83 | BQ76: 11778.78636 | BR76: 4.907827649 | BT76: 20505.02506 | BU76: 8.543760443
B77: 48 | C77: 1191.83 | H77: 48 | I77: 1023 | U77: 70 | V77: 70 | W77: 1191.83 | Y77: -1191.83 | AC77: 1023 | AE77: -1023 | AI77: 70 | AJ77: 1191.83 | AK77: 84342.40124 | AL77: 35.14266719 | AN77: 20505.02506 | AO77: 8.543760443 | AR77: 1191.83 | AS77: 84342.40124 | AT77: 35.14266719 | AV77: 20505.02506 | AW77: 8.543760443 | AZ77: 1023 | BA77: 72394.78489 | BB77: 30.1644937 | BD77: 0 | BE77: 0 | BH77: 0 | BI77: 0 | BJ77: 0 | BL77: 0 | BM77: 0 | BP77: 168.83 | BQ77: 11947.61636 | BR77: 4.978173482 | BT77: 20505.02506 | BU77: 8.543760443
B78: 49 | C78: 1191.83 | H78: 49 | I78: 1023 | U78: 71 | V78: 71 | W78: 1191.83 | Y78: -1191.83 | AC78: 1023 | AE78: -1023 | AI78: 71 | AJ78: 1191.83 | AK78: 85534.23124 | AL78: 35.63926302 | AN78: 20505.02506 | AO78: 8.543760443 | AR78: 1191.83 | AS78: 85534.23124 | AT78: 35.63926302 | AV78: 20505.02506 | AW78: 8.543760443 | AZ78: 1023 | BA78: 73417.78489 | BB78: 30.5907437 | BD78: 0 | BE78: 0 | BH78: 0 | BI78: 0 | BJ78: 0 | BL78: 0 | BM78: 0 | BP78: 168.83 | BQ78: 12116.44636 | BR78: 5.048519315 | BT78: 20505.02506 | BU78: 8.543760443
B79: 50 | C79: 1191.83 | H79: 50 | I79: 1023 | U79: 72 | V79: 72 | W79: 1191.83 | Y79: -1191.83 | AC79: 1023 | AE79: -1023 | AI79: 72 | AJ79: 1191.83 | AK79: =IF(AI79>$K$21,0,AK78+AJ79) -> 86726.06124 | AL79: 36.13585885 | AM79: =SUM(AL68:AL79) -> 400.8549812 | AN79: =IF(AI79>$K$21,0,AN78+AP79) -> 20607.55019 | AO79: 8.543760443 | AP79: =SUM(AO68:AO79) -> 102.5251253 | AR79: 1191.83 | AS79: =IF(AI79>$K$21,0,AS78+AR79) -> 86726.06124 | AT79: 36.13585885 | AU79: =SUM(AT68:AT79) -> 400.8549812 | AV79: =IF(AI79>$K$21,0,AV78+AX79) -> 20607.55019 | AW79: 8.543760443 | AX79: =SUM(AW68:AW79) -> 102.5251253 | AZ79: 1023 | BA79: 74440.78489 | BB79: 31.0169937 | BC79: =SUM(BB68:BB79) -> 344.0714244 | BD79: =IF(AI79>$K$21,0,BD78+BF79) -> 0 | BE79: 0 | BF79: =SUM(BE68:BE79) -> 0 | BH79: 0 | BI79: 0 | BJ79: 0 | BK79: =SUM(BJ68:BJ79) -> 0 | BL79: =IF(AI79>$K$21,0,BL78+BN79) -> 0 | BM79: 0 | BN79: =SUM(BM68:BM79) -> 0 | BP79: 168.83 | BQ79: 12285.27636 | BR79: 5.118865149 | BS79: =SUM(BR68:BR79) -> 56.78355678 | BT79: =IF(AI79>$K$21,0,BT78+BV79) -> 20607.55019 | BU79: 8.543760443 | BV79: =SUM(BU68:BU79) -> 102.5251253
B80: 51 | C80: 1191.83 | H80: 51 | I80: 1023 | U80: 73 | V80: 73 | W80: 1191.83 | Y80: -1191.83 | AC80: 1023 | AE80: -1023 | AI80: 73 | AJ80: 1191.83 | AK80: =IF(AI80>$K$21,0,AK79+AJ80+AM79) -> 88318.74623 | AL80: 36.79947759 | AN80: 20607.55019 | AO80: 8.586479245 | AR80: 1191.83 | AS80: =IF(AI80>$K$21,0,AS79+AR80+AU79) -> 88318.74623 | AT80: 36.79947759 | AV80: =IF(AI80>$K$21,0,AV79) -> 20607.55019 | AW80: 8.586479245 | AZ80: 1023 | BA80: =IF(AI80>$K$21,0,BA79+AZ80+BC79) -> 75807.85631 | BB80: 31.5866068 | BD80: =IF(AI80>$K$21,0,BD79) -> 0 | BE80: 0 | BH80: 0 | BI80: =IF(AI80>$K$21,0,BI79+BH80+BK79) -> 0 | BJ80: 0 | BL80: =IF(AI80>$K$21,0,BL79) -> 0 | BM80: 0 | BP80: 168.83 | BQ80: =IF(AI80>$K$21,0,BQ79+BP80+BS79) -> 12510.88991 | BR80: 5.212870797 | BT80: =IF(AI80>$K$21,0,BT79) -> 20607.55019 | BU80: 8.586479245
B81: 52 | C81: 1191.83 | H81: 52 | I81: 1023 | U81: 74 | V81: 74 | W81: 1191.83 | Y81: -1191.83 | AC81: 1023 | AE81: -1023 | AI81: 74 | AJ81: 1191.83 | AK81: =AK80+AJ81 -> 89510.57623 | AL81: 37.29607343 | AN81: 20607.55019 | AO81: 8.586479245 | AR81: 1191.83 | AS81: =IF(AI81>$K$21,0,AS80+AR81) -> 89510.57623 | AT81: 37.29607343 | AV81: 20607.55019 | AW81: 8.586479245 | AZ81: 1023 | BA81: 76830.85631 | BB81: 32.0128568 | BD81: 0 | BE81: 0 | BH81: 0 | BI81: 0 | BJ81: 0 | BL81: 0 | BM81: 0 | BP81: 168.83 | BQ81: 12679.71991 | BR81: 5.28321663 | BT81: 20607.55019 | BU81: 8.586479245
B82: 53 | C82: 1191.83 | H82: 53 | I82: 1023 | U82: 75 | V82: 75 | W82: 1191.83 | Y82: -1191.83 | AC82: 1023 | AE82: -1023 | AI82: 75 | AJ82: 1191.83 | AK82: 90702.40623 | AL82: 37.79266926 | AN82: 20607.55019 | AO82: 8.586479245 | AR82: 1191.83 | AS82: 90702.40623 | AT82: 37.79266926 | AV82: 20607.55019 | AW82: 8.586479245 | AZ82: 1023 | BA82: 77853.85631 | BB82: 32.4391068 | BD82: 0 | BE82: 0 | BH82: 0 | BI82: 0 | BJ82: 0 | BL82: 0 | BM82: 0 | BP82: 168.83 | BQ82: 12848.54991 | BR82: 5.353562464 | BT82: 20607.55019 | BU82: 8.586479245
B83: 54 | C83: 1191.83 | H83: 54 | I83: 1023 | U83: 76 | V83: 76 | W83: 1191.83 | Y83: -1191.83 | AC83: 1023 | AE83: -1023 | AI83: 76 | AJ83: 1191.83 | AK83: 91894.23623 | AL83: 38.28926509 | AN83: 20607.55019 | AO83: 8.586479245 | AR83: 1191.83 | AS83: 91894.23623 | AT83: 38.28926509 | AV83: 20607.55019 | AW83: 8.586479245 | AZ83: 1023 | BA83: 78876.85631 | BB83: 32.8653568 | BD83: 0 | BE83: 0 | BH83: 0 | BI83: 0 | BJ83: 0 | BL83: 0 | BM83: 0 | BP83: 168.83 | BQ83: 13017.37991 | BR83: 5.423908297 | BT83: 20607.55019 | BU83: 8.586479245
B84: 55 | C84: 1191.83 | H84: 55 | I84: 1023 | U84: 77 | V84: 77 | W84: 1191.83 | Y84: -1191.83 | AC84: 1023 | AE84: -1023 | AI84: 77 | AJ84: 1191.83 | AK84: 93086.06623 | AL84: 38.78586093 | AN84: 20607.55019 | AO84: 8.586479245 | AR84: 1191.83 | AS84: 93086.06623 | AT84: 38.78586093 | AV84: 20607.55019 | AW84: 8.586479245 | AZ84: 1023 | BA84: 79899.85631 | BB84: 33.2916068 | BD84: 0 | BE84: 0 | BH84: 0 | BI84: 0 | BJ84: 0 | BL84: 0 | BM84: 0 | BP84: 168.83 | BQ84: 13186.20991 | BR84: 5.49425413 | BT84: 20607.55019 | BU84: 8.586479245
B85: 56 | C85: 1191.83 | H85: 56 | I85: 1023 | U85: 78 | V85: 78 | W85: 1191.83 | Y85: -1191.83 | AC85: 1023 | AE85: -1023 | AI85: 78 | AJ85: 1191.83 | AK85: 94277.89623 | AL85: 39.28245676 | AN85: 20607.55019 | AO85: 8.586479245 | AR85: 1191.83 | AS85: 94277.89623 | AT85: 39.28245676 | AV85: 20607.55019 | AW85: 8.586479245 | AZ85: 1023 | BA85: 80922.85631 | BB85: 33.7178568 | BD85: 0 | BE85: 0 | BH85: 0 | BI85: 0 | BJ85: 0 | BL85: 0 | BM85: 0 | BP85: 168.83 | BQ85: 13355.03991 | BR85: 5.564599964 | BT85: 20607.55019 | BU85: 8.586479245
B86: 57 | C86: 1191.83 | H86: 57 | I86: 1023 | U86: 79 | V86: 79 | W86: 1191.83 | Y86: -1191.83 | AC86: 1023 | AE86: -1023 | AI86: 79 | AJ86: 1191.83 | AK86: 95469.72623 | AL86: 39.77905259 | AN86: 20607.55019 | AO86: 8.586479245 | AR86: 1191.83 | AS86: 95469.72623 | AT86: 39.77905259 | AV86: 20607.55019 | AW86: 8.586479245 | AZ86: 1023 | BA86: 81945.85631 | BB86: 34.1441068 | BD86: 0 | BE86: 0 | BH86: 0 | BI86: 0 | BJ86: 0 | BL86: 0 | BM86: 0 | BP86: 168.83 | BQ86: 13523.86991 | BR86: 5.634945797 | BT86: 20607.55019 | BU86: 8.586479245
B87: 58 | C87: 1191.83 | H87: 58 | I87: 1023 | U87: 80 | V87: 80 | W87: 1191.83 | Y87: -1191.83 | AC87: 1023 | AE87: -1023 | AI87: 80 | AJ87: 1191.83 | AK87: 96661.55623 | AL87: 40.27564843 | AN87: 20607.55019 | AO87: 8.586479245 | AR87: 1191.83 | AS87: 96661.55623 | AT87: 40.27564843 | AV87: 20607.55019 | AW87: 8.586479245 | AZ87: 1023 | BA87: 82968.85631 | BB87: 34.5703568 | BD87: 0 | BE87: 0 | BH87: 0 | BI87: 0 | BJ87: 0 | BL87: 0 | BM87: 0 | BP87: 168.83 | BQ87: 13692.69991 | BR87: 5.70529163 | BT87: 20607.55019 | BU87: 8.586479245
B88: 59 | C88: 1191.83 | H88: 59 | I88: 1023 | U88: 81 | V88: 81 | W88: 1191.83 | Y88: -1191.83 | AC88: 1023 | AE88: -1023 | AI88: 81 | AJ88: 1191.83 | AK88: 97853.38623 | AL88: 40.77224426 | AN88: 20607.55019 | AO88: 8.586479245 | AR88: 1191.83 | AS88: 97853.38623 | AT88: 40.77224426 | AV88: 20607.55019 | AW88: 8.586479245 | AZ88: 1023 | BA88: 83991.85631 | BB88: 34.9966068 | BD88: 0 | BE88: 0 | BH88: 0 | BI88: 0 | BJ88: 0 | BL88: 0 | BM88: 0 | BP88: 168.83 | BQ88: 13861.52991 | BR88: 5.775637464 | BT88: 20607.55019 | BU88: 8.586479245
B89: 60 | C89: 1191.83 | H89: 60 | I89: 1023 | U89: 82 | V89: 82 | W89: 1191.83 | Y89: -1191.83 | AC89: 1023 | AE89: -1023 | AI89: 82 | AJ89: 1191.83 | AK89: 99045.21623 | AL89: 41.26884009 | AN89: 20607.55019 | AO89: 8.586479245 | AR89: 1191.83 | AS89: 99045.21623 | AT89: 41.26884009 | AV89: 20607.55019 | AW89: 8.586479245 | AZ89: 1023 | BA89: 85014.85631 | BB89: 35.4228568 | BD89: 0 | BE89: 0 | BH89: 0 | BI89: 0 | BJ89: 0 | BL89: 0 | BM89: 0 | BP89: 168.83 | BQ89: 14030.35991 | BR89: 5.845983297 | BT89: 20607.55019 | BU89: 8.586479245
B90: 61 | C90: 1191.83 | H90: 61 | I90: 1023 | U90: 83 | V90: 83 | W90: 1191.83 | Y90: -1191.83 | AC90: 1023 | AE90: -1023 | AI90: 83 | AJ90: 1191.83 | AK90: 100237.0462 | AL90: 41.76543593 | AN90: 20607.55019 | AO90: 8.586479245 | AR90: 1191.83 | AS90: 100237.0462 | AT90: 41.76543593 | AV90: 20607.55019 | AW90: 8.586479245 | AZ90: 1023 | BA90: 86037.85631 | BB90: 35.8491068 | BD90: 0 | BE90: 0 | BH90: 0 | BI90: 0 | BJ90: 0 | BL90: 0 | BM90: 0 | BP90: 168.83 | BQ90: 14199.18991 | BR90: 5.91632913 | BT90: 20607.55019 | BU90: 8.586479245
B91: 62 | C91: 1191.83 | H91: 62 | I91: 1023 | U91: 84 | V91: 84 | W91: 1191.83 | Y91: -1191.83 | AC91: 1023 | AE91: -1023 | AI91: 84 | AJ91: 1191.83 | AK91: =IF(AI91>$K$21,0,AK90+AJ91) -> 101428.8762 | AL91: 42.26203176 | AM91: =SUM(AL80:AL91) -> 474.3690561 | AN91: =IF(AI91>$K$21,0,AN90+AP91) -> 20710.58794 | AO91: 8.586479245 | AP91: =SUM(AO80:AO91) -> 103.0377509 | AR91: 1191.83 | AS91: =IF(AI91>$K$21,0,AS90+AR91) -> 101428.8762 | AT91: 42.26203176 | AU91: =SUM(AT80:AT91) -> 474.3690561 | AV91: =IF(AI91>$K$21,0,AV90+AX91) -> 20710.58794 | AW91: 8.586479245 | AX91: =SUM(AW80:AW91) -> 103.0377509 | AZ91: 1023 | BA91: 87060.85631 | BB91: 36.2753568 | BC91: =SUM(BB80:BB91) -> 407.1717816 | BD91: =IF(AI91>$K$21,0,BD90+BF91) -> 0 | BE91: 0 | BF91: =SUM(BE80:BE91) -> 0 | BH91: 0 | BI91: 0 | BJ91: 0 | BK91: =SUM(BJ80:BJ91) -> 0 | BL91: =IF(AI91>$K$21,0,BL90+BN91) -> 0 | BM91: 0 | BN91: =SUM(BM80:BM91) -> 0 | BP91: 168.83 | BQ91: 14368.01991 | BR91: 5.986674964 | BS91: =SUM(BR80:BR91) -> 67.19727457 | BT91: =IF(AI91>$K$21,0,BT90+BV91) -> 20710.58794 | BU91: 8.586479245 | BV91: =SUM(BU80:BU91) -> 103.0377509
B92: 63 | C92: 1191.83 | H92: 63 | I92: 1023 | U92: 85 | V92: 85 | W92: 1191.83 | Y92: -1191.83 | AC92: 1023 | AE92: -1023 | AI92: 85 | AJ92: 1191.83 | AK92: =IF(AI92>$K$21,0,AK91+AJ92+AM91) -> 103095.0753 | AL92: 42.95628137 | AN92: 20710.58794 | AO92: 8.629411641 | AR92: 1191.83 | AS92: =IF(AI92>$K$21,0,AS91+AR92+AU91) -> 103095.0753 | AT92: 42.95628137 | AV92: =IF(AI92>$K$21,0,AV91) -> 20710.58794 | AW92: 8.629411641 | AZ92: 1023 | BA92: =IF(AI92>$K$21,0,BA91+AZ92+BC91) -> 88491.02809 | BB92: 36.87126171 | BD92: =IF(AI92>$K$21,0,BD91) -> 0 | BE92: 0 | BH92: 0 | BI92: =IF(AI92>$K$21,0,BI91+BH92+BK91) -> 0 | BJ92: 0 | BL92: =IF(AI92>$K$21,0,BL91) -> 0 | BM92: 0 | BP92: 168.83 | BQ92: =IF(AI92>$K$21,0,BQ91+BP92+BS91) -> 14604.04719 | BR92: 6.085019662 | BT92: =IF(AI92>$K$21,0,BT91) -> 20710.58794 | BU92: 8.629411641
B93: 64 | C93: 1191.83 | H93: 64 | I93: 1023 | U93: 86 | V93: 86 | W93: 1191.83 | Y93: -1191.83 | AC93: 1023 | AE93: -1023 | AI93: 86 | AJ93: 1191.83 | AK93: =AK92+AJ93 -> 104286.9053 | AL93: 43.4528772 | AN93: 20710.58794 | AO93: 8.629411641 | AR93: 1191.83 | AS93: =IF(AI93>$K$21,0,AS92+AR93) -> 104286.9053 | AT93: 43.4528772 | AV93: 20710.58794 | AW93: 8.629411641 | AZ93: 1023 | BA93: 89514.02809 | BB93: 37.29751171 | BD93: 0 | BE93: 0 | BH93: 0 | BI93: 0 | BJ93: 0 | BL93: 0 | BM93: 0 | BP93: 168.83 | BQ93: 14772.87719 | BR93: 6.155365495 | BT93: 20710.58794 | BU93: 8.629411641
B94: 65 | C94: 1191.83 | H94: 65 | I94: 1023 | U94: 87 | V94: 87 | W94: 1191.83 | Y94: -1191.83 | AC94: 1023 | AE94: -1023 | AI94: 87 | AJ94: 1191.83 | AK94: 105478.7353 | AL94: 43.94947303 | AN94: 20710.58794 | AO94: 8.629411641 | AR94: 1191.83 | AS94: 105478.7353 | AT94: 43.94947303 | AV94: 20710.58794 | AW94: 8.629411641 | AZ94: 1023 | BA94: 90537.02809 | BB94: 37.72376171 | BD94: 0 | BE94: 0 | BH94: 0 | BI94: 0 | BJ94: 0 | BL94: 0 | BM94: 0 | BP94: 168.83 | BQ94: 14941.70719 | BR94: 6.225711328 | BT94: 20710.58794 | BU94: 8.629411641
B95: 66 | C95: 1191.83 | H95: 66 | I95: 1023 | U95: 88 | V95: 88 | W95: 1191.83 | Y95: -1191.83 | AC95: 1023 | AE95: -1023 | AI95: 88 | AJ95: 1191.83 | AK95: 106670.5653 | AL95: 44.44606887 | AN95: 20710.58794 | AO95: 8.629411641 | AR95: 1191.83 | AS95: 106670.5653 | AT95: 44.44606887 | AV95: 20710.58794 | AW95: =IF(AI95>$K$21,0,AV94*$E$20/12) -> 8.629411641 | AZ95: 1023 | BA95: =IF(AI95>$K$21,0,BA94+AZ95) -> 91560.02809 | BB95: 38.15001171 | BD95: 0 | BE95: =IF(AI95>$K$21,0,BD94*$E$20/12) -> 0 | BH95: 0 | BI95: =IF(V95>$K$21,0,BI94+BH95) -> 0 | BJ95: 0 | BL95: 0 | BM95: =IF(AI95>$K$21,0,BL94*$E$20/12) -> 0 | BP95: 168.83 | BQ95: =IF(AI95>$K$21,0,BQ94+BP95) -> 15110.53719 | BR95: 6.296057162 | BT95: 20710.58794 | BU95: 8.629411641
B96: 67 | C96: =IF(B96>$I$21,0,IF(AND(D96<>C95,D96<>0),D96,C95)) -> 1191.83 | H96: 67 | I96: =IF(H96>$J$21,0,IF(AND(J96<>I95,J96<>0),J96,I95)) -> 1023 | U96: 89 | V96: 89 | W96: 1191.83 | Y96: -1191.83 | AC96: 1023 | AE96: -1023 | AI96: 89 | AJ96: 1191.83 | AK96: 107862.3953 | AL96: 44.9426647 | AN96: 20710.58794 | AO96: 8.629411641 | AR96: 1191.83 | AS96: 107862.3953 | AT96: 44.9426647 | AV96: 20710.58794 | AW96: 8.629411641 | AZ96: 1023 | BA96: 92583.02809 | BB96: 38.57626171 | BD96: 0 | BE96: 0 | BH96: 0 | BI96: 0 | BJ96: 0 | BL96: 0 | BM96: 0 | BP96: 168.83 | BQ96: 15279.36719 | BR96: 6.366402995 | BT96: 20710.58794 | BU96: 8.629411641
B97: 68 | C97: 1191.83 | H97: 68 | I97: 1023 | U97: 90 | V97: 90 | W97: 1191.83 | Y97: -1191.83 | AC97: 1023 | AE97: -1023 | AI97: 90 | AJ97: 1191.83 | AK97: 109054.2253 | AL97: 45.43926053 | AN97: 20710.58794 | AO97: 8.629411641 | AR97: 1191.83 | AS97: 109054.2253 | AT97: 45.43926053 | AV97: 20710.58794 | AW97: 8.629411641 | AZ97: 1023 | BA97: 93606.02809 | BB97: 39.00251171 | BD97: 0 | BE97: 0 | BH97: 0 | BI97: 0 | BJ97: 0 | BL97: 0 | BM97: 0 | BP97: 168.83 | BQ97: 15448.19719 | BR97: 6.436748828 | BT97: 20710.58794 | BU97: 8.629411641
B98: 69 | C98: 1191.83 | H98: 69 | I98: 1023 | U98: 91 | V98: 91 | W98: 1191.83 | Y98: -1191.83 | AC98: 1023 | AE98: -1023 | AI98: 91 | AJ98: 1191.83 | AK98: 110246.0553 | AL98: 45.93585637 | AN98: 20710.58794 | AO98: 8.629411641 | AR98: 1191.83 | AS98: 110246.0553 | AT98: 45.93585637 | AV98: 20710.58794 | AW98: 8.629411641 | AZ98: 1023 | BA98: 94629.02809 | BB98: 39.42876171 | BD98: 0 | BE98: 0 | BH98: 0 | BI98: 0 | BJ98: 0 | BL98: 0 | BM98: 0 | BP98: 168.83 | BQ98: 15617.02719 | BR98: 6.507094662 | BT98: 20710.58794 | BU98: 8.629411641
B99: 70 | C99: 1191.83 | E99: ATTENTION Cet applicatif suppose que la totalité des fonds soit mise à disposition en une seule fois. Avec un investissement de type"VEFA" qui génère plusieurs déblocages de fonds successifs en fonction de l'avancement des travaux les résultats obtenus en valeurs absolues ne seront donc pax exacts. Mais, s'agissant de comparer deux offres concurrentes, en valeurs relatives, l'orientation préconisée dudit résultat restera toujours fiable et pertinente. | H99: 70 | I99: 1023 | U99: 92 | V99: 92 | W99: 1191.83 | Y99: -1191.83 | AC99: 1023 | AE99: -1023 | AI99: 92 | AJ99: 1191.83 | AK99: 111437.8853 | AL99: 46.4324522 | AN99: 20710.58794 | AO99: 8.629411641 | AR99: 1191.83 | AS99: 111437.8853 | AT99: 46.4324522 | AV99: 20710.58794 | AW99: 8.629411641 | AZ99: 1023 | BA99: 95652.02809 | BB99: 39.85501171 | BD99: 0 | BE99: 0 | BH99: 0 | BI99: 0 | BJ99: 0 | BL99: 0 | BM99: 0 | BP99: 168.83 | BQ99: 15785.85719 | BR99: 6.577440495 | BT99: 20710.58794 | BU99: 8.629411641
B100: 71 | C100: 1191.83 | H100: 71 | I100: 1023 | U100: 93 | V100: 93 | W100: 1191.83 | Y100: -1191.83 | AC100: 1023 | AE100: -1023 | AI100: 93 | AJ100: 1191.83 | AK100: 112629.7153 | AL100: 46.92904803 | AN100: 20710.58794 | AO100: 8.629411641 | AR100: 1191.83 | AS100: 112629.7153 | AT100: 46.92904803 | AV100: 20710.58794 | AW100: 8.629411641 | AZ100: 1023 | BA100: 96675.02809 | BB100: 40.28126171 | BD100: 0 | BE100: 0 | BH100: 0 | BI100: 0 | BJ100: 0 | BL100: 0 | BM100: 0 | BP100: 168.83 | BQ100: 15954.68719 | BR100: 6.647786328 | BT100: 20710.58794 | BU100: 8.629411641
B101: 72 | C101: 1191.83 | H101: 72 | I101: 1023 | U101: 94 | V101: 94 | W101: 1191.83 | Y101: -1191.83 | AC101: 1023 | AE101: -1023 | AI101: 94 | AJ101: 1191.83 | AK101: 113821.5453 | AL101: 47.42564387 | AN101: 20710.58794 | AO101: 8.629411641 | AR101: 1191.83 | AS101: 113821.5453 | AT101: 47.42564387 | AV101: 20710.58794 | AW101: 8.629411641 | AZ101: 1023 | BA101: 97698.02809 | BB101: 40.70751171 | BD101: 0 | BE101: 0 | BH101: 0 | BI101: 0 | BJ101: 0 | BL101: 0 | BM101: 0 | BP101: 168.83 | BQ101: 16123.51719 | BR101: 6.718132162 | BT101: 20710.58794 | BU101: 8.629411641
B102: 73 | C102: 1191.83 | H102: 73 | I102: 1023 | U102: 95 | V102: 95 | W102: 1191.83 | Y102: -1191.83 | AC102: 1023 | AE102: -1023 | AI102: 95 | AJ102: 1191.83 | AK102: 115013.3753 | AL102: 47.9222397 | AN102: 20710.58794 | AO102: 8.629411641 | AR102: 1191.83 | AS102: 115013.3753 | AT102: 47.9222397 | AV102: 20710.58794 | AW102: 8.629411641 | AZ102: 1023 | BA102: 98721.02809 | BB102: 41.13376171 | BD102: 0 | BE102: 0 | BH102: 0 | BI102: 0 | BJ102: 0 | BL102: 0 | BM102: 0 | BP102: 168.83 | BQ102: 16292.34719 | BR102: 6.788477995 | BT102: 20710.58794 | BU102: 8.629411641
B103: 74 | C103: 1191.83 | H103: 74 | I103: 1023 | U103: 96 | V103: 96 | W103: 1191.83 | Y103: -1191.83 | AC103: 1023 | AE103: -1023 | AI103: 96 | AJ103: 1191.83 | AK103: =IF(AI103>$K$21,0,AK102+AJ103) -> 116205.2053 | AL103: 48.41883553 | AM103: =SUM(AL92:AL103) -> 548.2507014 | AN103: =IF(AI103>$K$21,0,AN102+AP103) -> 20814.14088 | AO103: 8.629411641 | AP103: =SUM(AO92:AO103) -> 103.5529397 | AR103: 1191.83 | AS103: =IF(AI103>$K$21,0,AS102+AR103) -> 116205.2053 | AT103: 48.41883553 | AU103: =SUM(AT92:AT103) -> 548.2507014 | AV103: =IF(AI103>$K$21,0,AV102+AX103) -> 20814.14088 | AW103: 8.629411641 | AX103: =SUM(AW92:AW103) -> 103.5529397 | AZ103: 1023 | BA103: 99744.02809 | BB103: 41.56001171 | BC103: =SUM(BB92:BB103) -> 470.5876405 | BD103: =IF(AI103>$K$21,0,BD102+BF103) -> 0 | BE103: 0 | BF103: =SUM(BE92:BE103) -> 0 | BH103: 0 | BI103: 0 | BJ103: 0 | BK103: =SUM(BJ92:BJ103) -> 0 | BL103: =IF(AI103>$K$21,0,BL102+BN103) -> 0 | BM103: 0 | BN103: =SUM(BM92:BM103) -> 0 | BP103: 168.83 | BQ103: 16461.17719 | BR103: 6.858823828 | BS103: =SUM(BR92:BR103) -> 77.66306094 | BT103: =IF(AI103>$K$21,0,BT102+BV103) -> 20814.14088 | BU103: 8.629411641 | BV103: =SUM(BU92:BU103) -> 103.5529397
B104: 75 | C104: 1191.83 | H104: 75 | I104: 1023 | U104: 97 | V104: 97 | W104: 1191.83 | Y104: -1191.83 | AC104: 1023 | AE104: -1023 | AI104: 97 | AJ104: 1191.83 | AK104: =IF(AI104>$K$21,0,AK103+AJ104+AM103) -> 117945.286 | AL104: 49.14386916 | AN104: 20814.14088 | AO104: 8.672558699 | AR104: 1191.83 | AS104: =IF(AI104>$K$21,0,AS103+AR104+AU103) -> 117945.286 | AT104: 49.14386916 | AV104: =IF(AI104>$K$21,0,AV103) -> 20814.14088 | AW104: 8.672558699 | AZ104: 1023 | BA104: =IF(AI104>$K$21,0,BA103+AZ104+BC103) -> 101237.6157 | BB104: 42.18233989 | BD104: =IF(AI104>$K$21,0,BD103) -> 0 | BE104: 0 | BH104: 0 | BI104: =IF(AI104>$K$21,0,BI103+BH104+BK103) -> 0 | BJ104: 0 | BL104: =IF(AI104>$K$21,0,BL103) -> 0 | BM104: 0 | BP104: 168.83 | BQ104: =IF(AI104>$K$21,0,BQ103+BP104+BS103) -> 16707.67025 | BR104: 6.96152927 | BT104: =IF(AI104>$K$21,0,BT103) -> 20814.14088 | BU104: 8.672558699
B105: 76 | C105: 1191.83 | H105: 76 | I105: 1023 | U105: 98 | V105: 98 | W105: 1191.83 | Y105: -1191.83 | AC105: 1023 | AE105: -1023 | AI105: 98 | AJ105: 1191.83 | AK105: =AK104+AJ105 -> 119137.116 | AL105: 49.64046499 | AN105: 20814.14088 | AO105: 8.672558699 | AR105: 1191.83 | AS105: =IF(AI105>$K$21,0,AS104+AR105) -> 119137.116 | AT105: 49.64046499 | AV105: 20814.14088 | AW105: 8.672558699 | AZ105: 1023 | BA105: 102260.6157 | BB105: 42.60858989 | BD105: 0 | BE105: 0 | BH105: 0 | BI105: 0 | BJ105: 0 | BL105: 0 | BM105: 0 | BP105: 168.83 | BQ105: 16876.50025 | BR105: 7.031875104 | BT105: 20814.14088 | BU105: 8.672558699
B106: 77 | C106: 1191.83 | H106: 77 | I106: 1023 | U106: 99 | V106: 99 | W106: 1191.83 | Y106: -1191.83 | AC106: 1023 | AE106: -1023 | AI106: 99 | AJ106: 1191.83 | AK106: 120328.946 | AL106: 50.13706083 | AN106: 20814.14088 | AO106: 8.672558699 | AR106: 1191.83 | AS106: 120328.946 | AT106: 50.13706083 | AV106: 20814.14088 | AW106: 8.672558699 | AZ106: 1023 | BA106: 103283.6157 | BB106: 43.03483989 | BD106: 0 | BE106: 0 | BH106: 0 | BI106: 0 | BJ106: 0 | BL106: 0 | BM106: 0 | BP106: 168.83 | BQ106: 17045.33025 | BR106: 7.102220937 | BT106: 20814.14088 | BU106: 8.672558699
B107: 78 | C107: 1191.83 | H107: 78 | I107: 1023 | U107: 100 | V107: 100 | W107: 1191.83 | Y107: -1191.83 | AC107: 1023 | AE107: -1023 | AI107: 100 | AJ107: 1191.83 | AK107: 121520.776 | AL107: 50.63365666 | AN107: 20814.14088 | AO107: 8.672558699 | AR107: 1191.83 | AS107: 121520.776 | AT107: 50.63365666 | AV107: 20814.14088 | AW107: 8.672558699 | AZ107: 1023 | BA107: 104306.6157 | BB107: 43.46108989 | BD107: 0 | BE107: 0 | BH107: 0 | BI107: 0 | BJ107: 0 | BL107: 0 | BM107: 0 | BP107: 168.83 | BQ107: 17214.16025 | BR107: 7.17256677 | BT107: 20814.14088 | BU107: 8.672558699
B108: 79 | C108: 1191.83 | H108: 79 | I108: 1023 | U108: 101 | V108: 101 | W108: 1191.83 | Y108: -1191.83 | AC108: 1023 | AE108: -1023 | AI108: 101 | AJ108: 1191.83 | AK108: 122712.606 | AL108: 51.13025249 | AN108: 20814.14088 | AO108: 8.672558699 | AR108: 1191.83 | AS108: 122712.606 | AT108: 51.13025249 | AV108: 20814.14088 | AW108: 8.672558699 | AZ108: 1023 | BA108: 105329.6157 | BB108: 43.88733989 | BD108: 0 | BE108: 0 | BH108: 0 | BI108: 0 | BJ108: 0 | BL108: 0 | BM108: 0 | BP108: 168.83 | BQ108: 17382.99025 | BR108: 7.242912604 | BT108: 20814.14088 | BU108: 8.672558699
B109: 80 | C109: 1191.83 | H109: 80 | I109: 1023 | U109: 102 | V109: 102 | W109: 1191.83 | Y109: -1191.83 | AC109: 1023 | AE109: -1023 | AI109: 102 | AJ109: 1191.83 | AK109: 123904.436 | AL109: 51.62684833 | AN109: 20814.14088 | AO109: 8.672558699 | AR109: 1191.83 | AS109: 123904.436 | AT109: 51.62684833 | AV109: 20814.14088 | AW109: 8.672558699 | AZ109: 1023 | BA109: 106352.6157 | BB109: 44.31358989 | BD109: 0 | BE109: 0 | BH109: 0 | BI109: 0 | BJ109: 0 | BL109: 0 | BM109: 0 | BP109: 168.83 | BQ109: 17551.82025 | BR109: 7.313258437 | BT109: 20814.14088 | BU109: 8.672558699
B110: 81 | C110: 1191.83 | H110: 81 | I110: 1023 | U110: 103 | V110: 103 | W110: 1191.83 | Y110: -1191.83 | AC110: 1023 | AE110: -1023 | AI110: 103 | AJ110: 1191.83 | AK110: 125096.266 | AL110: 52.12344416 | AN110: 20814.14088 | AO110: 8.672558699 | AR110: 1191.83 | AS110: 125096.266 | AT110: 52.12344416 | AV110: 20814.14088 | AW110: 8.672558699 | AZ110: 1023 | BA110: 107375.6157 | BB110: 44.73983989 | BD110: 0 | BE110: 0 | BH110: 0 | BI110: 0 | BJ110: 0 | BL110: 0 | BM110: 0 | BP110: 168.83 | BQ110: 17720.65025 | BR110: 7.38360427 | BT110: 20814.14088 | BU110: 8.672558699
B111: 82 | C111: 1191.83 | H111: 82 | I111: 1023 | U111: 104 | V111: 104 | W111: 1191.83 | Y111: -1191.83 | AC111: 1023 | AE111: -1023 | AI111: 104 | AJ111: 1191.83 | AK111: 126288.096 | AL111: 52.62003999 | AN111: 20814.14088 | AO111: 8.672558699 | AR111: 1191.83 | AS111: 126288.096 | AT111: 52.62003999 | AV111: 20814.14088 | AW111: 8.672558699 | AZ111: 1023 | BA111: 108398.6157 | BB111: 45.16608989 | BD111: 0 | BE111: 0 | BH111: 0 | BI111: 0 | BJ111: 0 | BL111: 0 | BM111: 0 | BP111: 168.83 | BQ111: 17889.48025 | BR111: 7.453950104 | BT111: 20814.14088 | BU111: 8.672558699
B112: 83 | C112: 1191.83 | H112: 83 | I112: 1023 | U112: 105 | V112: 105 | W112: 1191.83 | Y112: -1191.83 | AC112: 1023 | AE112: -1023 | AI112: 105 | AJ112: 1191.83 | AK112: 127479.926 | AL112: 53.11663583 | AN112: 20814.14088 | AO112: 8.672558699 | AR112: 1191.83 | AS112: 127479.926 | AT112: 53.11663583 | AV112: 20814.14088 | AW112: 8.672558699 | AZ112: 1023 | BA112: 109421.6157 | BB112: 45.59233989 | BD112: 0 | BE112: 0 | BH112: 0 | BI112: 0 | BJ112: 0 | BL112: 0 | BM112: 0 | BP112: 168.83 | BQ112: 18058.31025 | BR112: 7.524295937 | BT112: 20814.14088 | BU112: 8.672558699
B113: 84 | C113: 1191.83 | E113: ATTENTION Si vous avez plus de deux offres de prêts à comparer, à chaque simulation il suffit de conserver la plus intéressante et de remplacer celle qui est la plus chère par une nouvelle à comparer….et ainsi de suite. In fine vous obtiendrez le plan de financement financièrement le plus intéressant. | H113: 84 | I113: 1023 | U113: 106 | V113: 106 | W113: 1191.83 | Y113: -1191.83 | AC113: 1023 | AE113: -1023 | AI113: 106 | AJ113: 1191.83 | AK113: 128671.756 | AL113: 53.61323166 | AN113: 20814.14088 | AO113: 8.672558699 | AR113: 1191.83 | AS113: 128671.756 | AT113: 53.61323166 | AV113: 20814.14088 | AW113: 8.672558699 | AZ113: 1023 | BA113: 110444.6157 | BB113: 46.01858989 | BD113: 0 | BE113: 0 | BH113: 0 | BI113: 0 | BJ113: 0 | BL113: 0 | BM113: 0 | BP113: 168.83 | BQ113: 18227.14025 | BR113: 7.59464177 | BT113: 20814.14088 | BU113: 8.672558699
B114: 85 | C114: 1191.83 | H114: 85 | I114: 1023 | U114: 107 | V114: 107 | W114: 1191.83 | Y114: -1191.83 | AC114: 1023 | AE114: -1023 | AI114: 107 | AJ114: 1191.83 | AK114: 129863.586 | AL114: 54.10982749 | AN114: 20814.14088 | AO114: 8.672558699 | AR114: 1191.83 | AS114: 129863.586 | AT114: 54.10982749 | AV114: 20814.14088 | AW114: 8.672558699 | AZ114: 1023 | BA114: 111467.6157 | BB114: 46.44483989 | BD114: 0 | BE114: 0 | BH114: 0 | BI114: 0 | BJ114: 0 | BL114: 0 | BM114: 0 | BP114: 168.83 | BQ114: 18395.97025 | BR114: 7.664987604 | BT114: 20814.14088 | BU114: 8.672558699
B115: 86 | C115: 1191.83 | H115: 86 | I115: 1023 | U115: 108 | V115: 108 | W115: 1191.83 | Y115: -1191.83 | AC115: 1023 | AE115: -1023 | AI115: 108 | AJ115: 1191.83 | AK115: =IF(AI115>$K$21,0,AK114+AJ115) -> 131055.416 | AL115: 54.60642333 | AM115: =SUM(AL104:AL115) -> 622.5017549 | AN115: =IF(AI115>$K$21,0,AN114+AP115) -> 20918.21158 | AO115: 8.672558699 | AP115: =SUM(AO104:AO115) -> 104.0707044 | AR115: 1191.83 | AS115: =IF(AI115>$K$21,0,AS114+AR115) -> 131055.416 | AT115: 54.60642333 | AU115: =SUM(AT104:AT115) -> 622.5017549 | AV115: =IF(AI115>$K$21,0,AV114+AX115) -> 20918.21158 | AW115: 8.672558699 | AX115: =SUM(AW104:AW115) -> 104.0707044 | AZ115: 1023 | BA115: 112490.6157 | BB115: 46.87108989 | BC115: =SUM(BB104:BB115) -> 534.3205787 | BD115: =IF(AI115>$K$21,0,BD114+BF115) -> 0 | BE115: 0 | BF115: =SUM(BE104:BE115) -> 0 | BH115: 0 | BI115: 0 | BJ115: 0 | BK115: =SUM(BJ104:BJ115) -> 0 | BL115: =IF(AI115>$K$21,0,BL114+BN115) -> 0 | BM115: 0 | BN115: =SUM(BM104:BM115) -> 0 | BP115: 168.83 | BQ115: 18564.80025 | BR115: 7.735333437 | BS115: =SUM(BR104:BR115) -> 88.18117624 | BT115: =IF(AI115>$K$21,0,BT114+BV115) -> 20918.21158 | BU115: 8.672558699 | BV115: =SUM(BU104:BU115) -> 104.0707044
B116: 87 | C116: 1191.83 | H116: 87 | I116: 1023 | U116: 109 | V116: 109 | W116: 1191.83 | Y116: -1191.83 | AC116: 1023 | AE116: -1023 | AI116: 109 | AJ116: 1191.83 | AK116: =IF(AI116>$K$21,0,AK115+AJ116+AM115) -> 132869.7477 | AL116: 55.36239489 | AN116: 20918.21158 | AO116: 8.715921493 | AR116: 1191.83 | AS116: =IF(AI116>$K$21,0,AS115+AR116+AU115) -> 132869.7477 | AT116: 55.36239489 | AV116: =IF(AI116>$K$21,0,AV115) -> 20918.21158 | AW116: 8.715921493 | AZ116: 1023 | BA116: =IF(AI116>$K$21,0,BA115+AZ116+BC115) -> 114047.9363 | BB116: 47.51997346 | BD116: =IF(AI116>$K$21,0,BD115) -> 0 | BE116: 0 | BH116: 0 | BI116: =IF(AI116>$K$21,0,BI115+BH116+BK115) -> 0 | BJ116: 0 | BL116: =IF(AI116>$K$21,0,BL115) -> 0 | BM116: 0 | BP116: 168.83 | BQ116: =IF(AI116>$K$21,0,BQ115+BP116+BS115) -> 18821.81142 | BR116: 7.842421427 | BT116: =IF(AI116>$K$21,0,BT115) -> 20918.21158 | BU116: 8.715921493
B117: 88 | C117: 1191.83 | H117: 88 | I117: 1023 | U117: 110 | V117: 110 | W117: 1191.83 | Y117: -1191.83 | AC117: 1023 | AE117: -1023 | AI117: 110 | AJ117: 1191.83 | AK117: =AK116+AJ117 -> 134061.5777 | AL117: 55.85899072 | AN117: 20918.21158 | AO117: 8.715921493 | AR117: 1191.83 | AS117: =IF(AI117>$K$21,0,AS116+AR117) -> 134061.5777 | AT117: 55.85899072 | AV117: 20918.21158 | AW117: 8.715921493 | AZ117: 1023 | BA117: 115070.9363 | BB117: 47.94622346 | BD117: 0 | BE117: 0 | BH117: 0 | BI117: 0 | BJ117: 0 | BL117: 0 | BM117: 0 | BP117: 168.83 | BQ117: 18990.64142 | BR117: 7.91276726 | BT117: 20918.21158 | BU117: 8.715921493
B118: 89 | C118: 1191.83 | H118: 89 | I118: 1023 | U118: 111 | V118: 111 | W118: 1191.83 | Y118: -1191.83 | AC118: 1023 | AE118: -1023 | AI118: 111 | AJ118: 1191.83 | AK118: 135253.4077 | AL118: 56.35558656 | AN118: 20918.21158 | AO118: 8.715921493 | AR118: 1191.83 | AS118: 135253.4077 | AT118: 56.35558656 | AV118: 20918.21158 | AW118: 8.715921493 | AZ118: 1023 | BA118: 116093.9363 | BB118: 48.37247346 | BD118: 0 | BE118: 0 | BH118: 0 | BI118: 0 | BJ118: 0 | BL118: 0 | BM118: 0 | BP118: 168.83 | BQ118: 19159.47142 | BR118: 7.983113094 | BT118: 20918.21158 | BU118: 8.715921493
B119: 90 | C119: 1191.83 | H119: 90 | I119: 1023 | U119: 112 | V119: 112 | W119: 1191.83 | Y119: -1191.83 | AC119: 1023 | AE119: -1023 | AI119: 112 | AJ119: 1191.83 | AK119: 136445.2377 | AL119: 56.85218239 | AN119: 20918.21158 | AO119: 8.715921493 | AR119: 1191.83 | AS119: 136445.2377 | AT119: 56.85218239 | AV119: 20918.21158 | AW119: 8.715921493 | AZ119: 1023 | BA119: 117116.9363 | BB119: 48.79872346 | BD119: 0 | BE119: 0 | BH119: 0 | BI119: 0 | BJ119: 0 | BL119: 0 | BM119: 0 | BP119: 168.83 | BQ119: 19328.30142 | BR119: 8.053458927 | BT119: 20918.21158 | BU119: 8.715921493
B120: 91 | C120: 1191.83 | H120: 91 | I120: 1023 | U120: 113 | V120: 113 | W120: 1191.83 | Y120: -1191.83 | AC120: 1023 | AE120: -1023 | AI120: 113 | AJ120: 1191.83 | AK120: 137637.0677 | AL120: 57.34877822 | AN120: 20918.21158 | AO120: 8.715921493 | AR120: 1191.83 | AS120: 137637.0677 | AT120: 57.34877822 | AV120: 20918.21158 | AW120: 8.715921493 | AZ120: 1023 | BA120: 118139.9363 | BB120: 49.22497346 | BD120: 0 | BE120: 0 | BH120: 0 | BI120: 0 | BJ120: 0 | BL120: 0 | BM120: 0 | BP120: 168.83 | BQ120: 19497.13142 | BR120: 8.12380476 | BT120: 20918.21158 | BU120: 8.715921493
B121: 92 | C121: 1191.83 | H121: 92 | I121: 1023 | U121: 114 | V121: 114 | W121: 1191.83 | Y121: -1191.83 | AC121: 1023 | AE121: -1023 | AI121: 114 | AJ121: 1191.83 | AK121: 138828.8977 | AL121: 57.84537406 | AN121: 20918.21158 | AO121: 8.715921493 | AR121: 1191.83 | AS121: 138828.8977 | AT121: 57.84537406 | AV121: 20918.21158 | AW121: 8.715921493 | AZ121: 1023 | BA121: 119162.9363 | BB121: 49.65122346 | BD121: 0 | BE121: 0 | BH121: 0 | BI121: 0 | BJ121: 0 | BL121: 0 | BM121: 0 | BP121: 168.83 | BQ121: 19665.96142 | BR121: 8.194150594 | BT121: 20918.21158 | BU121: 8.715921493
B122: 93 | C122: 1191.83 | H122: 93 | I122: 1023 | U122: 115 | V122: 115 | W122: 1191.83 | Y122: -1191.83 | AC122: 1023 | AE122: -1023 | AI122: 115 | AJ122: 1191.83 | AK122: 140020.7277 | AL122: 58.34196989 | AN122: 20918.21158 | AO122: 8.715921493 | AR122: 1191.83 | AS122: 140020.7277 | AT122: 58.34196989 | AV122: 20918.21158 | AW122: 8.715921493 | AZ122: 1023 | BA122: 120185.9363 | BB122: 50.07747346 | BD122: 0 | BE122: 0 | BH122: 0 | BI122: 0 | BJ122: 0 | BL122: 0 | BM122: 0 | BP122: 168.83 | BQ122: 19834.79142 | BR122: 8.264496427 | BT122: 20918.21158 | BU122: 8.715921493
B123: 94 | C123: 1191.83 | H123: 94 | I123: 1023 | U123: 116 | V123: 116 | W123: 1191.83 | Y123: -1191.83 | AC123: 1023 | AE123: -1023 | AI123: 116 | AJ123: 1191.83 | AK123: 141212.5577 | AL123: 58.83856572 | AN123: 20918.21158 | AO123: 8.715921493 | AR123: 1191.83 | AS123: 141212.5577 | AT123: 58.83856572 | AV123: 20918.21158 | AW123: 8.715921493 | AZ123: 1023 | BA123: 121208.9363 | BB123: 50.50372346 | BD123: 0 | BE123: 0 | BH123: 0 | BI123: 0 | BJ123: 0 | BL123: 0 | BM123: 0 | BP123: 168.83 | BQ123: 20003.62142 | BR123: 8.33484226 | BT123: 20918.21158 | BU123: 8.715921493
B124: 95 | C124: 1191.83 | H124: 95 | I124: 1023 | U124: 117 | V124: 117 | W124: 1191.83 | Y124: -1191.83 | AC124: 1023 | AE124: -1023 | AI124: 117 | AJ124: 1191.83 | AK124: 142404.3877 | AL124: 59.33516156 | AN124: 20918.21158 | AO124: 8.715921493 | AR124: 1191.83 | AS124: 142404.3877 | AT124: 59.33516156 | AV124: 20918.21158 | AW124: 8.715921493 | AZ124: 1023 | BA124: 122231.9363 | BB124: 50.92997346 | BD124: 0 | BE124: 0 | BH124: 0 | BI124: 0 | BJ124: 0 | BL124: 0 | BM124: 0 | BP124: 168.83 | BQ124: 20172.45142 | BR124: 8.405188094 | BT124: 20918.21158 | BU124: 8.715921493
B125: 96 | C125: 1191.83 | H125: 96 | I125: 1023 | U125: 118 | V125: 118 | W125: 1191.83 | Y125: -1191.83 | AC125: 1023 | AE125: -1023 | AI125: 118 | AJ125: 1191.83 | AK125: 143596.2177 | AL125: 59.83175739 | AN125: 20918.21158 | AO125: 8.715921493 | AR125: 1191.83 | AS125: 143596.2177 | AT125: 59.83175739 | AV125: 20918.21158 | AW125: 8.715921493 | AZ125: 1023 | BA125: 123254.9363 | BB125: 51.35622346 | BD125: 0 | BE125: 0 | BH125: 0 | BI125: 0 | BJ125: 0 | BL125: 0 | BM125: 0 | BP125: 168.83 | BQ125: 20341.28142 | BR125: 8.475533927 | BT125: 20918.21158 | BU125: 8.715921493
B126: 97 | C126: 1191.83 | H126: 97 | I126: 1023 | U126: 119 | V126: 119 | W126: 1191.83 | Y126: -1191.83 | AC126: 1023 | AE126: -1023 | AI126: 119 | AJ126: 1191.83 | AK126: 144788.0477 | AL126: 60.32835322 | AN126: 20918.21158 | AO126: 8.715921493 | AR126: 1191.83 | AS126: 144788.0477 | AT126: 60.32835322 | AV126: 20918.21158 | AW126: 8.715921493 | AZ126: 1023 | BA126: 124277.9363 | BB126: 51.78247346 | BD126: 0 | BE126: 0 | BH126: 0 | BI126: 0 | BJ126: 0 | BL126: 0 | BM126: 0 | BP126: 168.83 | BQ126: 20510.11142 | BR126: 8.54587976 | BT126: 20918.21158 | BU126: 8.715921493
B127: 98 | C127: 1191.83 | H127: 98 | I127: 1023 | U127: 120 | V127: 120 | W127: 1191.83 | Y127: -1191.83 | AC127: 1023 | AE127: -1023 | AI127: 120 | AJ127: 1191.83 | AK127: =IF(AI127>$K$21,0,AK126+AJ127) -> 145979.8777 | AL127: 60.82494906 | AM127: =SUM(AL116:AL127) -> 697.1240637 | AN127: =IF(AI127>$K$21,0,AN126+AP127) -> 21022.80264 | AO127: 8.715921493 | AP127: =SUM(AO116:AO127) -> 104.5910579 | AR127: 1191.83 | AS127: =IF(AI127>$K$21,0,AS126+AR127) -> 145979.8777 | AT127: 60.82494906 | AU127: =SUM(AT116:AT127) -> 697.1240637 | AV127: =IF(AI127>$K$21,0,AV126+AX127) -> 21022.80264 | AW127: 8.715921493 | AX127: =SUM(AW116:AW127) -> 104.5910579 | AZ127: 1023 | BA127: 125300.9363 | BB127: 52.20872346 | BC127: =SUM(BB116:BB127) -> 598.3721816 | BD127: =IF(AI127>$K$21,0,BD126+BF127) -> 0 | BE127: 0 | BF127: =SUM(BE116:BE127) -> 0 | BH127: 0 | BI127: 0 | BJ127: 0 | BK127: =SUM(BJ116:BJ127) -> 0 | BL127: =IF(AI127>$K$21,0,BL126+BN127) -> 0 | BM127: 0 | BN127: =SUM(BM116:BM127) -> 0 | BP127: 168.83 | BQ127: 20678.94142 | BR127: 8.616225594 | BS127: =SUM(BR116:BR127) -> 98.75188212 | BT127: =IF(AI127>$K$21,0,BT126+BV127) -> 21022.80264 | BU127: 8.715921493 | BV127: =SUM(BU116:BU127) -> 104.5910579
B128: 99 | C128: 1191.83 | H128: 99 | I128: 1023 | U128: 121 | V128: 121 | W128: 1191.83 | Y128: -1191.83 | AC128: 1023 | AE128: -1023 | AI128: 121 | AJ128: 1191.83 | AK128: =IF(AI128>$K$21,0,AK127+AJ128+AM127) -> 147868.8318 | AL128: 61.61201325 | AN128: 21022.80264 | AO128: 8.7595011 | AR128: 1191.83 | AS128: =IF(AI128>$K$21,0,AS127+AR128+AU127) -> 147868.8318 | AT128: 61.61201325 | AV128: =IF(AI128>$K$21,0,AV127) -> 21022.80264 | AW128: 8.7595011 | AZ128: 1023 | BA128: =IF(AI128>$K$21,0,BA127+AZ128+BC127) -> 126922.3085 | BB128: 52.88429521 | BD128: =IF(AI128>$K$21,0,BD127) -> 0 | BE128: 0 | BH128: 0 | BI128: =IF(AI128>$K$21,0,BI127+BH128+BK127) -> 0 | BJ128: 0 | BL128: =IF(AI128>$K$21,0,BL127) -> 0 | BM128: 0 | BP128: 168.83 | BQ128: =IF(AI128>$K$21,0,BQ127+BP128+BS127) -> 20946.52331 | BR128: 8.727718045 | BT128: =IF(AI128>$K$21,0,BT127) -> 21022.80264 | BU128: 8.7595011
B129: 100 | C129: 1191.83 | H129: 100 | I129: 1023 | U129: 122 | V129: 122 | W129: 1191.83 | Y129: -1191.83 | AC129: 1023 | AE129: -1023 | AI129: 122 | AJ129: 1191.83 | AK129: =AK128+AJ129 -> 149060.6618 | AL129: 62.10860908 | AN129: 21022.80264 | AO129: 8.7595011 | AR129: 1191.83 | AS129: =IF(AI129>$K$21,0,AS128+AR129) -> 149060.6618 | AT129: 62.10860908 | AV129: 21022.80264 | AW129: 8.7595011 | AZ129: 1023 | BA129: 127945.3085 | BB129: 53.31054521 | BD129: 0 | BE129: 0 | BH129: 0 | BI129: 0 | BJ129: 0 | BL129: 0 | BM129: 0 | BP129: 168.83 | BQ129: 21115.35331 | BR129: 8.798063878 | BT129: 21022.80264 | BU129: 8.7595011
B130: 101 | C130: 1191.83 | H130: 101 | I130: 1023 | U130: 123 | V130: 123 | W130: 1191.83 | Y130: -1191.83 | AC130: 1023 | AE130: -1023 | AI130: 123 | AJ130: 1191.83 | AK130: 150252.4918 | AL130: 62.60520492 | AN130: 21022.80264 | AO130: 8.7595011 | AR130: 1191.83 | AS130: 150252.4918 | AT130: 62.60520492 | AV130: 21022.80264 | AW130: 8.7595011 | AZ130: 1023 | BA130: 128968.3085 | BB130: 53.73679521 | BD130: 0 | BE130: 0 | BH130: 0 | BI130: 0 | BJ130: 0 | BL130: 0 | BM130: 0 | BP130: 168.83 | BQ130: 21284.18331 | BR130: 8.868409711 | BT130: 21022.80264 | BU130: 8.7595011
B131: 102 | C131: 1191.83 | H131: 102 | I131: 1023 | U131: 124 | V131: 124 | W131: 1191.83 | Y131: -1191.83 | AC131: 1023 | AE131: -1023 | AI131: 124 | AJ131: 1191.83 | AK131: 151444.3218 | AL131: 63.10180075 | AN131: 21022.80264 | AO131: =IF(AI131>$K$21,0,AN130*$E$20/12) -> 8.7595011 | AR131: 1191.83 | AS131: 151444.3218 | AT131: 63.10180075 | AV131: 21022.80264 | AW131: 8.7595011 | AZ131: 1023 | BA131: 129991.3085 | BB131: 54.16304521 | BD131: 0 | BE131: 0 | BH131: 0 | BI131: 0 | BJ131: 0 | BL131: 0 | BM131: 0 | BP131: 168.83 | BQ131: 21453.01331 | BR131: 8.938755545 | BT131: 21022.80264 | BU131: 8.7595011
B132: 103 | C132: 1191.83 | H132: 103 | I132: 1023 | U132: 125 | V132: 125 | W132: 1191.83 | Y132: -1191.83 | AC132: 1023 | AE132: -1023 | AI132: 125 | AJ132: 1191.83 | AK132: 152636.1518 | AL132: 63.59839658 | AN132: 21022.80264 | AO132: 8.7595011 | AR132: 1191.83 | AS132: 152636.1518 | AT132: 63.59839658 | AV132: 21022.80264 | AW132: 8.7595011 | AZ132: 1023 | BA132: 131014.3085 | BB132: 54.58929521 | BD132: 0 | BE132: 0 | BH132: 0 | BI132: 0 | BJ132: 0 | BL132: 0 | BM132: 0 | BP132: 168.83 | BQ132: 21621.84331 | BR132: 9.009101378 | BT132: 21022.80264 | BU132: 8.7595011
B133: 104 | C133: 1191.83 | H133: 104 | I133: 1023 | U133: 126 | V133: 126 | W133: 1191.83 | Y133: -1191.83 | AC133: 1023 | AE133: -1023 | AI133: 126 | AJ133: 1191.83 | AK133: 153827.9818 | AL133: 64.09499242 | AN133: 21022.80264 | AO133: 8.7595011 | AR133: 1191.83 | AS133: 153827.9818 | AT133: 64.09499242 | AV133: 21022.80264 | AW133: 8.7595011 | AZ133: 1023 | BA133: 132037.3085 | BB133: 55.01554521 | BD133: 0 | BE133: 0 | BH133: 0 | BI133: 0 | BJ133: 0 | BL133: 0 | BM133: 0 | BP133: 168.83 | BQ133: 21790.67331 | BR133: 9.079447211 | BT133: 21022.80264 | BU133: 8.7595011
B134: 105 | C134: 1191.83 | H134: 105 | I134: 1023 | U134: 127 | V134: 127 | W134: 1191.83 | Y134: -1191.83 | AC134: 1023 | AE134: -1023 | AI134: 127 | AJ134: 1191.83 | AK134: 155019.8118 | AL134: 64.59158825 | AN134: 21022.80264 | AO134: 8.7595011 | AR134: 1191.83 | AS134: 155019.8118 | AT134: 64.59158825 | AV134: 21022.80264 | AW134: 8.7595011 | AZ134: 1023 | BA134: 133060.3085 | BB134: 55.44179521 | BD134: 0 | BE134: 0 | BH134: 0 | BI134: 0 | BJ134: 0 | BL134: 0 | BM134: 0 | BP134: 168.83 | BQ134: 21959.50331 | BR134: 9.149793045 | BT134: 21022.80264 | BU134: 8.7595011
B135: 106 | C135: 1191.83 | H135: 106 | I135: 1023 | U135: 128 | V135: 128 | W135: 1191.83 | Y135: -1191.83 | AC135: 1023 | AE135: -1023 | AI135: 128 | AJ135: 1191.83 | AK135: 156211.6418 | AL135: 65.08818408 | AN135: 21022.80264 | AO135: 8.7595011 | AR135: 1191.83 | AS135: 156211.6418 | AT135: 65.08818408 | AV135: 21022.80264 | AW135: 8.7595011 | AZ135: 1023 | BA135: 134083.3085 | BB135: 55.86804521 | BD135: 0 | BE135: 0 | BH135: 0 | BI135: 0 | BJ135: 0 | BL135: 0 | BM135: 0 | BP135: 168.83 | BQ135: 22128.33331 | BR135: 9.220138878 | BT135: 21022.80264 | BU135: 8.7595011
B136: 107 | C136: 1191.83 | H136: 107 | I136: 1023 | U136: 129 | V136: 129 | W136: =C158 -> 1191.83 | Y136: =-W136 -> -1191.83 | AC136: =I158 -> 1023 | AE136: =-AC136 -> -1023 | AI136: 129 | AJ136: 1191.83 | AK136: 157403.4718 | AL136: =AK136*$E$20/12 -> 65.58477992 | AN136: 21022.80264 | AO136: 8.7595011 | AR136: =W136 -> 1191.83 | AS136: 157403.4718 | AT136: =AS136*$E$20/12 -> 65.58477992 | AV136: 21022.80264 | AW136: 8.7595011 | AZ136: =AC136 -> 1023 | BA136: 135106.3085 | BB136: =BA136*$E$20/12 -> 56.29429521 | BD136: 0 | BE136: 0 | BH136: =AJ136-W136 -> 0 | BI136: 0 | BJ136: =BI136*$E$20/12 -> 0 | BL136: 0 | BM136: 0 | BP136: =AJ136-AC136 -> 168.83 | BQ136: 22297.16331 | BR136: =BQ136*$E$20/12 -> 9.290484711 | BT136: 21022.80264 | BU136: 8.7595011
B137: 108 | C137: 1191.83 | H137: 108 | I137: 1023 | U137: 130 | V137: 130 | W137: 1191.83 | Y137: -1191.83 | AC137: 1023 | AE137: -1023 | AI137: 130 | AJ137: =IF(AI137>$K$21,0,IF(AC137>W137,AC137,W137)) -> 1191.83 | AK137: 158595.3018 | AL137: 66.08137575 | AN137: =IF(AI137>$K$21,0,AN136) -> 21022.80264 | AO137: 8.7595011 | AR137: 1191.83 | AS137: 158595.3018 | AT137: 66.08137575 | AV137: 21022.80264 | AW137: 8.7595011 | AZ137: 1023 | BA137: 136129.3085 | BB137: 56.72054521 | BD137: 0 | BE137: 0 | BH137: 0 | BI137: 0 | BJ137: 0 | BL137: 0 | BM137: 0 | BP137: 168.83 | BQ137: 22465.99331 | BR137: 9.360830545 | BT137: 21022.80264 | BU137: =IF(AI137>$K$21,0,BT136*$E$20/12) -> 8.7595011
B138: 109 | C138: 1191.83 | H138: 109 | I138: 1023 | U138: 131 | V138: 131 | W138: 1191.83 | Y138: -1191.83 | AC138: 1023 | AE138: -1023 | AI138: 131 | AJ138: 1191.83 | AK138: 159787.1318 | AL138: 66.57797158 | AN138: 21022.80264 | AO138: 8.7595011 | AR138: 1191.83 | AS138: 159787.1318 | AT138: 66.57797158 | AV138: 21022.80264 | AW138: 8.7595011 | AZ138: 1023 | BA138: 137152.3085 | BB138: 57.14679521 | BD138: 0 | BE138: 0 | BH138: 0 | BI138: 0 | BJ138: 0 | BL138: 0 | BM138: 0 | BP138: 168.83 | BQ138: 22634.82331 | BR138: 9.431176378 | BT138: 21022.80264 | BU138: 8.7595011
B139: 110 | C139: 1191.83 | H139: 110 | I139: 1023 | U139: 132 | V139: 132 | W139: 1191.83 | Y139: -1191.83 | AC139: 1023 | AE139: -1023 | AI139: 132 | AJ139: 1191.83 | AK139: =IF(AI139>$K$21,0,AK138+AJ139) -> 160978.9618 | AL139: 67.07456742 | AM139: =SUM(AL128:AL139) -> 772.119484 | AN139: =IF(AI139>$K$21,0,AN138+AP139) -> 21127.91665 | AO139: 8.7595011 | AP139: =SUM(AO128:AO139) -> 105.1140132 | AR139: 1191.83 | AS139: =IF(AI139>$K$21,0,AS138+AR139) -> 160978.9618 | AT139: 67.07456742 | AU139: =SUM(AT128:AT139) -> 772.119484 | AV139: =IF(AI139>$K$21,0,AV138+AX139) -> 21127.91665 | AW139: 8.7595011 | AX139: =SUM(AW128:AW139) -> 105.1140132 | AZ139: 1023 | BA139: 138175.3085 | BB139: 57.57304521 | BC139: =SUM(BB128:BB139) -> 662.7440425 | BD139: =IF(AI139>$K$21,0,BD138+BF139) -> 0 | BE139: 0 | BF139: =SUM(BE128:BE139) -> 0 | BH139: 0 | BI139: 0 | BJ139: 0 | BK139: =SUM(BJ128:BJ139) -> 0 | BL139: =IF(AI139>$K$21,0,BL138+BN139) -> 0 | BM139: 0 | BN139: =SUM(BM128:BM139) -> 0 | BP139: 168.83 | BQ139: 22803.65331 | BR139: 9.501522211 | BS139: =SUM(BR128:BR139) -> 109.3754415 | BT139: =IF(AI139>$K$21,0,BT138+BV139) -> 21127.91665 | BU139: 8.7595011 | BV139: =SUM(BU128:BU139) -> 105.1140132
B140: 111 | C140: 1191.83 | H140: 111 | I140: 1023 | U140: 133 | V140: 133 | W140: 1191.83 | Y140: -1191.83 | AC140: 1023 | AE140: -1023 | AI140: 133 | AJ140: 1191.83 | AK140: =IF(AI140>$K$21,0,AK139+AJ140+AM139) -> 162942.9113 | AL140: 67.8928797 | AN140: 21127.91665 | AO140: 8.803298606 | AR140: 1191.83 | AS140: =IF(AI140>$K$21,0,AS139+AR140+AU139) -> 162942.9113 | AT140: 67.8928797 | AV140: =IF(AI140>$K$21,0,AV139) -> 21127.91665 | AW140: 8.803298606 | AZ140: 1023 | BA140: =IF(AI140>$K$21,0,BA139+AZ140+BC139) -> 139861.0525 | BB140: 58.27543856 | BD140: =IF(AI140>$K$21,0,BD139) -> 0 | BE140: 0 | BH140: 0 | BI140: =IF(AI140>$K$21,0,BI139+BH140+BK139) -> 0 | BJ140: 0 | BL140: =IF(AI140>$K$21,0,BL139) -> 0 | BM140: 0 | BP140: 168.83 | BQ140: =IF(AI140>$K$21,0,BQ139+BP140+BS139) -> 23081.85875 | BR140: 9.617441145 | BT140: =IF(AI140>$K$21,0,BT139) -> 21127.91665 | BU140: 8.803298606
B141: 112 | C141: 1191.83 | H141: 112 | I141: 1023 | U141: 134 | V141: 134 | W141: 1191.83 | Y141: -1191.83 | AC141: 1023 | AE141: -1023 | AI141: 134 | AJ141: 1191.83 | AK141: =AK140+AJ141 -> 164134.7413 | AL141: 68.38947554 | AN141: 21127.91665 | AO141: 8.803298606 | AR141: 1191.83 | AS141: =IF(AI141>$K$21,0,AS140+AR141) -> 164134.7413 | AT141: 68.38947554 | AV141: 21127.91665 | AW141: 8.803298606 | AZ141: 1023 | BA141: 140884.0525 | BB141: 58.70168856 | BD141: 0 | BE141: 0 | BH141: 0 | BI141: 0 | BJ141: 0 | BL141: 0 | BM141: 0 | BP141: 168.83 | BQ141: 23250.68875 | BR141: 9.687786979 | BT141: 21127.91665 | BU141: 8.803298606
B142: 113 | C142: 1191.83 | H142: 113 | I142: 1023 | U142: 135 | V142: 135 | W142: 1191.83 | Y142: -1191.83 | AC142: 1023 | AE142: -1023 | AI142: 135 | AJ142: 1191.83 | AK142: 165326.5713 | AL142: 68.88607137 | AN142: 21127.91665 | AO142: 8.803298606 | AR142: 1191.83 | AS142: 165326.5713 | AT142: 68.88607137 | AV142: 21127.91665 | AW142: 8.803298606 | AZ142: 1023 | BA142: 141907.0525 | BB142: 59.12793856 | BD142: 0 | BE142: 0 | BH142: 0 | BI142: 0 | BJ142: 0 | BL142: 0 | BM142: 0 | BP142: 168.83 | BQ142: 23419.51875 | BR142: 9.758132812 | BT142: 21127.91665 | BU142: 8.803298606
B143: 114 | C143: 1191.83 | H143: 114 | I143: 1023 | U143: 136 | V143: 136 | W143: 1191.83 | Y143: -1191.83 | AC143: 1023 | AE143: -1023 | AI143: 136 | AJ143: 1191.83 | AK143: 166518.4013 | AL143: 69.3826672 | AN143: 21127.91665 | AO143: 8.803298606 | AR143: 1191.83 | AS143: 166518.4013 | AT143: 69.3826672 | AV143: 21127.91665 | AW143: 8.803298606 | AZ143: 1023 | BA143: 142930.0525 | BB143: 59.55418856 | BD143: 0 | BE143: 0 | BH143: 0 | BI143: 0 | BJ143: 0 | BL143: 0 | BM143: 0 | BP143: 168.83 | BQ143: 23588.34875 | BR143: 9.828478645 | BT143: 21127.91665 | BU143: 8.803298606
B144: 115 | C144: 1191.83 | H144: 115 | I144: 1023 | U144: 137 | V144: 137 | W144: 1191.83 | Y144: -1191.83 | AC144: 1023 | AE144: -1023 | AI144: 137 | AJ144: 1191.83 | AK144: 167710.2313 | AL144: 69.87926304 | AN144: 21127.91665 | AO144: 8.803298606 | AR144: 1191.83 | AS144: 167710.2313 | AT144: 69.87926304 | AV144: 21127.91665 | AW144: 8.803298606 | AZ144: 1023 | BA144: 143953.0525 | BB144: 59.98043856 | BD144: 0 | BE144: 0 | BH144: 0 | BI144: 0 | BJ144: 0 | BL144: 0 | BM144: 0 | BP144: 168.83 | BQ144: 23757.17875 | BR144: 9.898824479 | BT144: 21127.91665 | BU144: 8.803298606
B145: 116 | C145: 1191.83 | H145: 116 | I145: 1023 | U145: 138 | V145: 138 | W145: 1191.83 | Y145: -1191.83 | AC145: 1023 | AE145: -1023 | AI145: 138 | AJ145: 1191.83 | AK145: 168902.0613 | AL145: 70.37585887 | AN145: 21127.91665 | AO145: 8.803298606 | AR145: 1191.83 | AS145: 168902.0613 | AT145: 70.37585887 | AV145: 21127.91665 | AW145: 8.803298606 | AZ145: 1023 | BA145: 144976.0525 | BB145: 60.40668856 | BD145: 0 | BE145: 0 | BH145: 0 | BI145: 0 | BJ145: 0 | BL145: 0 | BM145: 0 | BP145: 168.83 | BQ145: 23926.00875 | BR145: 9.969170312 | BT145: 21127.91665 | BU145: 8.803298606
B146: 117 | C146: 1191.83 | H146: 117 | I146: 1023 | U146: 139 | V146: 139 | W146: 1191.83 | Y146: -1191.83 | AC146: 1023 | AE146: -1023 | AI146: 139 | AJ146: 1191.83 | AK146: 170093.8913 | AL146: 70.8724547 | AN146: 21127.91665 | AO146: 8.803298606 | AR146: 1191.83 | AS146: 170093.8913 | AT146: 70.8724547 | AV146: 21127.91665 | AW146: 8.803298606 | AZ146: 1023 | BA146: 145999.0525 | BB146: 60.83293856 | BD146: 0 | BE146: 0 | BH146: 0 | BI146: 0 | BJ146: 0 | BL146: 0 | BM146: 0 | BP146: 168.83 | BQ146: 24094.83875 | BR146: 10.03951615 | BT146: 21127.91665 | BU146: 8.803298606
B147: 118 | C147: 1191.83 | H147: 118 | I147: 1023 | U147: 140 | V147: 140 | W147: 1191.83 | Y147: -1191.83 | AC147: 1023 | AE147: -1023 | AI147: 140 | AJ147: 1191.83 | AK147: 171285.7213 | AL147: 71.36905054 | AN147: 21127.91665 | AO147: 8.803298606 | AR147: 1191.83 | AS147: 171285.7213 | AT147: 71.36905054 | AV147: 21127.91665 | AW147: 8.803298606 | AZ147: 1023 | BA147: 147022.0525 | BB147: 61.25918856 | BD147: 0 | BE147: 0 | BH147: 0 | BI147: 0 | BJ147: 0 | BL147: 0 | BM147: 0 | BP147: 168.83 | BQ147: 24263.66875 | BR147: 10.10986198 | BT147: 21127.91665 | BU147: 8.803298606
B148: 119 | C148: 1191.83 | H148: 119 | I148: 1023 | U148: 141 | V148: 141 | W148: 1191.83 | Y148: -1191.83 | AC148: 1023 | AE148: -1023 | AI148: 141 | AJ148: 1191.83 | AK148: 172477.5513 | AL148: 71.86564637 | AN148: 21127.91665 | AO148: 8.803298606 | AR148: 1191.83 | AS148: 172477.5513 | AT148: 71.86564637 | AV148: 21127.91665 | AW148: 8.803298606 | AZ148: 1023 | BA148: 148045.0525 | BB148: 61.68543856 | BD148: 0 | BE148: 0 | BH148: 0 | BI148: 0 | BJ148: 0 | BL148: 0 | BM148: 0 | BP148: 168.83 | BQ148: 24432.49875 | BR148: 10.18020781 | BT148: 21127.91665 | BU148: 8.803298606
B149: 120 | C149: 1191.83 | H149: 120 | I149: 1023 | U149: 142 | V149: 142 | W149: 1191.83 | Y149: -1191.83 | AC149: 1023 | AE149: -1023 | AI149: 142 | AJ149: 1191.83 | AK149: 173669.3813 | AL149: 72.3622422 | AN149: 21127.91665 | AO149: 8.803298606 | AR149: 1191.83 | AS149: 173669.3813 | AT149: 72.3622422 | AV149: 21127.91665 | AW149: 8.803298606 | AZ149: 1023 | BA149: 149068.0525 | BB149: 62.11168856 | BD149: 0 | BE149: 0 | BH149: 0 | BI149: 0 | BJ149: 0 | BL149: 0 | BM149: 0 | BP149: 168.83 | BQ149: 24601.32875 | BR149: 10.25055365 | BT149: 21127.91665 | BU149: 8.803298606
B150: 121 | C150: 1191.83 | H150: 121 | I150: 1023 | U150: 143 | V150: 143 | W150: 1191.83 | Y150: -1191.83 | AC150: 1023 | AE150: -1023 | AI150: 143 | AJ150: 1191.83 | AK150: 174861.2113 | AL150: 72.85883804 | AN150: 21127.91665 | AO150: 8.803298606 | AR150: 1191.83 | AS150: 174861.2113 | AT150: 72.85883804 | AV150: 21127.91665 | AW150: 8.803298606 | AZ150: 1023 | BA150: 150091.0525 | BB150: 62.53793856 | BD150: 0 | BE150: 0 | BH150: 0 | BI150: 0 | BJ150: 0 | BL150: 0 | BM150: 0 | BP150: 168.83 | BQ150: 24770.15875 | BR150: 10.32089948 | BT150: 21127.91665 | BU150: 8.803298606
B151: 122 | C151: 1191.83 | H151: 122 | I151: 1023 | U151: 144 | V151: 144 | W151: 1191.83 | Y151: -1191.83 | AC151: 1023 | AE151: -1023 | AI151: 144 | AJ151: 1191.83 | AK151: =IF(AI151>$K$21,0,AK150+AJ151) -> 176053.0413 | AL151: 73.35543387 | AM151: =SUM(AL140:AL151) -> 847.4898814 | AN151: =IF(AI151>$K$21,0,AN150+AP151) -> 21233.55624 | AO151: 8.803298606 | AP151: =SUM(AO140:AO151) -> 105.6395833 | AR151: 1191.83 | AS151: =IF(AI151>$K$21,0,AS150+AR151) -> 176053.0413 | AT151: 73.35543387 | AU151: =SUM(AT140:AT151) -> 847.4898814 | AV151: =IF(AI151>$K$21,0,AV150+AX151) -> 21233.55624 | AW151: 8.803298606 | AX151: =SUM(AW140:AW151) -> 105.6395833 | AZ151: 1023 | BA151: 151114.0525 | BB151: 62.96418856 | BC151: =SUM(BB140:BB151) -> 727.4377627 | BD151: =IF(AI151>$K$21,0,BD150+BF151) -> 0 | BE151: 0 | BF151: =SUM(BE140:BE151) -> 0 | BH151: 0 | BI151: 0 | BJ151: 0 | BK151: =SUM(BJ140:BJ151) -> 0 | BL151: =IF(AI151>$K$21,0,BL150+BN151) -> 0 | BM151: 0 | BN151: =SUM(BM140:BM151) -> 0 | BP151: 168.83 | BQ151: 24938.98875 | BR151: 10.39124531 | BS151: =SUM(BR140:BR151) -> 120.0521187 | BT151: =IF(AI151>$K$21,0,BT150+BV151) -> 21233.55624 | BU151: 8.803298606 | BV151: =SUM(BU140:BU151) -> 105.6395833
B152: 123 | C152: 1191.83 | H152: 123 | I152: 1023 | U152: 145 | V152: 145 | W152: 1191.83 | Y152: -1191.83 | AC152: 1023 | AE152: -1023 | AI152: 145 | AJ152: 1191.83 | AK152: =IF(AI152>$K$21,0,AK151+AJ152+AM151) -> 178092.3612 | AL152: 74.20515049 | AN152: 21233.55624 | AO152: 8.847315099 | AR152: 1191.83 | AS152: =IF(AI152>$K$21,0,AS151+AR152+AU151) -> 178092.3612 | AT152: 74.20515049 | AV152: =IF(AI152>$K$21,0,AV151) -> 21233.55624 | AW152: 8.847315099 | AZ152: 1023 | BA152: =IF(AI152>$K$21,0,BA151+AZ152+BC151) -> 152864.4903 | BB152: 63.69353762 | BD152: =IF(AI152>$K$21,0,BD151) -> 0 | BE152: 0 | BH152: 0 | BI152: =IF(AI152>$K$21,0,BI151+BH152+BK151) -> 0 | BJ152: 0 | BL152: =IF(AI152>$K$21,0,BL151) -> 0 | BM152: 0 | BP152: 168.83 | BQ152: =IF(AI152>$K$21,0,BQ151+BP152+BS151) -> 25227.87087 | BR152: 10.51161286 | BT152: =IF(AI152>$K$21,0,BT151) -> 21233.55624 | BU152: 8.847315099
B153: 124 | C153: 1191.83 | H153: 124 | I153: 1023 | U153: 146 | V153: 146 | W153: 1191.83 | Y153: -1191.83 | AC153: 1023 | AE153: -1023 | AI153: 146 | AJ153: 1191.83 | AK153: =AK152+AJ153 -> 179284.1912 | AL153: 74.70174632 | AN153: 21233.55624 | AO153: 8.847315099 | AR153: 1191.83 | AS153: =IF(AI153>$K$21,0,AS152+AR153) -> 179284.1912 | AT153: 74.70174632 | AV153: 21233.55624 | AW153: 8.847315099 | AZ153: 1023 | BA153: 153887.4903 | BB153: 64.11978762 | BD153: 0 | BE153: 0 | BH153: 0 | BI153: 0 | BJ153: 0 | BL153: 0 | BM153: 0 | BP153: 168.83 | BQ153: 25396.70087 | BR153: 10.58195869 | BT153: 21233.55624 | BU153: 8.847315099
B154: 125 | C154: 1191.83 | H154: 125 | I154: 1023 | U154: 147 | V154: 147 | W154: 1191.83 | Y154: -1191.83 | AC154: 1023 | AE154: -1023 | AI154: 147 | AJ154: 1191.83 | AK154: 180476.0212 | AL154: 75.19834215 | AN154: 21233.55624 | AO154: 8.847315099 | AR154: 1191.83 | AS154: 180476.0212 | AT154: 75.19834215 | AV154: 21233.55624 | AW154: 8.847315099 | AZ154: 1023 | BA154: 154910.4903 | BB154: 64.54603762 | BD154: 0 | BE154: 0 | BH154: 0 | BI154: 0 | BJ154: 0 | BL154: 0 | BM154: 0 | BP154: 168.83 | BQ154: 25565.53087 | BR154: 10.65230453 | BT154: 21233.55624 | BU154: 8.847315099
B155: 126 | C155: 1191.83 | H155: 126 | I155: 1023 | U155: 148 | V155: 148 | W155: 1191.83 | Y155: -1191.83 | AC155: 1023 | AE155: -1023 | AI155: 148 | AJ155: 1191.83 | AK155: 181667.8512 | AL155: 75.69493799 | AN155: 21233.55624 | AO155: 8.847315099 | AR155: 1191.83 | AS155: 181667.8512 | AT155: 75.69493799 | AV155: 21233.55624 | AW155: 8.847315099 | AZ155: 1023 | BA155: 155933.4903 | BB155: 64.97228762 | BD155: 0 | BE155: 0 | BH155: 0 | BI155: 0 | BJ155: 0 | BL155: 0 | BM155: 0 | BP155: 168.83 | BQ155: 25734.36087 | BR155: 10.72265036 | BT155: 21233.55624 | BU155: 8.847315099
B156: 127 | C156: 1191.83 | H156: 127 | I156: 1023 | U156: 149 | V156: 149 | W156: 1191.83 | Y156: -1191.83 | AC156: 1023 | AE156: -1023 | AI156: 149 | AJ156: 1191.83 | AK156: 182859.6812 | AL156: 76.19153382 | AN156: 21233.55624 | AO156: 8.847315099 | AR156: 1191.83 | AS156: 182859.6812 | AT156: 76.19153382 | AV156: 21233.55624 | AW156: 8.847315099 | AZ156: 1023 | BA156: 156956.4903 | BB156: 65.39853762 | BD156: 0 | BE156: 0 | BH156: 0 | BI156: 0 | BJ156: 0 | BL156: 0 | BM156: 0 | BP156: 168.83 | BQ156: 25903.19087 | BR156: 10.79299619 | BT156: 21233.55624 | BU156: 8.847315099
B157: 128 | C157: 1191.83 | H157: 128 | I157: 1023 | U157: 150 | V157: 150 | W157: 1191.83 | Y157: -1191.83 | AC157: 1023 | AE157: -1023 | AI157: 150 | AJ157: 1191.83 | AK157: 184051.5112 | AL157: 76.68812965 | AN157: 21233.55624 | AO157: 8.847315099 | AR157: 1191.83 | AS157: 184051.5112 | AT157: 76.68812965 | AV157: 21233.55624 | AW157: 8.847315099 | AZ157: 1023 | BA157: 157979.4903 | BB157: 65.82478762 | BD157: 0 | BE157: 0 | BH157: 0 | BI157: 0 | BJ157: 0 | BL157: 0 | BM157: 0 | BP157: 168.83 | BQ157: 26072.02087 | BR157: 10.86334203 | BT157: 21233.55624 | BU157: 8.847315099
B158: 129 | C158: 1191.83 | H158: 129 | I158: 1023 | U158: 151 | V158: 151 | W158: 1191.83 | Y158: -1191.83 | AC158: 1023 | AE158: -1023 | AI158: 151 | AJ158: 1191.83 | AK158: 185243.3412 | AL158: 77.18472549 | AN158: 21233.55624 | AO158: 8.847315099 | AR158: 1191.83 | AS158: 185243.3412 | AT158: 77.18472549 | AV158: 21233.55624 | AW158: 8.847315099 | AZ158: 1023 | BA158: 159002.4903 | BB158: 66.25103762 | BD158: 0 | BE158: 0 | BH158: 0 | BI158: 0 | BJ158: 0 | BL158: 0 | BM158: 0 | BP158: 168.83 | BQ158: 26240.85087 | BR158: 10.93368786 | BT158: 21233.55624 | BU158: 8.847315099
B159: 130 | C159: 1191.83 | H159: 130 | I159: 1023 | U159: 152 | V159: 152 | W159: 1191.83 | Y159: -1191.83 | AC159: 1023 | AE159: -1023 | AI159: 152 | AJ159: 1191.83 | AK159: 186435.1712 | AL159: 77.68132132 | AN159: 21233.55624 | AO159: 8.847315099 | AR159: 1191.83 | AS159: 186435.1712 | AT159: 77.68132132 | AV159: 21233.55624 | AW159: =IF(AI159>$K$21,0,AV158*$E$20/12) -> 8.847315099 | AZ159: 1023 | BA159: =IF(AI159>$K$21,0,BA158+AZ159) -> 160025.4903 | BB159: 66.67728762 | BD159: 0 | BE159: =IF(AI159>$K$21,0,BD158*$E$20/12) -> 0 | BH159: 0 | BI159: =IF(V159>$K$21,0,BI158+BH159) -> 0 | BJ159: 0 | BL159: 0 | BM159: =IF(AI159>$K$21,0,BL158*$E$20/12) -> 0 | BP159: 168.83 | BQ159: =IF(AI159>$K$21,0,BQ158+BP159) -> 26409.68087 | BR159: 11.00403369 | BT159: 21233.55624 | BU159: 8.847315099
B160: 131 | C160: =IF(B160>$I$21,0,IF(AND(D160<>C159,D160<>0),D160,C159)) -> 1191.83 | H160: 131 | I160: =IF(H160>$J$21,0,IF(AND(J160<>I159,J160<>0),J160,I159)) -> 1023 | U160: 153 | V160: 153 | W160: 1191.83 | Y160: -1191.83 | AC160: 1023 | AE160: -1023 | AI160: 153 | AJ160: 1191.83 | AK160: 187627.0012 | AL160: 78.17791715 | AN160: 21233.55624 | AO160: 8.847315099 | AR160: 1191.83 | AS160: 187627.0012 | AT160: 78.17791715 | AV160: 21233.55624 | AW160: 8.847315099 | AZ160: 1023 | BA160: 161048.4903 | BB160: 67.10353762 | BD160: 0 | BE160: 0 | BH160: 0 | BI160: 0 | BJ160: 0 | BL160: 0 | BM160: 0 | BP160: 168.83 | BQ160: 26578.51087 | BR160: 11.07437953 | BT160: 21233.55624 | BU160: 8.847315099
B161: 132 | C161: 1191.83 | H161: 132 | I161: 1023 | U161: 154 | V161: 154 | W161: 1191.83 | Y161: -1191.83 | AC161: 1023 | AE161: -1023 | AI161: 154 | AJ161: 1191.83 | AK161: 188818.8312 | AL161: 78.67451299 | AN161: 21233.55624 | AO161: 8.847315099 | AR161: 1191.83 | AS161: 188818.8312 | AT161: 78.67451299 | AV161: 21233.55624 | AW161: 8.847315099 | AZ161: 1023 | BA161: 162071.4903 | BB161: 67.52978762 | BD161: 0 | BE161: 0 | BH161: 0 | BI161: 0 | BJ161: 0 | BL161: 0 | BM161: 0 | BP161: 168.83 | BQ161: 26747.34087 | BR161: 11.14472536 | BT161: 21233.55624 | BU161: 8.847315099
B162: 133 | C162: 1191.83 | H162: 133 | I162: 1023 | U162: 155 | V162: 155 | W162: 1191.83 | Y162: -1191.83 | AC162: 1023 | AE162: -1023 | AI162: 155 | AJ162: 1191.83 | AK162: 190010.6612 | AL162: 79.17110882 | AN162: 21233.55624 | AO162: 8.847315099 | AR162: 1191.83 | AS162: 190010.6612 | AT162: 79.17110882 | AV162: 21233.55624 | AW162: 8.847315099 | AZ162: 1023 | BA162: 163094.4903 | BB162: 67.95603762 | BD162: 0 | BE162: 0 | BH162: 0 | BI162: 0 | BJ162: 0 | BL162: 0 | BM162: 0 | BP162: 168.83 | BQ162: 26916.17087 | BR162: 11.21507119 | BT162: 21233.55624 | BU162: 8.847315099
B163: 134 | C163: 1191.83 | H163: 134 | I163: 1023 | U163: 156 | V163: 156 | W163: 1191.83 | Y163: -1191.83 | AC163: 1023 | AE163: -1023 | AI163: 156 | AJ163: 1191.83 | AK163: =IF(AI163>$K$21,0,AK162+AJ163) -> 191202.4912 | AL163: 79.66770465 | AM163: =SUM(AL152:AL163) -> 923.2371308 | AN163: =IF(AI163>$K$21,0,AN162+AP163) -> 21339.72402 | AO163: 8.847315099 | AP163: =SUM(AO152:AO163) -> 106.1677812 | AR163: 1191.83 | AS163: =IF(AI163>$K$21,0,AS162+AR163) -> 191202.4912 | AT163: 79.66770465 | AU163: =SUM(AT152:AT163) -> 923.2371308 | AV163: =IF(AI163>$K$21,0,AV162+AX163) -> 21339.72402 | AW163: 8.847315099 | AX163: =SUM(AW152:AW163) -> 106.1677812 | AZ163: 1023 | BA163: 164117.4903 | BB163: 68.38228762 | BC163: =SUM(BB152:BB163) -> 792.4549515 | BD163: =IF(AI163>$K$21,0,BD162+BF163) -> 0 | BE163: 0 | BF163: =SUM(BE152:BE163) -> 0 | BH163: 0 | BI163: 0 | BJ163: 0 | BK163: =SUM(BJ152:BJ163) -> 0 | BL163: =IF(AI163>$K$21,0,BL162+BN163) -> 0 | BM163: 0 | BN163: =SUM(BM152:BM163) -> 0 | BP163: 168.83 | BQ163: 27085.00087 | BR163: 11.28541703 | BS163: =SUM(BR152:BR163) -> 130.7821793 | BT163: =IF(AI163>$K$21,0,BT162+BV163) -> 21339.72402 | BU163: 8.847315099 | BV163: =SUM(BU152:BU163) -> 106.1677812
B164: 135 | C164: 1191.83 | H164: 135 | I164: 1023 | U164: 157 | V164: 157 | W164: 1191.83 | Y164: -1191.83 | AC164: 1023 | AE164: -1023 | AI164: 157 | AJ164: 1191.83 | AK164: =IF(AI164>$K$21,0,AK163+AJ164+AM163) -> 193317.5583 | AL164: 80.54898262 | AN164: 21339.72402 | AO164: 8.891551674 | AR164: 1191.83 | AS164: =IF(AI164>$K$21,0,AS163+AR164+AU163) -> 193317.5583 | AT164: 80.54898262 | AV164: =IF(AI164>$K$21,0,AV163) -> 21339.72402 | AW164: 8.891551674 | AZ164: 1023 | BA164: =IF(AI164>$K$21,0,BA163+AZ164+BC163) -> 165932.9453 | BB164: 69.13872719 | BD164: =IF(AI164>$K$21,0,BD163) -> 0 | BE164: 0 | BH164: 0 | BI164: =IF(AI164>$K$21,0,BI163+BH164+BK163) -> 0 | BJ164: 0 | BL164: =IF(AI164>$K$21,0,BL163) -> 0 | BM164: 0 | BP164: 168.83 | BQ164: =IF(AI164>$K$21,0,BQ163+BP164+BS163) -> 27384.61305 | BR164: 11.41025544 | BT164: =IF(AI164>$K$21,0,BT163) -> 21339.72402 | BU164: 8.891551674
B165: 136 | C165: 1191.83 | H165: 136 | I165: 1023 | U165: 158 | V165: 158 | W165: 1191.83 | Y165: -1191.83 | AC165: 1023 | AE165: -1023 | AI165: 158 | AJ165: 1191.83 | AK165: =AK164+AJ165 -> 194509.3883 | AL165: 81.04557846 | AN165: 21339.72402 | AO165: 8.891551674 | AR165: 1191.83 | AS165: =IF(AI165>$K$21,0,AS164+AR165) -> 194509.3883 | AT165: 81.04557846 | AV165: 21339.72402 | AW165: 8.891551674 | AZ165: 1023 | BA165: 166955.9453 | BB165: 69.56497719 | BD165: 0 | BE165: 0 | BH165: 0 | BI165: 0 | BJ165: 0 | BL165: 0 | BM165: 0 | BP165: 168.83 | BQ165: 27553.44305 | BR165: 11.48060127 | BT165: 21339.72402 | BU165: 8.891551674
B166: 137 | C166: 1191.83 | H166: 137 | I166: 1023 | U166: 159 | V166: 159 | W166: 1191.83 | Y166: -1191.83 | AC166: 1023 | AE166: -1023 | AI166: 159 | AJ166: 1191.83 | AK166: 195701.2183 | AL166: 81.54217429 | AN166: 21339.72402 | AO166: 8.891551674 | AR166: 1191.83 | AS166: 195701.2183 | AT166: 81.54217429 | AV166: 21339.72402 | AW166: 8.891551674 | AZ166: 1023 | BA166: 167978.9453 | BB166: 69.99122719 | BD166: 0 | BE166: 0 | BH166: 0 | BI166: 0 | BJ166: 0 | BL166: 0 | BM166: 0 | BP166: 168.83 | BQ166: 27722.27305 | BR166: 11.5509471 | BT166: 21339.72402 | BU166: 8.891551674
B167: 138 | C167: 1191.83 | H167: 138 | I167: 1023 | U167: 160 | V167: 160 | W167: 1191.83 | Y167: -1191.83 | AC167: 1023 | AE167: -1023 | AI167: 160 | AJ167: 1191.83 | AK167: 196893.0483 | AL167: 82.03877012 | AN167: 21339.72402 | AO167: 8.891551674 | AR167: 1191.83 | AS167: 196893.0483 | AT167: 82.03877012 | AV167: 21339.72402 | AW167: 8.891551674 | AZ167: 1023 | BA167: 169001.9453 | BB167: 70.41747719 | BD167: 0 | BE167: 0 | BH167: 0 | BI167: 0 | BJ167: 0 | BL167: 0 | BM167: 0 | BP167: 168.83 | BQ167: 27891.10305 | BR167: 11.62129294 | BT167: 21339.72402 | BU167: 8.891551674
B168: 139 | C168: 1191.83 | H168: 139 | I168: 1023 | U168: 161 | V168: 161 | W168: 1191.83 | Y168: -1191.83 | AC168: 1023 | AE168: -1023 | AI168: 161 | AJ168: 1191.83 | AK168: 198084.8783 | AL168: 82.53536596 | AN168: 21339.72402 | AO168: 8.891551674 | AR168: 1191.83 | AS168: 198084.8783 | AT168: 82.53536596 | AV168: 21339.72402 | AW168: 8.891551674 | AZ168: 1023 | BA168: 170024.9453 | BB168: 70.84372719 | BD168: 0 | BE168: 0 | BH168: 0 | BI168: 0 | BJ168: 0 | BL168: 0 | BM168: 0 | BP168: 168.83 | BQ168: 28059.93305 | BR168: 11.69163877 | BT168: 21339.72402 | BU168: 8.891551674
B169: 140 | C169: 1191.83 | H169: 140 | I169: 1023 | U169: 162 | V169: 162 | W169: 1191.83 | Y169: -1191.83 | AC169: 1023 | AE169: -1023 | AI169: 162 | AJ169: 1191.83 | AK169: 199276.7083 | AL169: 83.03196179 | AN169: 21339.72402 | AO169: 8.891551674 | AR169: 1191.83 | AS169: 199276.7083 | AT169: 83.03196179 | AV169: 21339.72402 | AW169: 8.891551674 | AZ169: 1023 | BA169: 171047.9453 | BB169: 71.26997719 | BD169: 0 | BE169: 0 | BH169: 0 | BI169: 0 | BJ169: 0 | BL169: 0 | BM169: 0 | BP169: 168.83 | BQ169: 28228.76305 | BR169: 11.7619846 | BT169: 21339.72402 | BU169: 8.891551674
B170: 141 | C170: 1191.83 | H170: 141 | I170: 1023 | U170: 163 | V170: 163 | W170: 1191.83 | Y170: -1191.83 | AC170: 1023 | AE170: -1023 | AI170: 163 | AJ170: 1191.83 | AK170: 200468.5383 | AL170: 83.52855762 | AN170: 21339.72402 | AO170: 8.891551674 | AR170: 1191.83 | AS170: 200468.5383 | AT170: 83.52855762 | AV170: 21339.72402 | AW170: 8.891551674 | AZ170: 1023 | BA170: 172070.9453 | BB170: 71.69622719 | BD170: 0 | BE170: 0 | BH170: 0 | BI170: 0 | BJ170: 0 | BL170: 0 | BM170: 0 | BP170: 168.83 | BQ170: 28397.59305 | BR170: 11.83233044 | BT170: 21339.72402 | BU170: 8.891551674
B171: 142 | C171: 1191.83 | H171: 142 | I171: 1023 | U171: 164 | V171: 164 | W171: 1191.83 | Y171: -1191.83 | AC171: 1023 | AE171: -1023 | AI171: 164 | AJ171: 1191.83 | AK171: 201660.3683 | AL171: 84.02515346 | AN171: 21339.72402 | AO171: 8.891551674 | AR171: 1191.83 | AS171: 201660.3683 | AT171: 84.02515346 | AV171: 21339.72402 | AW171: 8.891551674 | AZ171: 1023 | BA171: 173093.9453 | BB171: 72.12247719 | BD171: 0 | BE171: 0 | BH171: 0 | BI171: 0 | BJ171: 0 | BL171: 0 | BM171: 0 | BP171: 168.83 | BQ171: 28566.42305 | BR171: 11.90267627 | BT171: 21339.72402 | BU171: 8.891551674
B172: 143 | C172: 1191.83 | H172: 143 | I172: 1023 | U172: 165 | V172: 165 | W172: 1191.83 | Y172: -1191.83 | AC172: 1023 | AE172: -1023 | AI172: 165 | AJ172: 1191.83 | AK172: 202852.1983 | AL172: 84.52174929 | AN172: 21339.72402 | AO172: 8.891551674 | AR172: 1191.83 | AS172: 202852.1983 | AT172: 84.52174929 | AV172: 21339.72402 | AW172: 8.891551674 | AZ172: 1023 | BA172: 174116.9453 | BB172: 72.54872719 | BD172: 0 | BE172: 0 | BH172: 0 | BI172: 0 | BJ172: 0 | BL172: 0 | BM172: 0 | BP172: 168.83 | BQ172: 28735.25305 | BR172: 11.9730221 | BT172: 21339.72402 | BU172: 8.891551674
B173: 144 | C173: 1191.83 | H173: 144 | I173: 1023 | U173: 166 | V173: 166 | W173: 1191.83 | Y173: -1191.83 | AC173: 1023 | AE173: -1023 | AI173: 166 | AJ173: 1191.83 | AK173: 204044.0283 | AL173: 85.01834512 | AN173: 21339.72402 | AO173: 8.891551674 | AR173: 1191.83 | AS173: 204044.0283 | AT173: 85.01834512 | AV173: 21339.72402 | AW173: 8.891551674 | AZ173: 1023 | BA173: 175139.9453 | BB173: 72.97497719 | BD173: 0 | BE173: 0 | BH173: 0 | BI173: 0 | BJ173: 0 | BL173: 0 | BM173: 0 | BP173: 168.83 | BQ173: 28904.08305 | BR173: 12.04336794 | BT173: 21339.72402 | BU173: 8.891551674
B174: 145 | C174: 1191.83 | H174: 145 | I174: 1023 | U174: 167 | V174: 167 | W174: 1191.83 | Y174: -1191.83 | AC174: 1023 | AE174: -1023 | AI174: 167 | AJ174: 1191.83 | AK174: 205235.8583 | AL174: 85.51494096 | AN174: 21339.72402 | AO174: 8.891551674 | AR174: 1191.83 | AS174: 205235.8583 | AT174: 85.51494096 | AV174: 21339.72402 | AW174: 8.891551674 | AZ174: 1023 | BA174: 176162.9453 | BB174: 73.40122719 | BD174: 0 | BE174: 0 | BH174: 0 | BI174: 0 | BJ174: 0 | BL174: 0 | BM174: 0 | BP174: 168.83 | BQ174: 29072.91305 | BR174: 12.11371377 | BT174: 21339.72402 | BU174: 8.891551674
B175: 146 | C175: 1191.83 | H175: 146 | I175: 1023 | U175: 168 | V175: 168 | W175: 1191.83 | Y175: -1191.83 | AC175: 1023 | AE175: -1023 | AI175: 168 | AJ175: 1191.83 | AK175: =IF(AI175>$K$21,0,AK174+AJ175) -> 206427.6883 | AL175: 86.01153679 | AM175: =SUM(AL164:AL175) -> 999.3631165 | AN175: =IF(AI175>$K$21,0,AN174+AP175) -> 21446.42264 | AO175: 8.891551674 | AP175: =SUM(AO164:AO175) -> 106.6986201 | AR175: 1191.83 | AS175: =IF(AI175>$K$21,0,AS174+AR175) -> 206427.6883 | AT175: 86.01153679 | AU175: =SUM(AT164:AT175) -> 999.3631165 | AV175: =IF(AI175>$K$21,0,AV174+AX175) -> 21446.42264 | AW175: 8.891551674 | AX175: =SUM(AW164:AW175) -> 106.6986201 | AZ175: 1023 | BA175: 177185.9453 | BB175: 73.82747719 | BC175: =SUM(BB164:BB175) -> 857.7972263 | BD175: =IF(AI175>$K$21,0,BD174+BF175) -> 0 | BE175: 0 | BF175: =SUM(BE164:BE175) -> 0 | BH175: 0 | BI175: 0 | BJ175: 0 | BK175: =SUM(BJ164:BJ175) -> 0 | BL175: =IF(AI175>$K$21,0,BL174+BN175) -> 0 | BM175: 0 | BN175: =SUM(BM164:BM175) -> 0 | BP175: 168.83 | BQ175: 29241.74305 | BR175: 12.1840596 | BS175: =SUM(BR164:BR175) -> 141.5658902 | BT175: =IF(AI175>$K$21,0,BT174+BV175) -> 21446.42264 | BU175: 8.891551674 | BV175: =SUM(BU164:BU175) -> 106.6986201
B176: 147 | C176: 1191.83 | H176: 147 | I176: 1023 | U176: 169 | V176: 169 | W176: 1191.83 | Y176: -1191.83 | AC176: 1023 | AE176: -1023 | AI176: 169 | AJ176: 1191.83 | AK176: =IF(AI176>$K$21,0,AK175+AJ176+AM175) -> 208618.8814 | AL176: 86.92453392 | AN176: 21446.42264 | AO176: 8.936009433 | AR176: 1191.83 | AS176: =IF(AI176>$K$21,0,AS175+AR176+AU175) -> 208618.8814 | AT176: 86.92453392 | AV176: =IF(AI176>$K$21,0,AV175) -> 21446.42264 | AW176: 8.936009433 | AZ176: 1023 | BA176: =IF(AI176>$K$21,0,BA175+AZ176+BC175) -> 179066.7425 | BB176: 74.6111427 | BD176: =IF(AI176>$K$21,0,BD175) -> 0 | BE176: 0 | BH176: 0 | BI176: =IF(AI176>$K$21,0,BI175+BH176+BK175) -> 0 | BJ176: 0 | BL176: =IF(AI176>$K$21,0,BL175) -> 0 | BM176: 0 | BP176: 168.83 | BQ176: =IF(AI176>$K$21,0,BQ175+BP176+BS175) -> 29552.13894 | BR176: 12.31339122 | BT176: =IF(AI176>$K$21,0,BT175) -> 21446.42264 | BU176: 8.936009433
B177: 148 | C177: 1191.83 | H177: 148 | I177: 1023 | U177: 170 | V177: 170 | W177: 1191.83 | Y177: -1191.83 | AC177: 1023 | AE177: -1023 | AI177: 170 | AJ177: 1191.83 | AK177: =AK176+AJ177 -> 209810.7114 | AL177: 87.42112976 | AN177: 21446.42264 | AO177: 8.936009433 | AR177: 1191.83 | AS177: =IF(AI177>$K$21,0,AS176+AR177) -> 209810.7114 | AT177: 87.42112976 | AV177: 21446.42264 | AW177: 8.936009433 | AZ177: 1023 | BA177: 180089.7425 | BB177: 75.0373927 | BD177: 0 | BE177: 0 | BH177: 0 | BI177: 0 | BJ177: 0 | BL177: 0 | BM177: 0 | BP177: 168.83 | BQ177: 29720.96894 | BR177: 12.38373706 | BT177: 21446.42264 | BU177: 8.936009433
B178: 149 | C178: 1191.83 | H178: 149 | I178: 1023 | U178: 171 | V178: 171 | W178: 1191.83 | Y178: -1191.83 | AC178: 1023 | AE178: -1023 | AI178: 171 | AJ178: 1191.83 | AK178: 211002.5414 | AL178: 87.91772559 | AN178: 21446.42264 | AO178: 8.936009433 | AR178: 1191.83 | AS178: 211002.5414 | AT178: 87.91772559 | AV178: 21446.42264 | AW178: 8.936009433 | AZ178: 1023 | BA178: 181112.7425 | BB178: 75.4636427 | BD178: 0 | BE178: 0 | BH178: 0 | BI178: 0 | BJ178: 0 | BL178: 0 | BM178: 0 | BP178: 168.83 | BQ178: 29889.79894 | BR178: 12.45408289 | BT178: 21446.42264 | BU178: 8.936009433
B179: 150 | C179: 1191.83 | H179: 150 | I179: 1023 | U179: 172 | V179: 172 | W179: 1191.83 | Y179: -1191.83 | AC179: 1023 | AE179: -1023 | AI179: 172 | AJ179: 1191.83 | AK179: 212194.3714 | AL179: 88.41432142 | AN179: 21446.42264 | AO179: 8.936009433 | AR179: 1191.83 | AS179: 212194.3714 | AT179: 88.41432142 | AV179: 21446.42264 | AW179: 8.936009433 | AZ179: 1023 | BA179: 182135.7425 | BB179: 75.8898927 | BD179: 0 | BE179: 0 | BH179: 0 | BI179: 0 | BJ179: 0 | BL179: 0 | BM179: 0 | BP179: 168.83 | BQ179: 30058.62894 | BR179: 12.52442872 | BT179: 21446.42264 | BU179: 8.936009433
B180: 151 | C180: 1191.83 | H180: 151 | I180: 1023 | U180: 173 | V180: 173 | W180: 1191.83 | Y180: -1191.83 | AC180: 1023 | AE180: -1023 | AI180: 173 | AJ180: 1191.83 | AK180: 213386.2014 | AL180: 88.91091726 | AN180: 21446.42264 | AO180: 8.936009433 | AR180: 1191.83 | AS180: 213386.2014 | AT180: 88.91091726 | AV180: 21446.42264 | AW180: 8.936009433 | AZ180: 1023 | BA180: 183158.7425 | BB180: 76.3161427 | BD180: 0 | BE180: 0 | BH180: 0 | BI180: 0 | BJ180: 0 | BL180: 0 | BM180: 0 | BP180: 168.83 | BQ180: 30227.45894 | BR180: 12.59477456 | BT180: 21446.42264 | BU180: 8.936009433
B181: 152 | C181: 1191.83 | H181: 152 | I181: 1023 | U181: 174 | V181: 174 | W181: 1191.83 | Y181: -1191.83 | AC181: 1023 | AE181: -1023 | AI181: 174 | AJ181: 1191.83 | AK181: 214578.0314 | AL181: 89.40751309 | AN181: 21446.42264 | AO181: 8.936009433 | AR181: 1191.83 | AS181: 214578.0314 | AT181: 89.40751309 | AV181: 21446.42264 | AW181: 8.936009433 | AZ181: 1023 | BA181: 184181.7425 | BB181: 76.7423927 | BD181: 0 | BE181: 0 | BH181: 0 | BI181: 0 | BJ181: 0 | BL181: 0 | BM181: 0 | BP181: 168.83 | BQ181: 30396.28894 | BR181: 12.66512039 | BT181: 21446.42264 | BU181: 8.936009433
B182: 153 | C182: 1191.83 | H182: 153 | I182: 1023 | U182: 175 | V182: 175 | W182: 1191.83 | Y182: -1191.83 | AC182: 1023 | AE182: -1023 | AI182: 175 | AJ182: 1191.83 | AK182: 215769.8614 | AL182: 89.90410892 | AN182: 21446.42264 | AO182: 8.936009433 | AR182: 1191.83 | AS182: 215769.8614 | AT182: 89.90410892 | AV182: 21446.42264 | AW182: 8.936009433 | AZ182: 1023 | BA182: 185204.7425 | BB182: 77.1686427 | BD182: 0 | BE182: 0 | BH182: 0 | BI182: 0 | BJ182: 0 | BL182: 0 | BM182: 0 | BP182: 168.83 | BQ182: 30565.11894 | BR182: 12.73546622 | BT182: 21446.42264 | BU182: 8.936009433
B183: 154 | C183: 1191.83 | H183: 154 | I183: 1023 | U183: 176 | V183: 176 | W183: 1191.83 | Y183: -1191.83 | AC183: 1023 | AE183: -1023 | AI183: 176 | AJ183: 1191.83 | AK183: 216961.6914 | AL183: 90.40070476 | AN183: 21446.42264 | AO183: 8.936009433 | AR183: 1191.83 | AS183: 216961.6914 | AT183: 90.40070476 | AV183: 21446.42264 | AW183: 8.936009433 | AZ183: 1023 | BA183: 186227.7425 | BB183: 77.5948927 | BD183: 0 | BE183: 0 | BH183: 0 | BI183: 0 | BJ183: 0 | BL183: 0 | BM183: 0 | BP183: 168.83 | BQ183: 30733.94894 | BR183: 12.80581206 | BT183: 21446.42264 | BU183: 8.936009433
B184: 155 | C184: 1191.83 | H184: 155 | I184: 1023 | U184: 177 | V184: 177 | W184: 1191.83 | Y184: -1191.83 | AC184: 1023 | AE184: -1023 | AI184: 177 | AJ184: 1191.83 | AK184: 218153.5214 | AL184: 90.89730059 | AN184: 21446.42264 | AO184: 8.936009433 | AR184: 1191.83 | AS184: 218153.5214 | AT184: 90.89730059 | AV184: 21446.42264 | AW184: 8.936009433 | AZ184: 1023 | BA184: 187250.7425 | BB184: 78.0211427 | BD184: 0 | BE184: 0 | BH184: 0 | BI184: 0 | BJ184: 0 | BL184: 0 | BM184: 0 | BP184: 168.83 | BQ184: 30902.77894 | BR184: 12.87615789 | BT184: 21446.42264 | BU184: 8.936009433
B185: 156 | C185: 1191.83 | H185: 156 | I185: 1023 | U185: 178 | V185: 178 | W185: 1191.83 | Y185: -1191.83 | AC185: 1023 | AE185: -1023 | AI185: 178 | AJ185: 1191.83 | AK185: 219345.3514 | AL185: 91.39389642 | AN185: 21446.42264 | AO185: 8.936009433 | AR185: 1191.83 | AS185: 219345.3514 | AT185: 91.39389642 | AV185: 21446.42264 | AW185: 8.936009433 | AZ185: 1023 | BA185: 188273.7425 | BB185: 78.4473927 | BD185: 0 | BE185: 0 | BH185: 0 | BI185: 0 | BJ185: 0 | BL185: 0 | BM185: 0 | BP185: 168.83 | BQ185: 31071.60894 | BR185: 12.94650372 | BT185: 21446.42264 | BU185: 8.936009433
B186: 157 | C186: 1191.83 | H186: 157 | I186: 1023 | U186: 179 | V186: 179 | W186: 1191.83 | Y186: -1191.83 | AC186: 1023 | AE186: -1023 | AI186: 179 | AJ186: 1191.83 | AK186: 220537.1814 | AL186: 91.89049226 | AN186: 21446.42264 | AO186: 8.936009433 | AR186: 1191.83 | AS186: 220537.1814 | AT186: 91.89049226 | AV186: 21446.42264 | AW186: 8.936009433 | AZ186: 1023 | BA186: 189296.7425 | BB186: 78.8736427 | BD186: 0 | BE186: 0 | BH186: 0 | BI186: 0 | BJ186: 0 | BL186: 0 | BM186: 0 | BP186: 168.83 | BQ186: 31240.43894 | BR186: 13.01684956 | BT186: 21446.42264 | BU186: 8.936009433
B187: 158 | C187: 1191.83 | H187: 158 | I187: 1023 | U187: 180 | V187: 180 | W187: 1191.21 | Y187: -1191.21 | AC187: 1023 | AE187: -1023 | AI187: 180 | AJ187: 1191.21 | AK187: =IF(AI187>$K$21,0,AK186+AJ187) -> 221728.3914 | AL187: 92.38682976 | AM187: =SUM(AL176:AL187) -> 1075.869474 | AN187: =IF(AI187>$K$21,0,AN186+AP187) -> 21553.65475 | AO187: 8.936009433 | AP187: =SUM(AO176:AO187) -> 107.2321132 | AR187: 1191.21 | AS187: =IF(AI187>$K$21,0,AS186+AR187) -> 221728.3914 | AT187: 92.38682976 | AU187: =SUM(AT176:AT187) -> 1075.869474 | AV187: =IF(AI187>$K$21,0,AV186+AX187) -> 21553.65475 | AW187: 8.936009433 | AX187: =SUM(AW176:AW187) -> 107.2321132 | AZ187: 1023 | BA187: 190319.7425 | BB187: 79.2998927 | BC187: =SUM(BB176:BB187) -> 923.4662124 | BD187: =IF(AI187>$K$21,0,BD186+BF187) -> 0 | BE187: 0 | BF187: =SUM(BE176:BE187) -> 0 | BH187: 0 | BI187: 0 | BJ187: 0 | BK187: =SUM(BJ176:BJ187) -> 0 | BL187: =IF(AI187>$K$21,0,BL186+BN187) -> 0 | BM187: 0 | BN187: =SUM(BM176:BM187) -> 0 | BP187: 168.21 | BQ187: 31408.64894 | BR187: 13.08693706 | BS187: =SUM(BR176:BR187) -> 152.4032614 | BT187: =IF(AI187>$K$21,0,BT186+BV187) -> 21553.65475 | BU187: 8.936009433 | BV187: =SUM(BU176:BU187) -> 107.2321132
B188: 159 | C188: 1191.83 | H188: 159 | I188: 1023 | U188: 181 | V188: 181 | W188: 0 | Y188: 0 | AC188: 1023 | AE188: -1023 | AI188: 181 | AJ188: 1023 | AK188: =IF(AI188>$K$21,0,AK187+AJ188+AM187) -> 223827.2609 | AL188: 93.2613587 | AN188: 21553.65475 | AO188: 8.98068948 | AR188: 0 | AS188: =IF(AI188>$K$21,0,AS187+AR188+AU187) -> 222804.2609 | AT188: 92.8351087 | AV188: =IF(AI188>$K$21,0,AV187) -> 21553.65475 | AW188: 8.98068948 | AZ188: 1023 | BA188: =IF(AI188>$K$21,0,BA187+AZ188+BC187) -> 192266.2087 | BB188: 80.11092029 | BD188: =IF(AI188>$K$21,0,BD187) -> 0 | BE188: 0 | BH188: 1023 | BI188: =IF(AI188>$K$21,0,BI187+BH188+BK187) -> 1023 | BJ188: 0.42625 | BL188: =IF(AI188>$K$21,0,BL187) -> 0 | BM188: 0 | BP188: 0 | BQ188: =IF(AI188>$K$21,0,BQ187+BP188+BS187) -> 31561.0522 | BR188: 13.15043842 | BT188: =IF(AI188>$K$21,0,BT187) -> 21553.65475 | BU188: 8.98068948
B189: 160 | C189: 1191.83 | H189: 160 | I189: 1023 | U189: 182 | V189: 182 | W189: 0 | Y189: 0 | AC189: 1023 | AE189: -1023 | AI189: 182 | AJ189: 1023 | AK189: =AK188+AJ189 -> 224850.2609 | AL189: 93.6876087 | AN189: 21553.65475 | AO189: 8.98068948 | AR189: 0 | AS189: =IF(AI189>$K$21,0,AS188+AR189) -> 222804.2609 | AT189: 92.8351087 | AV189: 21553.65475 | AW189: 8.98068948 | AZ189: 1023 | BA189: 193289.2087 | BB189: 80.53717029 | BD189: 0 | BE189: 0 | BH189: 1023 | BI189: 2046 | BJ189: 0.8525 | BL189: 0 | BM189: 0 | BP189: 0 | BQ189: 31561.0522 | BR189: 13.15043842 | BT189: 21553.65475 | BU189: 8.98068948
B190: 161 | C190: 1191.83 | H190: 161 | I190: 1023 | U190: 183 | V190: 183 | W190: 0 | Y190: 0 | AC190: 1023 | AE190: -1023 | AI190: 183 | AJ190: 1023 | AK190: 225873.2609 | AL190: 94.1138587 | AN190: 21553.65475 | AO190: 8.98068948 | AR190: 0 | AS190: 222804.2609 | AT190: 92.8351087 | AV190: 21553.65475 | AW190: 8.98068948 | AZ190: 1023 | BA190: 194312.2087 | BB190: 80.96342029 | BD190: 0 | BE190: 0 | BH190: 1023 | BI190: 3069 | BJ190: 1.27875 | BL190: 0 | BM190: 0 | BP190: 0 | BQ190: 31561.0522 | BR190: 13.15043842 | BT190: 21553.65475 | BU190: 8.98068948
B191: 162 | C191: 1191.83 | H191: 162 | I191: 1023 | U191: 184 | V191: 184 | W191: 0 | Y191: 0 | AC191: 1023 | AE191: -1023 | AI191: 184 | AJ191: 1023 | AK191: 226896.2609 | AL191: 94.5401087 | AN191: 21553.65475 | AO191: 8.98068948 | AR191: 0 | AS191: 222804.2609 | AT191: 92.8351087 | AV191: 21553.65475 | AW191: 8.98068948 | AZ191: 1023 | BA191: 195335.2087 | BB191: 81.38967029 | BD191: 0 | BE191: 0 | BH191: 1023 | BI191: 4092 | BJ191: 1.705 | BL191: 0 | BM191: 0 | BP191: 0 | BQ191: 31561.0522 | BR191: 13.15043842 | BT191: 21553.65475 | BU191: 8.98068948
B192: 163 | C192: 1191.83 | H192: 163 | I192: 1023 | U192: 185 | V192: 185 | W192: 0 | Y192: 0 | AC192: 1023 | AE192: -1023 | AI192: 185 | AJ192: 1023 | AK192: 227919.2609 | AL192: 94.9663587 | AN192: 21553.65475 | AO192: 8.98068948 | AR192: 0 | AS192: 222804.2609 | AT192: 92.8351087 | AV192: 21553.65475 | AW192: 8.98068948 | AZ192: 1023 | BA192: 196358.2087 | BB192: 81.81592029 | BD192: 0 | BE192: 0 | BH192: 1023 | BI192: 5115 | BJ192: 2.13125 | BL192: 0 | BM192: 0 | BP192: 0 | BQ192: 31561.0522 | BR192: 13.15043842 | BT192: 21553.65475 | BU192: 8.98068948
B193: 164 | C193: 1191.83 | H193: 164 | I193: 1023 | U193: 186 | V193: 186 | W193: 0 | Y193: 0 | AC193: 1023 | AE193: -1023 | AI193: 186 | AJ193: 1023 | AK193: 228942.2609 | AL193: 95.3926087 | AN193: 21553.65475 | AO193: 8.98068948 | AR193: 0 | AS193: 222804.2609 | AT193: 92.8351087 | AV193: 21553.65475 | AW193: 8.98068948 | AZ193: 1023 | BA193: 197381.2087 | BB193: 82.24217029 | BD193: 0 | BE193: 0 | BH193: 1023 | BI193: 6138 | BJ193: 2.5575 | BL193: 0 | BM193: 0 | BP193: 0 | BQ193: 31561.0522 | BR193: 13.15043842 | BT193: 21553.65475 | BU193: 8.98068948
B194: 165 | C194: 1191.83 | H194: 165 | I194: 1023 | U194: 187 | V194: 187 | W194: 0 | Y194: 0 | AC194: 1023 | AE194: -1023 | AI194: 187 | AJ194: 1023 | AK194: 229965.2609 | AL194: 95.8188587 | AN194: 21553.65475 | AO194: 8.98068948 | AR194: 0 | AS194: 222804.2609 | AT194: 92.8351087 | AV194: 21553.65475 | AW194: 8.98068948 | AZ194: 1023 | BA194: 198404.2087 | BB194: 82.66842029 | BD194: 0 | BE194: 0 | BH194: 1023 | BI194: 7161 | BJ194: 2.98375 | BL194: 0 | BM194: 0 | BP194: 0 | BQ194: 31561.0522 | BR194: 13.15043842 | BT194: 21553.65475 | BU194: 8.98068948
B195: 166 | C195: 1191.83 | H195: 166 | I195: 1023 | U195: 188 | V195: 188 | W195: 0 | Y195: 0 | AC195: 1023 | AE195: -1023 | AI195: 188 | AJ195: 1023 | AK195: 230988.2609 | AL195: 96.2451087 | AN195: 21553.65475 | AO195: =IF(AI195>$K$21,0,AN194*$E$20/12) -> 8.98068948 | AR195: 0 | AS195: 222804.2609 | AT195: 92.8351087 | AV195: 21553.65475 | AW195: 8.98068948 | AZ195: 1023 | BA195: 199427.2087 | BB195: 83.09467029 | BD195: 0 | BE195: 0 | BH195: 1023 | BI195: 8184 | BJ195: 3.41 | BL195: 0 | BM195: 0 | BP195: 0 | BQ195: 31561.0522 | BR195: 13.15043842 | BT195: 21553.65475 | BU195: 8.98068948
B196: 167 | C196: 1191.83 | H196: 167 | I196: 1023 | U196: 189 | V196: 189 | W196: 0 | Y196: 0 | AC196: 1023 | AE196: -1023 | AI196: 189 | AJ196: 1023 | AK196: 232011.2609 | AL196: 96.6713587 | AN196: 21553.65475 | AO196: 8.98068948 | AR196: 0 | AS196: 222804.2609 | AT196: 92.8351087 | AV196: 21553.65475 | AW196: 8.98068948 | AZ196: 1023 | BA196: 200450.2087 | BB196: 83.52092029 | BD196: 0 | BE196: 0 | BH196: 1023 | BI196: 9207 | BJ196: 3.83625 | BL196: 0 | BM196: 0 | BP196: 0 | BQ196: 31561.0522 | BR196: 13.15043842 | BT196: 21553.65475 | BU196: 8.98068948
B197: 168 | C197: 1191.83 | H197: 168 | I197: 1023 | U197: 190 | V197: 190 | W197: 0 | Y197: 0 | AC197: 1023 | AE197: -1023 | AI197: 190 | AJ197: 1023 | AK197: 233034.2609 | AL197: 97.0976087 | AN197: 21553.65475 | AO197: 8.98068948 | AR197: 0 | AS197: 222804.2609 | AT197: 92.8351087 | AV197: 21553.65475 | AW197: 8.98068948 | AZ197: 1023 | BA197: 201473.2087 | BB197: 83.94717029 | BD197: 0 | BE197: 0 | BH197: 1023 | BI197: 10230 | BJ197: 4.2625 | BL197: 0 | BM197: 0 | BP197: 0 | BQ197: 31561.0522 | BR197: 13.15043842 | BT197: 21553.65475 | BU197: 8.98068948
B198: 169 | C198: 1191.83 | H198: 169 | I198: 1023 | U198: 191 | V198: 191 | W198: 0 | Y198: 0 | AC198: 1023 | AE198: -1023 | AI198: 191 | AJ198: 1023 | AK198: 234057.2609 | AL198: 97.5238587 | AN198: 21553.65475 | AO198: 8.98068948 | AR198: 0 | AS198: 222804.2609 | AT198: 92.8351087 | AV198: 21553.65475 | AW198: 8.98068948 | AZ198: 1023 | BA198: 202496.2087 | BB198: 84.37342029 | BD198: 0 | BE198: 0 | BH198: 1023 | BI198: 11253 | BJ198: 4.68875 | BL198: 0 | BM198: 0 | BP198: 0 | BQ198: 31561.0522 | BR198: 13.15043842 | BT198: 21553.65475 | BU198: 8.98068948
B199: 170 | C199: 1191.83 | H199: 170 | I199: 1023 | U199: 192 | V199: 192 | W199: 0 | Y199: 0 | AC199: 1023 | AE199: -1023 | AI199: 192 | AJ199: 1023 | AK199: =IF(AI199>$K$21,0,AK198+AJ199) -> 235080.2609 | AL199: 97.9501087 | AM199: =SUM(AL188:AL199) -> 1147.268804 | AN199: =IF(AI199>$K$21,0,AN198+AP199) -> 21661.42303 | AO199: 8.98068948 | AP199: =SUM(AO188:AO199) -> 107.7682738 | AR199: 0 | AS199: =IF(AI199>$K$21,0,AS198+AR199) -> 222804.2609 | AT199: 92.8351087 | AU199: =SUM(AT188:AT199) -> 1114.021304 | AV199: =IF(AI199>$K$21,0,AV198+AX199) -> 21661.42303 | AW199: 8.98068948 | AX199: =SUM(AW188:AW199) -> 107.7682738 | AZ199: 1023 | BA199: 203519.2087 | BB199: 84.79967029 | BC199: =SUM(BB188:BB199) -> 989.4635434 | BD199: =IF(AI199>$K$21,0,BD198+BF199) -> 0 | BE199: 0 | BF199: =SUM(BE188:BE199) -> 0 | BH199: 1023 | BI199: 12276 | BJ199: 5.115 | BK199: =SUM(BJ188:BJ199) -> 33.2475 | BL199: =IF(AI199>$K$21,0,BL198+BN199) -> 0 | BM199: 0 | BN199: =SUM(BM188:BM199) -> 0 | BP199: 0 | BQ199: 31561.0522 | BR199: 13.15043842 | BS199: =SUM(BR188:BR199) -> 157.805261 | BT199: =IF(AI199>$K$21,0,BT198+BV199) -> 21661.42303 | BU199: 8.98068948 | BV199: =SUM(BU188:BU199) -> 107.7682738
B200: 171 | C200: 1191.83 | H200: 171 | I200: 1023 | U200: 193 | V200: 193 | W200: =C222 -> 0 | Y200: =-W200 -> 0 | AC200: =I222 -> 1023 | AE200: =-AC200 -> -1023 | AI200: 193 | AJ200: 1023 | AK200: =IF(AI200>$K$21,0,AK199+AJ200+AM199) -> 237250.5297 | AL200: =AK200*$E$20/12 -> 98.85438737 | AN200: 21661.42303 | AO200: 9.025592927 | AR200: =W200 -> 0 | AS200: =IF(AI200>$K$21,0,AS199+AR200+AU199) -> 223918.2822 | AT200: =AS200*$E$20/12 -> 93.29928425 | AV200: =IF(AI200>$K$21,0,AV199) -> 21661.42303 | AW200: 9.025592927 | AZ200: =AC200 -> 1023 | BA200: =IF(AI200>$K$21,0,BA199+AZ200+BC199) -> 205531.6722 | BB200: =BA200*$E$20/12 -> 85.63819676 | BD200: =IF(AI200>$K$21,0,BD199) -> 0 | BE200: 0 | BH200: =AJ200-W200 -> 1023 | BI200: =IF(AI200>$K$21,0,BI199+BH200+BK199) -> 13332.2475 | BJ200: =BI200*$E$20/12 -> 5.555103125 | BL200: =IF(AI200>$K$21,0,BL199) -> 0 | BM200: 0 | BP200: =AJ200-AC200 -> 0 | BQ200: =IF(AI200>$K$21,0,BQ199+BP200+BS199) -> 31718.85746 | BR200: =BQ200*$E$20/12 -> 13.21619061 | BT200: =IF(AI200>$K$21,0,BT199) -> 21661.42303 | BU200: 9.025592927
B201: 172 | C201: 1191.83 | H201: 172 | I201: 1023 | U201: 194 | V201: 194 | W201: 0 | Y201: 0 | AC201: 1023 | AE201: -1023 | AI201: 194 | AJ201: =IF(AI201>$K$21,0,IF(AC201>W201,AC201,W201)) -> 1023 | AK201: =AK200+AJ201 -> 238273.5297 | AL201: 99.28063737 | AN201: =IF(AI201>$K$21,0,AN200) -> 21661.42303 | AO201: 9.025592927 | AR201: 0 | AS201: =IF(AI201>$K$21,0,AS200+AR201) -> 223918.2822 | AT201: 93.29928425 | AV201: 21661.42303 | AW201: 9.025592927 | AZ201: 1023 | BA201: 206554.6722 | BB201: 86.06444676 | BD201: 0 | BE201: 0 | BH201: 1023 | BI201: 14355.2475 | BJ201: 5.981353125 | BL201: 0 | BM201: 0 | BP201: 0 | BQ201: 31718.85746 | BR201: 13.21619061 | BT201: 21661.42303 | BU201: =IF(AI201>$K$21,0,BT200*$E$20/12) -> 9.025592927
B202: 173 | C202: 1191.83 | H202: 173 | I202: 1023 | U202: 195 | V202: 195 | W202: 0 | Y202: 0 | AC202: 1023 | AE202: -1023 | AI202: 195 | AJ202: 1023 | AK202: 239296.5297 | AL202: 99.70688737 | AN202: 21661.42303 | AO202: 9.025592927 | AR202: 0 | AS202: 223918.2822 | AT202: 93.29928425 | AV202: 21661.42303 | AW202: 9.025592927 | AZ202: 1023 | BA202: 207577.6722 | BB202: 86.49069676 | BD202: 0 | BE202: 0 | BH202: 1023 | BI202: 15378.2475 | BJ202: 6.407603125 | BL202: 0 | BM202: 0 | BP202: 0 | BQ202: 31718.85746 | BR202: 13.21619061 | BT202: 21661.42303 | BU202: 9.025592927
... 224 more rows

Sheet Feuil3
